Workbook

Sheet グラフ_積分
C1: Peak | D1: Base | E1: Baseline番号行 | F1: 元データ情報 | J1: Baseline区分 | AA1: 軸
C2: =IFERROR(B2-D2,"") ->  | D2: =IFERROR(TREND(INDEX(J$1:L$10,E2,2):INDEX(J$1:L$10,E2+1,2),INDEX(J$1:L$10,E2,1):INDEX(J$1:L$10,E2+1,1),A2,1),"") ->  | E2: =IFERROR(MATCH($A:$A,$J$3:$J$10,1),1)+2 -> 10 | F2: X最小値 | G2: =MIN(A:A) -> 0 | J2: X | K2: Count | L2: Data | N2: 最終行 | O2: =MATCH(MAX($A:$A),$A:$A,MAX(MATCH(MIN($A:$A),$A:$A,-1),1)) ->  | AA2: 左から
F3: X最大値 | G3: =MAX(A:A) -> 0 | J3: =G2 -> 0 | K3: =L3 ->  | L3: =SUMIF(A$1:INDIRECT("A"&O$2),J3,B$1:INDIRECT("B"&O$2)) ->  | N3: グラフ範囲 | O3: X | P3: Y | Q3: データ値 | AA3: 右から
F4: データ開始行 | G4: =MATCH(G2,A:A,0) ->  | J4: 24 | L4: =SUMIF(A$1:INDIRECT("A"&O$2),J4,B$1:INDIRECT("B"&O$2)) ->  | N4: 最小値 | Q4: =MIN(B:C) -> 0 | X4: =IF(O4="",J3,O4) -> 0 | Y4: =IF(P4="",0,P4) -> 0
F5: データ終了行 | G5: =MATCH(G3,A:A,0) ->  | L5: =SUMIF(A$1:INDIRECT("A"&O$2),J5,B$1:INDIRECT("B"&O$2)) ->  | N5: 最大値 | Q5: =MAX(B:C) -> 0 | X5: =IF(O5="",J10,O5) -> 0 | Y5: =IF(P5="",10^(ROUNDUP(LOG(Q5),0)),P5) -> 
F6: データ数 | G6: =COUNT(A:A) -> 0 | L6: =SUMIF(A$1:INDIRECT("A"&O$2),J6,B$1:INDIRECT("B"&O$2)) ->  | N6: 軸反転 | O6: 2
L7: =SUMIF(A$1:INDIRECT("A"&O$2),J7,B$1:INDIRECT("B"&O$2)) -> 
L8: =SUMIF(A$1:INDIRECT("A"&O$2),J8,B$1:INDIRECT("B"&O$2)) -> 
L9: =SUMIF(A$1:INDIRECT("A"&O$2),J9,B$1:INDIRECT("B"&O$2)) ->  | N9: 実行
J10: =G3 -> 0 | K10: =L10 ->  | L10: =SUMIF(A$1:INDIRECT("A"&O$2),J10,B$1:INDIRECT("B"&O$2)) -> 
L18: =MIN($A:$A) -> 0 | M18: 0
L19: =MAX($A:$A) -> 0 | M19: 0
J30: 積分
J31: データ区間1 | K31: 行番号 | L31: X値 | M31: Y値
J32: 開始X値 | K32: =MATCH(L32,$A:$A,1) ->  | M32: =IF(L32<>"",SUM(INDIRECT("C"&K33):INDIRECT("C"&K32)),0) -> 0
J33: 終了X値 | K33: =MATCH(L33,$A:$A,1) ->  | M33: =IFERROR(M32/($M$32+$M$36+$M$40+$M$44),0) -> 0
J35: データ区間2 | K35: 行番号 | L35: X値 | M35: Y値
J36: 開始X値 | K36: =MATCH(L36,$A:$A,1) ->  | M36: =IF(L36<>"",SUM(INDIRECT("C"&K37):INDIRECT("C"&K36)),0) -> 0
J37: 終了X値 | K37: =MATCH(L37,$A:$A,1) ->  | M37: =IFERROR(M36/($M$32+$M$36+$M$40+$M$44),0) -> 0
J39: データ区間3 | K39: 行番号 | L39: X値 | M39: Y値
J40: 開始X値 | K40: =MATCH(L40,$A:$A,1) ->  | M40: =IF(L40<>"",SUM(INDIRECT("C"&K41):INDIRECT("C"&K40)),0) -> 0
J41: 終了X値 | K41: =MATCH(L41,$A:$A,1) ->  | M41: =IFERROR(M40/($M$32+$M$36+$M$40+$M$44),0) -> 0
J43: データ区間4 | K43: 行番号 | L43: X値 | M43: Y値
J44: 開始X値 | K44: =MATCH(L44,$A:$A,1) ->  | M44: =IF(L44<>"",SUM(INDIRECT("C"&K45):INDIRECT("C"&K44)),0) -> 0
J45: 終了X値 | K45: =MATCH(L45,$A:$A,1) ->  | M45: =IFERROR(M44/($M$32+$M$36+$M$40+$M$44),0) -> 0

Sheet ピーク分離
B1: X | C1: 観測 | D1: Peak1 | E1: Peak2 | F1: Peak3 | G1: Peak4 | H1: Peak5 | I1: Peak6 | J1: 合成 | AA1: 軸
D2: Gaussian +Lorentian | E2: Gaussian +Lorentian | F2: Gaussian +Lorentian | G2: Gaussian +Lorentian | H2: Gaussian +Lorentian | I2: Gaussian +Lorentian | N2: 最終行 | O2: =MATCH(MAX($B:$B),$B:$B,MAX(MATCH(MIN($B:$B),$B:$B,-1),1)) -> 611 | AA2: 左から
B3: L/(G+L) | D3: 0.02188006172 | E3: 0.2537954217 | F3: 0 | G3: 0.99998882 | H3: 0.9999242842 | I3: 0.9999242842 | L3: =SUM(L11:L611) -> 0.1133958224 | N3: グラフ範囲 | O3: X | P3: Y | Q3: Xデータ値 | R3: Yデータ値 | AA3: 右から
B4: ピーク高さ | D4: 1.268527298 | E4: 1.099981989 | F4: 0.05879918147 | G4: 0 | H4: 0 | I4: 0 | N4: 最小値 | O4: 0 | P4: 0 | Q4: =MIN(B:B) -> 0 | R4: =MIN(C:C) -> 0 | X4: =IF(O4="",B11,O4) -> 0 | Y4: =IF(P4="",0,P4) -> 0
B5: 半値幅 | D5: 13.93772118 | E5: 5.837049067 | F5: 4.444147386 | G5: 70.00309734 | H5: 70.43328835 | I5: 70.43328835 | N5: 最大値 | O5: 100 | P5: 2 | Q5: =MAX(B:B) -> 600 | R5: =MAX(C:C) -> 1.307790166 | X5: =IF(O5="",INDIRECT("B" & O2),O5) -> 100 | Y5: =IF(P5="",10^(ROUNDUP(LOG(R5),0)),P5) -> 2
B6: ピーク位置 | D6: 62.2767139 | E6: 41.99364467 | F6: 24.69145275 | G6: 200 | H6: 800 | I6: 800 | N6: 軸反転 | O6: 1
B7: 面積 | D7: 19.47549247 | E7: 9.964761567 | F7: 0.2774094768 | G7: =SUM(G11:G611) -> 0 | H7: =SUM(H11:H611) -> 0 | I7: =SUM(I11:I611) -> 0 | J7: =SUM(J11:J611) -> 29.71752351
N9: 実行
B10: X | C10: 観測 | D10: Peak1 | E10: Peak2 | F10: Peak3 | G10: Peak4 | H10: Peak5 | I10: Peak6 | J10: 合成 | L10: 誤差
B11: 0 | C11: 0 | D11: =(1-D$3)*(D$4*EXP(-(($B11-D$6)^2/(D$5/1.67)^2)))+D$3*(D$4/(1+($B11-D$6)^2/D$5^2)) -> 0.001323899155 | E11: =(1-E$3)*(E$4*EXP(-(($B11-E$6)^2/(E$5/1.67)^2)))+E$3*(E$4/(1+($B11-E$6)^2/E$5^2)) -> 0.005291491784 | F11: =(1-F$3)*(F$4*EXP(-(($B11-F$6)^2/(F$5/1.67)^2)))+F$3*(F$4/(1+($B11-F$6)^2/F$5^2)) -> 2.405752102e-39 | G11: =(1-G$3)*(G$4*EXP(-(($B11-G$6)^2/(G$5/1.67)^2)))+G$3*(G$4/(1+($B11-G$6)^2/G$5^2)) -> 0 | H11: =(1-H$3)*(H$4*EXP(-(($B11-H$6)^2/(H$5/1.67)^2)))+H$3*(H$4/(1+($B11-H$6)^2/H$5^2)) -> 0 | I11: =(1-I$3)*(I$4*EXP(-(($B11-I$6)^2/(I$5/1.67)^2)))+I$3*(I$4/(1+($B11-I$6)^2/I$5^2)) -> 0 | J11: =SUM(D11:I11) -> 0.006615390939 | L11: =(C11-J11)^2 -> 4.376339728e-05
B12: 1 | C12: 0 | D12: =(1-D$3)*(D$4*EXP(-(($B12-D$6)^2/(D$5/1.67)^2)))+D$3*(D$4/(1+($B12-D$6)^2/D$5^2)) -> 0.001365319341 | E12: =(1-E$3)*(E$4*EXP(-(($B12-E$6)^2/(E$5/1.67)^2)))+E$3*(E$4/(1+($B12-E$6)^2/E$5^2)) -> 0.005547609452 | F12: =(1-F$3)*(F$4*EXP(-(($B12-F$6)^2/(F$5/1.67)^2)))+F$3*(F$4/(1+($B12-F$6)^2/F$5^2)) -> 2.230240069e-36 | G12: =(1-G$3)*(G$4*EXP(-(($B12-G$6)^2/(G$5/1.67)^2)))+G$3*(G$4/(1+($B12-G$6)^2/G$5^2)) -> 0 | H12: =(1-H$3)*(H$4*EXP(-(($B12-H$6)^2/(H$5/1.67)^2)))+H$3*(H$4/(1+($B12-H$6)^2/H$5^2)) -> 0 | I12: =(1-I$3)*(I$4*EXP(-(($B12-I$6)^2/(I$5/1.67)^2)))+I$3*(I$4/(1+($B12-I$6)^2/I$5^2)) -> 0 | J12: =SUM(D12:I12) -> 0.006912928793 | L12: =(C12-J12)^2 -> 4.77885845e-05
B13: 2 | C13: 0 | D13: =(1-D$3)*(D$4*EXP(-(($B13-D$6)^2/(D$5/1.67)^2)))+D$3*(D$4/(1+($B13-D$6)^2/D$5^2)) -> 0.00140867856 | E13: =(1-E$3)*(E$4*EXP(-(($B13-E$6)^2/(E$5/1.67)^2)))+E$3*(E$4/(1+($B13-E$6)^2/E$5^2)) -> 0.005822643791 | F13: =(1-F$3)*(F$4*EXP(-(($B13-F$6)^2/(F$5/1.67)^2)))+F$3*(F$4/(1+($B13-F$6)^2/F$5^2)) -> 1.558840091e-33 | G13: =(1-G$3)*(G$4*EXP(-(($B13-G$6)^2/(G$5/1.67)^2)))+G$3*(G$4/(1+($B13-G$6)^2/G$5^2)) -> 0 | H13: =(1-H$3)*(H$4*EXP(-(($B13-H$6)^2/(H$5/1.67)^2)))+H$3*(H$4/(1+($B13-H$6)^2/H$5^2)) -> 0 | I13: =(1-I$3)*(I$4*EXP(-(($B13-I$6)^2/(I$5/1.67)^2)))+I$3*(I$4/(1+($B13-I$6)^2/I$5^2)) -> 0 | J13: =SUM(D13:I13) -> 0.007231322351 | L13: =(C13-J13)^2 -> 5.229202294e-05
B14: 3 | C14: 0 | D14: =(1-D$3)*(D$4*EXP(-(($B14-D$6)^2/(D$5/1.67)^2)))+D$3*(D$4/(1+($B14-D$6)^2/D$5^2)) -> 0.001454097345 | E14: =(1-E$3)*(E$4*EXP(-(($B14-E$6)^2/(E$5/1.67)^2)))+E$3*(E$4/(1+($B14-E$6)^2/E$5^2)) -> 0.006118489737 | F14: =(1-F$3)*(F$4*EXP(-(($B14-F$6)^2/(F$5/1.67)^2)))+F$3*(F$4/(1+($B14-F$6)^2/F$5^2)) -> 8.214870687e-31 | G14: =(1-G$3)*(G$4*EXP(-(($B14-G$6)^2/(G$5/1.67)^2)))+G$3*(G$4/(1+($B14-G$6)^2/G$5^2)) -> 0 | H14: =(1-H$3)*(H$4*EXP(-(($B14-H$6)^2/(H$5/1.67)^2)))+H$3*(H$4/(1+($B14-H$6)^2/H$5^2)) -> 0 | I14: =(1-I$3)*(I$4*EXP(-(($B14-I$6)^2/(I$5/1.67)^2)))+I$3*(I$4/(1+($B14-I$6)^2/I$5^2)) -> 0 | J14: =SUM(D14:I14) -> 0.007572587082 | L14: =(C14-J14)^2 -> 5.734407512e-05
B15: 4 | C15: 0 | D15: =(1-D$3)*(D$4*EXP(-(($B15-D$6)^2/(D$5/1.67)^2)))+D$3*(D$4/(1+($B15-D$6)^2/D$5^2)) -> 0.001501705533 | E15: =(1-E$3)*(E$4*EXP(-(($B15-E$6)^2/(E$5/1.67)^2)))+E$3*(E$4/(1+($B15-E$6)^2/E$5^2)) -> 0.00643728353 | F15: =(1-F$3)*(F$4*EXP(-(($B15-F$6)^2/(F$5/1.67)^2)))+F$3*(F$4/(1+($B15-F$6)^2/F$5^2)) -> 3.263992169e-28 | G15: =(1-G$3)*(G$4*EXP(-(($B15-G$6)^2/(G$5/1.67)^2)))+G$3*(G$4/(1+($B15-G$6)^2/G$5^2)) -> 0 | H15: =(1-H$3)*(H$4*EXP(-(($B15-H$6)^2/(H$5/1.67)^2)))+H$3*(H$4/(1+($B15-H$6)^2/H$5^2)) -> 0 | I15: =(1-I$3)*(I$4*EXP(-(($B15-I$6)^2/(I$5/1.67)^2)))+I$3*(I$4/(1+($B15-I$6)^2/I$5^2)) -> 0 | J15: =SUM(D15:I15) -> 0.007938989064 | L15: =(C15-J15)^2 -> 6.302754735e-05
B16: 5 | C16: 0 | D16: =(1-D$3)*(D$4*EXP(-(($B16-D$6)^2/(D$5/1.67)^2)))+D$3*(D$4/(1+($B16-D$6)^2/D$5^2)) -> 0.00155164312 | E16: =(1-E$3)*(E$4*EXP(-(($B16-E$6)^2/(E$5/1.67)^2)))+E$3*(E$4/(1+($B16-E$6)^2/E$5^2)) -> 0.006781440194 | F16: =(1-F$3)*(F$4*EXP(-(($B16-F$6)^2/(F$5/1.67)^2)))+F$3*(F$4/(1+($B16-F$6)^2/F$5^2)) -> 9.777924893e-26 | G16: =(1-G$3)*(G$4*EXP(-(($B16-G$6)^2/(G$5/1.67)^2)))+G$3*(G$4/(1+($B16-G$6)^2/G$5^2)) -> 0 | H16: =(1-H$3)*(H$4*EXP(-(($B16-H$6)^2/(H$5/1.67)^2)))+H$3*(H$4/(1+($B16-H$6)^2/H$5^2)) -> 0 | I16: =(1-I$3)*(I$4*EXP(-(($B16-I$6)^2/(I$5/1.67)^2)))+I$3*(I$4/(1+($B16-I$6)^2/I$5^2)) -> 0 | J16: =SUM(D16:I16) -> 0.008333083314 | L16: =(C16-J16)^2 -> 6.944027752e-05
B17: 6 | C17: 0 | D17: =(1-D$3)*(D$4*EXP(-(($B17-D$6)^2/(D$5/1.67)^2)))+D$3*(D$4/(1+($B17-D$6)^2/D$5^2)) -> 0.001604061201 | E17: =(1-E$3)*(E$4*EXP(-(($B17-E$6)^2/(E$5/1.67)^2)))+E$3*(E$4/(1+($B17-E$6)^2/E$5^2)) -> 0.007153697922 | F17: =(1-F$3)*(F$4*EXP(-(($B17-F$6)^2/(F$5/1.67)^2)))+F$3*(F$4/(1+($B17-F$6)^2/F$5^2)) -> 2.208480139e-23 | G17: =(1-G$3)*(G$4*EXP(-(($B17-G$6)^2/(G$5/1.67)^2)))+G$3*(G$4/(1+($B17-G$6)^2/G$5^2)) -> 0 | H17: =(1-H$3)*(H$4*EXP(-(($B17-H$6)^2/(H$5/1.67)^2)))+H$3*(H$4/(1+($B17-H$6)^2/H$5^2)) -> 0 | I17: =(1-I$3)*(I$4*EXP(-(($B17-I$6)^2/(I$5/1.67)^2)))+I$3*(I$4/(1+($B17-I$6)^2/I$5^2)) -> 0 | J17: =SUM(D17:I17) -> 0.008757759124 | L17: =(C17-J17)^2 -> 7.669834487e-05
B18: 7 | C18: 0 | D18: =(1-D$3)*(D$4*EXP(-(($B18-D$6)^2/(D$5/1.67)^2)))+D$3*(D$4/(1+($B18-D$6)^2/D$5^2)) -> 0.001659123018 | E18: =(1-E$3)*(E$4*EXP(-(($B18-E$6)^2/(E$5/1.67)^2)))+E$3*(E$4/(1+($B18-E$6)^2/E$5^2)) -> 0.007557170836 | F18: =(1-F$3)*(F$4*EXP(-(($B18-F$6)^2/(F$5/1.67)^2)))+F$3*(F$4/(1+($B18-F$6)^2/F$5^2)) -> 3.7608803e-21 | G18: =(1-G$3)*(G$4*EXP(-(($B18-G$6)^2/(G$5/1.67)^2)))+G$3*(G$4/(1+($B18-G$6)^2/G$5^2)) -> 0 | H18: =(1-H$3)*(H$4*EXP(-(($B18-H$6)^2/(H$5/1.67)^2)))+H$3*(H$4/(1+($B18-H$6)^2/H$5^2)) -> 0 | I18: =(1-I$3)*(I$4*EXP(-(($B18-I$6)^2/(I$5/1.67)^2)))+I$3*(I$4/(1+($B18-I$6)^2/I$5^2)) -> 0 | J18: =SUM(D18:I18) -> 0.009216293854 | L18: =(C18-J18)^2 -> 8.494007241e-05
B19: 8 | C19: 0 | D19: =(1-D$3)*(D$4*EXP(-(($B19-D$6)^2/(D$5/1.67)^2)))+D$3*(D$4/(1+($B19-D$6)^2/D$5^2)) -> 0.001717005113 | E19: =(1-E$3)*(E$4*EXP(-(($B19-E$6)^2/(E$5/1.67)^2)))+E$3*(E$4/(1+($B19-E$6)^2/E$5^2)) -> 0.007995411952 | F19: =(1-F$3)*(F$4*EXP(-(($B19-F$6)^2/(F$5/1.67)^2)))+F$3*(F$4/(1+($B19-F$6)^2/F$5^2)) -> 4.828750167e-19 | G19: =(1-G$3)*(G$4*EXP(-(($B19-G$6)^2/(G$5/1.67)^2)))+G$3*(G$4/(1+($B19-G$6)^2/G$5^2)) -> 0 | H19: =(1-H$3)*(H$4*EXP(-(($B19-H$6)^2/(H$5/1.67)^2)))+H$3*(H$4/(1+($B19-H$6)^2/H$5^2)) -> 0 | I19: =(1-I$3)*(I$4*EXP(-(($B19-I$6)^2/(I$5/1.67)^2)))+I$3*(I$4/(1+($B19-I$6)^2/I$5^2)) -> 0 | J19: =SUM(D19:I19) -> 0.009712417065 | L19: =(C19-J19)^2 -> 9.433104524e-05
B20: 9 | C20: 0 | D20: =(1-D$3)*(D$4*EXP(-(($B20-D$6)^2/(D$5/1.67)^2)))+D$3*(D$4/(1+($B20-D$6)^2/D$5^2)) -> 0.001777898612 | E20: =(1-E$3)*(E$4*EXP(-(($B20-E$6)^2/(E$5/1.67)^2)))+E$3*(E$4/(1+($B20-E$6)^2/E$5^2)) -> 0.008472488644 | F20: =(1-F$3)*(F$4*EXP(-(($B20-F$6)^2/(F$5/1.67)^2)))+F$3*(F$4/(1+($B20-F$6)^2/F$5^2)) -> 4.674435521e-17 | G20: =(1-G$3)*(G$4*EXP(-(($B20-G$6)^2/(G$5/1.67)^2)))+G$3*(G$4/(1+($B20-G$6)^2/G$5^2)) -> 0 | H20: =(1-H$3)*(H$4*EXP(-(($B20-H$6)^2/(H$5/1.67)^2)))+H$3*(H$4/(1+($B20-H$6)^2/H$5^2)) -> 0 | I20: =(1-I$3)*(I$4*EXP(-(($B20-I$6)^2/(I$5/1.67)^2)))+I$3*(I$4/(1+($B20-I$6)^2/I$5^2)) -> 0 | J20: =SUM(D20:I20) -> 0.01025038726 | L20: =(C20-J20)^2 -> 0.0001050704389
B21: 10 | C21: 0 | D21: =(1-D$3)*(D$4*EXP(-(($B21-D$6)^2/(D$5/1.67)^2)))+D$3*(D$4/(1+($B21-D$6)^2/D$5^2)) -> 0.001842010648 | E21: =(1-E$3)*(E$4*EXP(-(($B21-E$6)^2/(E$5/1.67)^2)))+E$3*(E$4/(1+($B21-E$6)^2/E$5^2)) -> 0.008993073481 | F21: =(1-F$3)*(F$4*EXP(-(($B21-F$6)^2/(F$5/1.67)^2)))+F$3*(F$4/(1+($B21-F$6)^2/F$5^2)) -> 3.411715613e-15 | G21: =(1-G$3)*(G$4*EXP(-(($B21-G$6)^2/(G$5/1.67)^2)))+G$3*(G$4/(1+($B21-G$6)^2/G$5^2)) -> 0 | H21: =(1-H$3)*(H$4*EXP(-(($B21-H$6)^2/(H$5/1.67)^2)))+H$3*(H$4/(1+($B21-H$6)^2/H$5^2)) -> 0 | I21: =(1-I$3)*(I$4*EXP(-(($B21-I$6)^2/(I$5/1.67)^2)))+I$3*(I$4/(1+($B21-I$6)^2/I$5^2)) -> 0 | J21: =SUM(D21:I21) -> 0.01083508413 | L21: =(C21-J21)^2 -> 0.0001173990481
B22: 11 | C22: 0 | D22: =(1-D$3)*(D$4*EXP(-(($B22-D$6)^2/(D$5/1.67)^2)))+D$3*(D$4/(1+($B22-D$6)^2/D$5^2)) -> 0.001909565939 | E22: =(1-E$3)*(E$4*EXP(-(($B22-E$6)^2/(E$5/1.67)^2)))+E$3*(E$4/(1+($B22-E$6)^2/E$5^2)) -> 0.009562554061 | F22: =(1-F$3)*(F$4*EXP(-(($B22-F$6)^2/(F$5/1.67)^2)))+F$3*(F$4/(1+($B22-F$6)^2/F$5^2)) -> 1.877438348e-13 | G22: =(1-G$3)*(G$4*EXP(-(($B22-G$6)^2/(G$5/1.67)^2)))+G$3*(G$4/(1+($B22-G$6)^2/G$5^2)) -> 0 | H22: =(1-H$3)*(H$4*EXP(-(($B22-H$6)^2/(H$5/1.67)^2)))+H$3*(H$4/(1+($B22-H$6)^2/H$5^2)) -> 0 | I22: =(1-I$3)*(I$4*EXP(-(($B22-I$6)^2/(I$5/1.67)^2)))+I$3*(I$4/(1+($B22-I$6)^2/I$5^2)) -> 0 | J22: =SUM(D22:I22) -> 0.01147212 | L22: =(C22-J22)^2 -> 0.0001316095373
B23: 12 | C23: 0 | D23: =(1-D$3)*(D$4*EXP(-(($B23-D$6)^2/(D$5/1.67)^2)))+D$3*(D$4/(1+($B23-D$6)^2/D$5^2)) -> 0.001980808552 | E23: =(1-E$3)*(E$4*EXP(-(($B23-E$6)^2/(E$5/1.67)^2)))+E$3*(E$4/(1+($B23-E$6)^2/E$5^2)) -> 0.01018716645 | F23: =(1-F$3)*(F$4*EXP(-(($B23-F$6)^2/(F$5/1.67)^2)))+F$3*(F$4/(1+($B23-F$6)^2/F$5^2)) -> 7.789467291e-12 | G23: =(1-G$3)*(G$4*EXP(-(($B23-G$6)^2/(G$5/1.67)^2)))+G$3*(G$4/(1+($B23-G$6)^2/G$5^2)) -> 0 | H23: =(1-H$3)*(H$4*EXP(-(($B23-H$6)^2/(H$5/1.67)^2)))+H$3*(H$4/(1+($B23-H$6)^2/H$5^2)) -> 0 | I23: =(1-I$3)*(I$4*EXP(-(($B23-I$6)^2/(I$5/1.67)^2)))+I$3*(I$4/(1+($B23-I$6)^2/I$5^2)) -> 0 | J23: =SUM(D23:I23) -> 0.01216797501 | L23: =(C23-J23)^2 -> 0.0001480596157
B24: 13 | C24: 0 | D24: =(1-D$3)*(D$4*EXP(-(($B24-D$6)^2/(D$5/1.67)^2)))+D$3*(D$4/(1+($B24-D$6)^2/D$5^2)) -> 0.00205600386 | E24: =(1-E$3)*(E$4*EXP(-(($B24-E$6)^2/(E$5/1.67)^2)))+E$3*(E$4/(1+($B24-E$6)^2/E$5^2)) -> 0.01087415806 | F24: =(1-F$3)*(F$4*EXP(-(($B24-F$6)^2/(F$5/1.67)^2)))+F$3*(F$4/(1+($B24-F$6)^2/F$5^2)) -> 2.436683058e-10 | G24: =(1-G$3)*(G$4*EXP(-(($B24-G$6)^2/(G$5/1.67)^2)))+G$3*(G$4/(1+($B24-G$6)^2/G$5^2)) -> 0 | H24: =(1-H$3)*(H$4*EXP(-(($B24-H$6)^2/(H$5/1.67)^2)))+H$3*(H$4/(1+($B24-H$6)^2/H$5^2)) -> 0 | I24: =(1-I$3)*(I$4*EXP(-(($B24-I$6)^2/(I$5/1.67)^2)))+I$3*(I$4/(1+($B24-I$6)^2/I$5^2)) -> 0 | J24: =SUM(D24:I24) -> 0.01293016217 | L24: =(C24-J24)^2 -> 0.0001671890936
B25: 14 | C25: 0 | D25: =(1-D$3)*(D$4*EXP(-(($B25-D$6)^2/(D$5/1.67)^2)))+D$3*(D$4/(1+($B25-D$6)^2/D$5^2)) -> 0.002135440721 | E25: =(1-E$3)*(E$4*EXP(-(($B25-E$6)^2/(E$5/1.67)^2)))+E$3*(E$4/(1+($B25-E$6)^2/E$5^2)) -> 0.0116319876 | F25: =(1-F$3)*(F$4*EXP(-(($B25-F$6)^2/(F$5/1.67)^2)))+F$3*(F$4/(1+($B25-F$6)^2/F$5^2)) -> 5.746978092e-09 | G25: =(1-G$3)*(G$4*EXP(-(($B25-G$6)^2/(G$5/1.67)^2)))+G$3*(G$4/(1+($B25-G$6)^2/G$5^2)) -> 0 | H25: =(1-H$3)*(H$4*EXP(-(($B25-H$6)^2/(H$5/1.67)^2)))+H$3*(H$4/(1+($B25-H$6)^2/H$5^2)) -> 0 | I25: =(1-I$3)*(I$4*EXP(-(($B25-I$6)^2/(I$5/1.67)^2)))+I$3*(I$4/(1+($B25-I$6)^2/I$5^2)) -> 0 | J25: =SUM(D25:I25) -> 0.01376743406 | L25: =(C25-J25)^2 -> 0.0001895422407
B26: 15 | C26: 0.0007880368016 | D26: =(1-D$3)*(D$4*EXP(-(($B26-D$6)^2/(D$5/1.67)^2)))+D$3*(D$4/(1+($B26-D$6)^2/D$5^2)) -> 0.002219433917 | E26: =(1-E$3)*(E$4*EXP(-(($B26-E$6)^2/(E$5/1.67)^2)))+E$3*(E$4/(1+($B26-E$6)^2/E$5^2)) -> 0.01247057156 | F26: =(1-F$3)*(F$4*EXP(-(($B26-F$6)^2/(F$5/1.67)^2)))+F$3*(F$4/(1+($B26-F$6)^2/F$5^2)) -> 1.021949067e-07 | G26: =(1-G$3)*(G$4*EXP(-(($B26-G$6)^2/(G$5/1.67)^2)))+G$3*(G$4/(1+($B26-G$6)^2/G$5^2)) -> 0 | H26: =(1-H$3)*(H$4*EXP(-(($B26-H$6)^2/(H$5/1.67)^2)))+H$3*(H$4/(1+($B26-H$6)^2/H$5^2)) -> 0 | I26: =(1-I$3)*(I$4*EXP(-(($B26-I$6)^2/(I$5/1.67)^2)))+I$3*(I$4/(1+($B26-I$6)^2/I$5^2)) -> 0 | J26: =SUM(D26:I26) -> 0.01469010767 | L26: =(C26-J26)^2 -> 0.0001932675746
B27: 16 | C27: 0.003344619187 | D27: =(1-D$3)*(D$4*EXP(-(($B27-D$6)^2/(D$5/1.67)^2)))+D$3*(D$4/(1+($B27-D$6)^2/D$5^2)) -> 0.002308326868 | E27: =(1-E$3)*(E$4*EXP(-(($B27-E$6)^2/(E$5/1.67)^2)))+E$3*(E$4/(1+($B27-E$6)^2/E$5^2)) -> 0.01340159014 | F27: =(1-F$3)*(F$4*EXP(-(($B27-F$6)^2/(F$5/1.67)^2)))+F$3*(F$4/(1+($B27-F$6)^2/F$5^2)) -> 1.370150185e-06 | G27: =(1-G$3)*(G$4*EXP(-(($B27-G$6)^2/(G$5/1.67)^2)))+G$3*(G$4/(1+($B27-G$6)^2/G$5^2)) -> 0 | H27: =(1-H$3)*(H$4*EXP(-(($B27-H$6)^2/(H$5/1.67)^2)))+H$3*(H$4/(1+($B27-H$6)^2/H$5^2)) -> 0 | I27: =(1-I$3)*(I$4*EXP(-(($B27-I$6)^2/(I$5/1.67)^2)))+I$3*(I$4/(1+($B27-I$6)^2/I$5^2)) -> 0 | J27: =SUM(D27:I27) -> 0.01571128716 | L27: =(C27-J27)^2 -> 0.0001529344768
B28: 17 | C28: 0.005430230642 | D28: =(1-D$3)*(D$4*EXP(-(($B28-D$6)^2/(D$5/1.67)^2)))+D$3*(D$4/(1+($B28-D$6)^2/D$5^2)) -> 0.002402494673 | E28: =(1-E$3)*(E$4*EXP(-(($B28-E$6)^2/(E$5/1.67)^2)))+E$3*(E$4/(1+($B28-E$6)^2/E$5^2)) -> 0.01443886864 | F28: =(1-F$3)*(F$4*EXP(-(($B28-F$6)^2/(F$5/1.67)^2)))+F$3*(F$4/(1+($B28-F$6)^2/F$5^2)) -> 1.385020839e-05 | G28: =(1-G$3)*(G$4*EXP(-(($B28-G$6)^2/(G$5/1.67)^2)))+G$3*(G$4/(1+($B28-G$6)^2/G$5^2)) -> 0 | H28: =(1-H$3)*(H$4*EXP(-(($B28-H$6)^2/(H$5/1.67)^2)))+H$3*(H$4/(1+($B28-H$6)^2/H$5^2)) -> 0 | I28: =(1-I$3)*(I$4*EXP(-(($B28-I$6)^2/(I$5/1.67)^2)))+I$3*(I$4/(1+($B28-I$6)^2/I$5^2)) -> 0 | J28: =SUM(D28:I28) -> 0.01685521352 | L28: =(C28-J28)^2 -> 0.0001305302338
B29: 18 | C29: 0.01252695249 | D29: =(1-D$3)*(D$4*EXP(-(($B29-D$6)^2/(D$5/1.67)^2)))+D$3*(D$4/(1+($B29-D$6)^2/D$5^2)) -> 0.0025023475 | E29: =(1-E$3)*(E$4*EXP(-(($B29-E$6)^2/(E$5/1.67)^2)))+E$3*(E$4/(1+($B29-E$6)^2/E$5^2)) -> 0.01559885606 | F29: =(1-F$3)*(F$4*EXP(-(($B29-F$6)^2/(F$5/1.67)^2)))+F$3*(F$4/(1+($B29-F$6)^2/F$5^2)) -> 0.0001055586079 | G29: =(1-G$3)*(G$4*EXP(-(($B29-G$6)^2/(G$5/1.67)^2)))+G$3*(G$4/(1+($B29-G$6)^2/G$5^2)) -> 0 | H29: =(1-H$3)*(H$4*EXP(-(($B29-H$6)^2/(H$5/1.67)^2)))+H$3*(H$4/(1+($B29-H$6)^2/H$5^2)) -> 0 | I29: =(1-I$3)*(I$4*EXP(-(($B29-I$6)^2/(I$5/1.67)^2)))+I$3*(I$4/(1+($B29-I$6)^2/I$5^2)) -> 0 | J29: =SUM(D29:I29) -> 0.01820676217 | L29: =(C29-J29)^2 -> 3.226023802e-05
B30: 19 | C30: 0.01773888239 | D30: =(1-D$3)*(D$4*EXP(-(($B30-D$6)^2/(D$5/1.67)^2)))+D$3*(D$4/(1+($B30-D$6)^2/D$5^2)) -> 0.002608334388 | E30: =(1-E$3)*(E$4*EXP(-(($B30-E$6)^2/(E$5/1.67)^2)))+E$3*(E$4/(1+($B30-E$6)^2/E$5^2)) -> 0.01690122906 | F30: =(1-F$3)*(F$4*EXP(-(($B30-F$6)^2/(F$5/1.67)^2)))+F$3*(F$4/(1+($B30-F$6)^2/F$5^2)) -> 0.0006065690018 | G30: =(1-G$3)*(G$4*EXP(-(($B30-G$6)^2/(G$5/1.67)^2)))+G$3*(G$4/(1+($B30-G$6)^2/G$5^2)) -> 0 | H30: =(1-H$3)*(H$4*EXP(-(($B30-H$6)^2/(H$5/1.67)^2)))+H$3*(H$4/(1+($B30-H$6)^2/H$5^2)) -> 0 | I30: =(1-I$3)*(I$4*EXP(-(($B30-I$6)^2/(I$5/1.67)^2)))+I$3*(I$4/(1+($B30-I$6)^2/I$5^2)) -> 0 | J30: =SUM(D30:I30) -> 0.02011613245 | L30: =(C30-J30)^2 -> 5.651317855e-06
B31: 20 | C31: 0.02666495165 | D31: =(1-D$3)*(D$4*EXP(-(($B31-D$6)^2/(D$5/1.67)^2)))+D$3*(D$4/(1+($B31-D$6)^2/D$5^2)) -> 0.002720947501 | E31: =(1-E$3)*(E$4*EXP(-(($B31-E$6)^2/(E$5/1.67)^2)))+E$3*(E$4/(1+($B31-E$6)^2/E$5^2)) -> 0.01836965875 | F31: =(1-F$3)*(F$4*EXP(-(($B31-F$6)^2/(F$5/1.67)^2)))+F$3*(F$4/(1+($B31-F$6)^2/F$5^2)) -> 0.002627943252 | G31: =(1-G$3)*(G$4*EXP(-(($B31-G$6)^2/(G$5/1.67)^2)))+G$3*(G$4/(1+($B31-G$6)^2/G$5^2)) -> 0 | H31: =(1-H$3)*(H$4*EXP(-(($B31-H$6)^2/(H$5/1.67)^2)))+H$3*(H$4/(1+($B31-H$6)^2/H$5^2)) -> 0 | I31: =(1-I$3)*(I$4*EXP(-(($B31-I$6)^2/(I$5/1.67)^2)))+I$3*(I$4/(1+($B31-I$6)^2/I$5^2)) -> 0 | J31: =SUM(D31:I31) -> 0.02371854951 | L31: =(C31-J31)^2 -> 8.681285599e-06
B32: 21 | C32: 0.02749904009 | D32: =(1-D$3)*(D$4*EXP(-(($B32-D$6)^2/(D$5/1.67)^2)))+D$3*(D$4/(1+($B32-D$6)^2/D$5^2)) -> 0.002840726886 | E32: =(1-E$3)*(E$4*EXP(-(($B32-E$6)^2/(E$5/1.67)^2)))+E$3*(E$4/(1+($B32-E$6)^2/E$5^2)) -> 0.02003279008 | F32: =(1-F$3)*(F$4*EXP(-(($B32-F$6)^2/(F$5/1.67)^2)))+F$3*(F$4/(1+($B32-F$6)^2/F$5^2)) -> 0.008584222491 | G32: =(1-G$3)*(G$4*EXP(-(($B32-G$6)^2/(G$5/1.67)^2)))+G$3*(G$4/(1+($B32-G$6)^2/G$5^2)) -> 0 | H32: =(1-H$3)*(H$4*EXP(-(($B32-H$6)^2/(H$5/1.67)^2)))+H$3*(H$4/(1+($B32-H$6)^2/H$5^2)) -> 0 | I32: =(1-I$3)*(I$4*EXP(-(($B32-I$6)^2/(I$5/1.67)^2)))+I$3*(I$4/(1+($B32-I$6)^2/I$5^2)) -> 0 | J32: =SUM(D32:I32) -> 0.03145773946 | L32: =(C32-J32)^2 -> 1.567130066e-05
B33: 22 | C33: 0.04717519814 | D33: =(1-D$3)*(D$4*EXP(-(($B33-D$6)^2/(D$5/1.67)^2)))+D$3*(D$4/(1+($B33-D$6)^2/D$5^2)) -> 0.002968265823 | E33: =(1-E$3)*(E$4*EXP(-(($B33-E$6)^2/(E$5/1.67)^2)))+E$3*(E$4/(1+($B33-E$6)^2/E$5^2)) -> 0.02192550019 | F33: =(1-F$3)*(F$4*EXP(-(($B33-F$6)^2/(F$5/1.67)^2)))+F$3*(F$4/(1+($B33-F$6)^2/F$5^2)) -> 0.02114146897 | G33: =(1-G$3)*(G$4*EXP(-(($B33-G$6)^2/(G$5/1.67)^2)))+G$3*(G$4/(1+($B33-G$6)^2/G$5^2)) -> 0 | H33: =(1-H$3)*(H$4*EXP(-(($B33-H$6)^2/(H$5/1.67)^2)))+H$3*(H$4/(1+($B33-H$6)^2/H$5^2)) -> 0 | I33: =(1-I$3)*(I$4*EXP(-(($B33-I$6)^2/(I$5/1.67)^2)))+I$3*(I$4/(1+($B33-I$6)^2/I$5^2)) -> 0 | J33: =SUM(D33:I33) -> 0.04603523499 | L33: =(C33-J33)^2 -> 1.299515986e-06
B34: 23 | C34: 0.06897604552 | D34: =(1-D$3)*(D$4*EXP(-(($B34-D$6)^2/(D$5/1.67)^2)))+D$3*(D$4/(1+($B34-D$6)^2/D$5^2)) -> 0.003104216829 | E34: =(1-E$3)*(E$4*EXP(-(($B34-E$6)^2/(E$5/1.67)^2)))+E$3*(E$4/(1+($B34-E$6)^2/E$5^2)) -> 0.02409052441 | F34: =(1-F$3)*(F$4*EXP(-(($B34-F$6)^2/(F$5/1.67)^2)))+F$3*(F$4/(1+($B34-F$6)^2/F$5^2)) -> 0.03925713188 | G34: =(1-G$3)*(G$4*EXP(-(($B34-G$6)^2/(G$5/1.67)^2)))+G$3*(G$4/(1+($B34-G$6)^2/G$5^2)) -> 0 | H34: =(1-H$3)*(H$4*EXP(-(($B34-H$6)^2/(H$5/1.67)^2)))+H$3*(H$4/(1+($B34-H$6)^2/H$5^2)) -> 0 | I34: =(1-I$3)*(I$4*EXP(-(($B34-I$6)^2/(I$5/1.67)^2)))+I$3*(I$4/(1+($B34-I$6)^2/I$5^2)) -> 0 | J34: =SUM(D34:I34) -> 0.06645187312 | L34: =(C34-J34)^2 -> 6.371446311e-06
B35: 24 | C35: 0.08643606209 | D35: =(1-D$3)*(D$4*EXP(-(($B35-D$6)^2/(D$5/1.67)^2)))+D$3*(D$4/(1+($B35-D$6)^2/D$5^2)) -> 0.003249298454 | E35: =(1-E$3)*(E$4*EXP(-(($B35-E$6)^2/(E$5/1.67)^2)))+E$3*(E$4/(1+($B35-E$6)^2/E$5^2)) -> 0.02658056814 | F35: =(1-F$3)*(F$4*EXP(-(($B35-F$6)^2/(F$5/1.67)^2)))+F$3*(F$4/(1+($B35-F$6)^2/F$5^2)) -> 0.05496056464 | G35: =(1-G$3)*(G$4*EXP(-(($B35-G$6)^2/(G$5/1.67)^2)))+G$3*(G$4/(1+($B35-G$6)^2/G$5^2)) -> 0 | H35: =(1-H$3)*(H$4*EXP(-(($B35-H$6)^2/(H$5/1.67)^2)))+H$3*(H$4/(1+($B35-H$6)^2/H$5^2)) -> 0 | I35: =(1-I$3)*(I$4*EXP(-(($B35-I$6)^2/(I$5/1.67)^2)))+I$3*(I$4/(1+($B35-I$6)^2/I$5^2)) -> 0 | J35: =SUM(D35:I35) -> 0.08479043123 | L35: =(C35-J35)^2 -> 2.708100947e-06
B36: 25 | C36: 0.08284242055 | D36: =(1-D$3)*(D$4*EXP(-(($B36-D$6)^2/(D$5/1.67)^2)))+D$3*(D$4/(1+($B36-D$6)^2/D$5^2)) -> 0.003404303064 | E36: =(1-E$3)*(E$4*EXP(-(($B36-E$6)^2/(E$5/1.67)^2)))+E$3*(E$4/(1+($B36-E$6)^2/E$5^2)) -> 0.0294610617 | F36: =(1-F$3)*(F$4*EXP(-(($B36-F$6)^2/(F$5/1.67)^2)))+F$3*(F$4/(1+($B36-F$6)^2/F$5^2)) -> 0.05801402755 | G36: =(1-G$3)*(G$4*EXP(-(($B36-G$6)^2/(G$5/1.67)^2)))+G$3*(G$4/(1+($B36-G$6)^2/G$5^2)) -> 0 | H36: =(1-H$3)*(H$4*EXP(-(($B36-H$6)^2/(H$5/1.67)^2)))+H$3*(H$4/(1+($B36-H$6)^2/H$5^2)) -> 0 | I36: =(1-I$3)*(I$4*EXP(-(($B36-I$6)^2/(I$5/1.67)^2)))+I$3*(I$4/(1+($B36-I$6)^2/I$5^2)) -> 0 | J36: =SUM(D36:I36) -> 0.09087939231 | L36: =(C36-J36)^2 -> 6.459291506e-05
B37: 26 | C37: 0.08650178571 | D37: =(1-D$3)*(D$4*EXP(-(($B37-D$6)^2/(D$5/1.67)^2)))+D$3*(D$4/(1+($B37-D$6)^2/D$5^2)) -> 0.003570106021 | E37: =(1-E$3)*(E$4*EXP(-(($B37-E$6)^2/(E$5/1.67)^2)))+E$3*(E$4/(1+($B37-E$6)^2/E$5^2)) -> 0.03281376492 | F37: =(1-F$3)*(F$4*EXP(-(($B37-F$6)^2/(F$5/1.67)^2)))+F$3*(F$4/(1+($B37-F$6)^2/F$5^2)) -> 0.04617044495 | G37: =(1-G$3)*(G$4*EXP(-(($B37-G$6)^2/(G$5/1.67)^2)))+G$3*(G$4/(1+($B37-G$6)^2/G$5^2)) -> 0 | H37: =(1-H$3)*(H$4*EXP(-(($B37-H$6)^2/(H$5/1.67)^2)))+H$3*(H$4/(1+($B37-H$6)^2/H$5^2)) -> 0 | I37: =(1-I$3)*(I$4*EXP(-(($B37-I$6)^2/(I$5/1.67)^2)))+I$3*(I$4/(1+($B37-I$6)^2/I$5^2)) -> 0 | J37: =SUM(D37:I37) -> 0.08255431589 | L37: =(C37-J37)^2 -> 1.558251794e-05
B38: 27 | C38: 0.07388824728 | D38: =(1-D$3)*(D$4*EXP(-(($B38-D$6)^2/(D$5/1.67)^2)))+D$3*(D$4/(1+($B38-D$6)^2/D$5^2)) -> 0.003747677129 | E38: =(1-E$3)*(E$4*EXP(-(($B38-E$6)^2/(E$5/1.67)^2)))+E$3*(E$4/(1+($B38-E$6)^2/E$5^2)) -> 0.03674149031 | F38: =(1-F$3)*(F$4*EXP(-(($B38-F$6)^2/(F$5/1.67)^2)))+F$3*(F$4/(1+($B38-F$6)^2/F$5^2)) -> 0.02770411716 | G38: =(1-G$3)*(G$4*EXP(-(($B38-G$6)^2/(G$5/1.67)^2)))+G$3*(G$4/(1+($B38-G$6)^2/G$5^2)) -> 0 | H38: =(1-H$3)*(H$4*EXP(-(($B38-H$6)^2/(H$5/1.67)^2)))+H$3*(H$4/(1+($B38-H$6)^2/H$5^2)) -> 0 | I38: =(1-I$3)*(I$4*EXP(-(($B38-I$6)^2/(I$5/1.67)^2)))+I$3*(I$4/(1+($B38-I$6)^2/I$5^2)) -> 0 | J38: =SUM(D38:I38) -> 0.0681932846 | L38: =(C38-J38)^2 -> 3.243259991e-05
B39: 28 | C39: 0.05735264361 | D39: =(1-D$3)*(D$4*EXP(-(($B39-D$6)^2/(D$5/1.67)^2)))+D$3*(D$4/(1+($B39-D$6)^2/D$5^2)) -> 0.003938096294 | E39: =(1-E$3)*(E$4*EXP(-(($B39-E$6)^2/(E$5/1.67)^2)))+E$3*(E$4/(1+($B39-E$6)^2/E$5^2)) -> 0.04137431338 | F39: =(1-F$3)*(F$4*EXP(-(($B39-F$6)^2/(F$5/1.67)^2)))+F$3*(F$4/(1+($B39-F$6)^2/F$5^2)) -> 0.0125335409 | G39: =(1-G$3)*(G$4*EXP(-(($B39-G$6)^2/(G$5/1.67)^2)))+G$3*(G$4/(1+($B39-G$6)^2/G$5^2)) -> 0 | H39: =(1-H$3)*(H$4*EXP(-(($B39-H$6)^2/(H$5/1.67)^2)))+H$3*(H$4/(1+($B39-H$6)^2/H$5^2)) -> 0 | I39: =(1-I$3)*(I$4*EXP(-(($B39-I$6)^2/(I$5/1.67)^2)))+I$3*(I$4/(1+($B39-I$6)^2/I$5^2)) -> 0 | J39: =SUM(D39:I39) -> 0.05784595057 | L39: =(C39-J39)^2 -> 2.433517553e-07
B40: 29 | C40: 0.0462621943 | D40: =(1-D$3)*(D$4*EXP(-(($B40-D$6)^2/(D$5/1.67)^2)))+D$3*(D$4/(1+($B40-D$6)^2/D$5^2)) -> 0.004142577701 | E40: =(1-E$3)*(E$4*EXP(-(($B40-E$6)^2/(E$5/1.67)^2)))+E$3*(E$4/(1+($B40-E$6)^2/E$5^2)) -> 0.04687797542 | F40: =(1-F$3)*(F$4*EXP(-(($B40-F$6)^2/(F$5/1.67)^2)))+F$3*(F$4/(1+($B40-F$6)^2/F$5^2)) -> 0.004275160876 | G40: =(1-G$3)*(G$4*EXP(-(($B40-G$6)^2/(G$5/1.67)^2)))+G$3*(G$4/(1+($B40-G$6)^2/G$5^2)) -> 0 | H40: =(1-H$3)*(H$4*EXP(-(($B40-H$6)^2/(H$5/1.67)^2)))+H$3*(H$4/(1+($B40-H$6)^2/H$5^2)) -> 0 | I40: =(1-I$3)*(I$4*EXP(-(($B40-I$6)^2/(I$5/1.67)^2)))+I$3*(I$4/(1+($B40-I$6)^2/I$5^2)) -> 0 | J40: =SUM(D40:I40) -> 0.05529571399 | L40: =(C40-J40)^2 -> 8.160447806e-05
B41: 30 | C41: 0.04898427086 | D41: =(1-D$3)*(D$4*EXP(-(($B41-D$6)^2/(D$5/1.67)^2)))+D$3*(D$4/(1+($B41-D$6)^2/D$5^2)) -> 0.004362511898 | E41: =(1-E$3)*(E$4*EXP(-(($B41-E$6)^2/(E$5/1.67)^2)))+E$3*(E$4/(1+($B41-E$6)^2/E$5^2)) -> 0.05346700796 | F41: =(1-F$3)*(F$4*EXP(-(($B41-F$6)^2/(F$5/1.67)^2)))+F$3*(F$4/(1+($B41-F$6)^2/F$5^2)) -> 0.001099462329 | G41: =(1-G$3)*(G$4*EXP(-(($B41-G$6)^2/(G$5/1.67)^2)))+G$3*(G$4/(1+($B41-G$6)^2/G$5^2)) -> 0 | H41: =(1-H$3)*(H$4*EXP(-(($B41-H$6)^2/(H$5/1.67)^2)))+H$3*(H$4/(1+($B41-H$6)^2/H$5^2)) -> 0 | I41: =(1-I$3)*(I$4*EXP(-(($B41-I$6)^2/(I$5/1.67)^2)))+I$3*(I$4/(1+($B41-I$6)^2/I$5^2)) -> 0 | J41: =SUM(D41:I41) -> 0.05892898218 | L41: =(C41-J41)^2 -> 9.889728336e-05
B42: 31 | C42: 0.05384780191 | D42: =(1-D$3)*(D$4*EXP(-(($B42-D$6)^2/(D$5/1.67)^2)))+D$3*(D$4/(1+($B42-D$6)^2/D$5^2)) -> 0.004599545441 | E42: =(1-E$3)*(E$4*EXP(-(($B42-E$6)^2/(E$5/1.67)^2)))+E$3*(E$4/(1+($B42-E$6)^2/E$5^2)) -> 0.06143416673 | F42: =(1-F$3)*(F$4*EXP(-(($B42-F$6)^2/(F$5/1.67)^2)))+F$3*(F$4/(1+($B42-F$6)^2/F$5^2)) -> 0.0002131853993 | G42: =(1-G$3)*(G$4*EXP(-(($B42-G$6)^2/(G$5/1.67)^2)))+G$3*(G$4/(1+($B42-G$6)^2/G$5^2)) -> 0 | H42: =(1-H$3)*(H$4*EXP(-(($B42-H$6)^2/(H$5/1.67)^2)))+H$3*(H$4/(1+($B42-H$6)^2/H$5^2)) -> 0 | I42: =(1-I$3)*(I$4*EXP(-(($B42-I$6)^2/(I$5/1.67)^2)))+I$3*(I$4/(1+($B42-I$6)^2/I$5^2)) -> 0 | J42: =SUM(D42:I42) -> 0.06624689757 | L42: =(C42-J42)^2 -> 0.0001537375733
B43: 32 | C43: 0.05658004733 | D43: =(1-D$3)*(D$4*EXP(-(($B43-D$6)^2/(D$5/1.67)^2)))+D$3*(D$4/(1+($B43-D$6)^2/D$5^2)) -> 0.004855737902 | E43: =(1-E$3)*(E$4*EXP(-(($B43-E$6)^2/(E$5/1.67)^2)))+E$3*(E$4/(1+($B43-E$6)^2/E$5^2)) -> 0.07124324789 | F43: =(1-F$3)*(F$4*EXP(-(($B43-F$6)^2/(F$5/1.67)^2)))+F$3*(F$4/(1+($B43-F$6)^2/F$5^2)) -> 3.116619424e-05 | G43: =(1-G$3)*(G$4*EXP(-(($B43-G$6)^2/(G$5/1.67)^2)))+G$3*(G$4/(1+($B43-G$6)^2/G$5^2)) -> 0 | H43: =(1-H$3)*(H$4*EXP(-(($B43-H$6)^2/(H$5/1.67)^2)))+H$3*(H$4/(1+($B43-H$6)^2/H$5^2)) -> 0 | I43: =(1-I$3)*(I$4*EXP(-(($B43-I$6)^2/(I$5/1.67)^2)))+I$3*(I$4/(1+($B43-I$6)^2/I$5^2)) -> 0 | J43: =SUM(D43:I43) -> 0.07613015199 | L43: =(C43-J43)^2 -> 0.000382206592
B44: 33 | C44: 0.07693443074 | D44: =(1-D$3)*(D$4*EXP(-(($B44-D$6)^2/(D$5/1.67)^2)))+D$3*(D$4/(1+($B44-D$6)^2/D$5^2)) -> 0.005133873508 | E44: =(1-E$3)*(E$4*EXP(-(($B44-E$6)^2/(E$5/1.67)^2)))+E$3*(E$4/(1+($B44-E$6)^2/E$5^2)) -> 0.08383462658 | F44: =(1-F$3)*(F$4*EXP(-(($B44-F$6)^2/(F$5/1.67)^2)))+F$3*(F$4/(1+($B44-F$6)^2/F$5^2)) -> 3.435257535e-06 | G44: =(1-G$3)*(G$4*EXP(-(($B44-G$6)^2/(G$5/1.67)^2)))+G$3*(G$4/(1+($B44-G$6)^2/G$5^2)) -> 0 | H44: =(1-H$3)*(H$4*EXP(-(($B44-H$6)^2/(H$5/1.67)^2)))+H$3*(H$4/(1+($B44-H$6)^2/H$5^2)) -> 0 | I44: =(1-I$3)*(I$4*EXP(-(($B44-I$6)^2/(I$5/1.67)^2)))+I$3*(I$4/(1+($B44-I$6)^2/I$5^2)) -> 0 | J44: =SUM(D44:I44) -> 0.08897193535 | L44: =(C44-J44)^2 -> 0.0001449015172
B45: 34 | C45: 0.09363198602 | D45: =(1-D$3)*(D$4*EXP(-(($B45-D$6)^2/(D$5/1.67)^2)))+D$3*(D$4/(1+($B45-D$6)^2/D$5^2)) -> 0.005438071067 | E45: =(1-E$3)*(E$4*EXP(-(($B45-E$6)^2/(E$5/1.67)^2)))+E$3*(E$4/(1+($B45-E$6)^2/E$5^2)) -> 0.1014803373 | F45: =(1-F$3)*(F$4*EXP(-(($B45-F$6)^2/(F$5/1.67)^2)))+F$3*(F$4/(1+($B45-F$6)^2/F$5^2)) -> 2.854854907e-07 | G45: =(1-G$3)*(G$4*EXP(-(($B45-G$6)^2/(G$5/1.67)^2)))+G$3*(G$4/(1+($B45-G$6)^2/G$5^2)) -> 0 | H45: =(1-H$3)*(H$4*EXP(-(($B45-H$6)^2/(H$5/1.67)^2)))+H$3*(H$4/(1+($B45-H$6)^2/H$5^2)) -> 0 | I45: =(1-I$3)*(I$4*EXP(-(($B45-I$6)^2/(I$5/1.67)^2)))+I$3*(I$4/(1+($B45-I$6)^2/I$5^2)) -> 0 | J45: =SUM(D45:I45) -> 0.1069186938 | L45: =(C45-J45)^2 -> 0.0001765366043
B46: 35 | C46: 0.1397935441 | D46: =(1-D$3)*(D$4*EXP(-(($B46-D$6)^2/(D$5/1.67)^2)))+D$3*(D$4/(1+($B46-D$6)^2/D$5^2)) -> 0.005774947043 | E46: =(1-E$3)*(E$4*EXP(-(($B46-E$6)^2/(E$5/1.67)^2)))+E$3*(E$4/(1+($B46-E$6)^2/E$5^2)) -> 0.1296021047 | F46: =(1-F$3)*(F$4*EXP(-(($B46-F$6)^2/(F$5/1.67)^2)))+F$3*(F$4/(1+($B46-F$6)^2/F$5^2)) -> 1.788784377e-08 | G46: =(1-G$3)*(G$4*EXP(-(($B46-G$6)^2/(G$5/1.67)^2)))+G$3*(G$4/(1+($B46-G$6)^2/G$5^2)) -> 0 | H46: =(1-H$3)*(H$4*EXP(-(($B46-H$6)^2/(H$5/1.67)^2)))+H$3*(H$4/(1+($B46-H$6)^2/H$5^2)) -> 0 | I46: =(1-I$3)*(I$4*EXP(-(($B46-I$6)^2/(I$5/1.67)^2)))+I$3*(I$4/(1+($B46-I$6)^2/I$5^2)) -> 0 | J46: =SUM(D46:I46) -> 0.1353770696 | L46: =(C46-J46)^2 -> 1.950524645e-05
B47: 36 | C47: 0.1613036141 | D47: =(1-D$3)*(D$4*EXP(-(($B47-D$6)^2/(D$5/1.67)^2)))+D$3*(D$4/(1+($B47-D$6)^2/D$5^2)) -> 0.006155761926 | E47: =(1-E$3)*(E$4*EXP(-(($B47-E$6)^2/(E$5/1.67)^2)))+E$3*(E$4/(1+($B47-E$6)^2/E$5^2)) -> 0.1792596775 | F47: =(1-F$3)*(F$4*EXP(-(($B47-F$6)^2/(F$5/1.67)^2)))+F$3*(F$4/(1+($B47-F$6)^2/F$5^2)) -> 8.4504757e-10 | G47: =(1-G$3)*(G$4*EXP(-(($B47-G$6)^2/(G$5/1.67)^2)))+G$3*(G$4/(1+($B47-G$6)^2/G$5^2)) -> 0 | H47: =(1-H$3)*(H$4*EXP(-(($B47-H$6)^2/(H$5/1.67)^2)))+H$3*(H$4/(1+($B47-H$6)^2/H$5^2)) -> 0 | I47: =(1-I$3)*(I$4*EXP(-(($B47-I$6)^2/(I$5/1.67)^2)))+I$3*(I$4/(1+($B47-I$6)^2/I$5^2)) -> 0 | J47: =SUM(D47:I47) -> 0.1854154403 | L47: =(C47-J47)^2 -> 0.0005813801636
B48: 37 | C48: 0.2754332912 | D48: =(1-D$3)*(D$4*EXP(-(($B48-D$6)^2/(D$5/1.67)^2)))+D$3*(D$4/(1+($B48-D$6)^2/D$5^2)) -> 0.006600236764 | E48: =(1-E$3)*(E$4*EXP(-(($B48-E$6)^2/(E$5/1.67)^2)))+E$3*(E$4/(1+($B48-E$6)^2/E$5^2)) -> 0.2677967285 | F48: =(1-F$3)*(F$4*EXP(-(($B48-F$6)^2/(F$5/1.67)^2)))+F$3*(F$4/(1+($B48-F$6)^2/F$5^2)) -> 3.009910165e-11 | G48: =(1-G$3)*(G$4*EXP(-(($B48-G$6)^2/(G$5/1.67)^2)))+G$3*(G$4/(1+($B48-G$6)^2/G$5^2)) -> 0 | H48: =(1-H$3)*(H$4*EXP(-(($B48-H$6)^2/(H$5/1.67)^2)))+H$3*(H$4/(1+($B48-H$6)^2/H$5^2)) -> 0 | I48: =(1-I$3)*(I$4*EXP(-(($B48-I$6)^2/(I$5/1.67)^2)))+I$3*(I$4/(1+($B48-I$6)^2/I$5^2)) -> 0 | J48: =SUM(D48:I48) -> 0.2743969653 | L48: =(C48-J48)^2 -> 1.07397136e-06
B49: 38 | C49: 0.3956631875 | D49: =(1-D$3)*(D$4*EXP(-(($B49-D$6)^2/(D$5/1.67)^2)))+D$3*(D$4/(1+($B49-D$6)^2/D$5^2)) -> 0.0071430707 | E49: =(1-E$3)*(E$4*EXP(-(($B49-E$6)^2/(E$5/1.67)^2)))+E$3*(E$4/(1+($B49-E$6)^2/E$5^2)) -> 0.4126205277 | F49: =(1-F$3)*(F$4*EXP(-(($B49-F$6)^2/(F$5/1.67)^2)))+F$3*(F$4/(1+($B49-F$6)^2/F$5^2)) -> 8.083047334e-13 | G49: =(1-G$3)*(G$4*EXP(-(($B49-G$6)^2/(G$5/1.67)^2)))+G$3*(G$4/(1+($B49-G$6)^2/G$5^2)) -> 0 | H49: =(1-H$3)*(H$4*EXP(-(($B49-H$6)^2/(H$5/1.67)^2)))+H$3*(H$4/(1+($B49-H$6)^2/H$5^2)) -> 0 | I49: =(1-I$3)*(I$4*EXP(-(($B49-I$6)^2/(I$5/1.67)^2)))+I$3*(I$4/(1+($B49-I$6)^2/I$5^2)) -> 0 | J49: =SUM(D49:I49) -> 0.4197635984 | L49: =(C49-J49)^2 -> 0.000580829806
B50: 39 | C50: 0.6543454351 | D50: =(1-D$3)*(D$4*EXP(-(($B50-D$6)^2/(D$5/1.67)^2)))+D$3*(D$4/(1+($B50-D$6)^2/D$5^2)) -> 0.007844597315 | E50: =(1-E$3)*(E$4*EXP(-(($B50-E$6)^2/(E$5/1.67)^2)))+E$3*(E$4/(1+($B50-E$6)^2/E$5^2)) -> 0.6151747806 | F50: =(1-F$3)*(F$4*EXP(-(($B50-F$6)^2/(F$5/1.67)^2)))+F$3*(F$4/(1+($B50-F$6)^2/F$5^2)) -> 1.636612721e-14 | G50: =(1-G$3)*(G$4*EXP(-(($B50-G$6)^2/(G$5/1.67)^2)))+G$3*(G$4/(1+($B50-G$6)^2/G$5^2)) -> 0 | H50: =(1-H$3)*(H$4*EXP(-(($B50-H$6)^2/(H$5/1.67)^2)))+H$3*(H$4/(1+($B50-H$6)^2/H$5^2)) -> 0 | I50: =(1-I$3)*(I$4*EXP(-(($B50-I$6)^2/(I$5/1.67)^2)))+I$3*(I$4/(1+($B50-I$6)^2/I$5^2)) -> 0 | J50: =SUM(D50:I50) -> 0.6230193779 | L50: =(C50-J50)^2 -> 0.0009813218574
B51: 40 | C51: 0.8272661989 | D51: =(1-D$3)*(D$4*EXP(-(($B51-D$6)^2/(D$5/1.67)^2)))+D$3*(D$4/(1+($B51-D$6)^2/D$5^2)) -> 0.008807408926 | E51: =(1-E$3)*(E$4*EXP(-(($B51-E$6)^2/(E$5/1.67)^2)))+E$3*(E$4/(1+($B51-E$6)^2/E$5^2)) -> 0.842860933 | F51: =(1-F$3)*(F$4*EXP(-(($B51-F$6)^2/(F$5/1.67)^2)))+F$3*(F$4/(1+($B51-F$6)^2/F$5^2)) -> 2.498422804e-16 | G51: =(1-G$3)*(G$4*EXP(-(($B51-G$6)^2/(G$5/1.67)^2)))+G$3*(G$4/(1+($B51-G$6)^2/G$5^2)) -> 0 | H51: =(1-H$3)*(H$4*EXP(-(($B51-H$6)^2/(H$5/1.67)^2)))+H$3*(H$4/(1+($B51-H$6)^2/H$5^2)) -> 0 | I51: =(1-I$3)*(I$4*EXP(-(($B51-I$6)^2/(I$5/1.67)^2)))+I$3*(I$4/(1+($B51-I$6)^2/I$5^2)) -> 0 | J51: =SUM(D51:I51) -> 0.851668342 | L51: =(C51-J51)^2 -> 0.0005954645888
B52: 41 | C52: 1.106437051 | D52: =(1-D$3)*(D$4*EXP(-(($B52-D$6)^2/(D$5/1.67)^2)))+D$3*(D$4/(1+($B52-D$6)^2/D$5^2)) -> 0.01020099345 | E52: =(1-E$3)*(E$4*EXP(-(($B52-E$6)^2/(E$5/1.67)^2)))+E$3*(E$4/(1+($B52-E$6)^2/E$5^2)) -> 1.028393293 | F52: =(1-F$3)*(F$4*EXP(-(($B52-F$6)^2/(F$5/1.67)^2)))+F$3*(F$4/(1+($B52-F$6)^2/F$5^2)) -> 2.875644264e-18 | G52: =(1-G$3)*(G$4*EXP(-(($B52-G$6)^2/(G$5/1.67)^2)))+G$3*(G$4/(1+($B52-G$6)^2/G$5^2)) -> 0 | H52: =(1-H$3)*(H$4*EXP(-(($B52-H$6)^2/(H$5/1.67)^2)))+H$3*(H$4/(1+($B52-H$6)^2/H$5^2)) -> 0 | I52: =(1-I$3)*(I$4*EXP(-(($B52-I$6)^2/(I$5/1.67)^2)))+I$3*(I$4/(1+($B52-I$6)^2/I$5^2)) -> 0 | J52: =SUM(D52:I52) -> 1.038594286 | L52: =(C52-J52)^2 -> 0.004602640785
B53: 42 | C53: 1.024400122 | D53: =(1-D$3)*(D$4*EXP(-(($B53-D$6)^2/(D$5/1.67)^2)))+D$3*(D$4/(1+($B53-D$6)^2/D$5^2)) -> 0.01229620806 | E53: =(1-E$3)*(E$4*EXP(-(($B53-E$6)^2/(E$5/1.67)^2)))+E$3*(E$4/(1+($B53-E$6)^2/E$5^2)) -> 1.099978944 | F53: =(1-F$3)*(F$4*EXP(-(($B53-F$6)^2/(F$5/1.67)^2)))+F$3*(F$4/(1+($B53-F$6)^2/F$5^2)) -> 2.495477146e-20 | G53: =(1-G$3)*(G$4*EXP(-(($B53-G$6)^2/(G$5/1.67)^2)))+G$3*(G$4/(1+($B53-G$6)^2/G$5^2)) -> 0 | H53: =(1-H$3)*(H$4*EXP(-(($B53-H$6)^2/(H$5/1.67)^2)))+H$3*(H$4/(1+($B53-H$6)^2/H$5^2)) -> 0 | I53: =(1-I$3)*(I$4*EXP(-(($B53-I$6)^2/(I$5/1.67)^2)))+I$3*(I$4/(1+($B53-I$6)^2/I$5^2)) -> 0 | J53: =SUM(D53:I53) -> 1.112275152 | L53: =(C53-J53)^2 -> 0.007722020966
B54: 43 | C54: 1.105322349 | D54: =(1-D$3)*(D$4*EXP(-(($B54-D$6)^2/(D$5/1.67)^2)))+D$3*(D$4/(1+($B54-D$6)^2/D$5^2)) -> 0.01551040924 | E54: =(1-E$3)*(E$4*EXP(-(($B54-E$6)^2/(E$5/1.67)^2)))+E$3*(E$4/(1+($B54-E$6)^2/E$5^2)) -> 1.026622951 | F54: =(1-F$3)*(F$4*EXP(-(($B54-F$6)^2/(F$5/1.67)^2)))+F$3*(F$4/(1+($B54-F$6)^2/F$5^2)) -> 1.63275584e-22 | G54: =(1-G$3)*(G$4*EXP(-(($B54-G$6)^2/(G$5/1.67)^2)))+G$3*(G$4/(1+($B54-G$6)^2/G$5^2)) -> 0 | H54: =(1-H$3)*(H$4*EXP(-(($B54-H$6)^2/(H$5/1.67)^2)))+H$3*(H$4/(1+($B54-H$6)^2/H$5^2)) -> 0 | I54: =(1-I$3)*(I$4*EXP(-(($B54-I$6)^2/(I$5/1.67)^2)))+I$3*(I$4/(1+($B54-I$6)^2/I$5^2)) -> 0 | J54: =SUM(D54:I54) -> 1.04213336 | L54: =(C54-J54)^2 -> 0.003992848327
B55: 44 | C55: 0.829406591 | D55: =(1-D$3)*(D$4*EXP(-(($B55-D$6)^2/(D$5/1.67)^2)))+D$3*(D$4/(1+($B55-D$6)^2/D$5^2)) -> 0.0204618958 | E55: =(1-E$3)*(E$4*EXP(-(($B55-E$6)^2/(E$5/1.67)^2)))+E$3*(E$4/(1+($B55-E$6)^2/E$5^2)) -> 0.8400651036 | F55: =(1-F$3)*(F$4*EXP(-(($B55-F$6)^2/(F$5/1.67)^2)))+F$3*(F$4/(1+($B55-F$6)^2/F$5^2)) -> 8.054491118e-25 | G55: =(1-G$3)*(G$4*EXP(-(($B55-G$6)^2/(G$5/1.67)^2)))+G$3*(G$4/(1+($B55-G$6)^2/G$5^2)) -> 0 | H55: =(1-H$3)*(H$4*EXP(-(($B55-H$6)^2/(H$5/1.67)^2)))+H$3*(H$4/(1+($B55-H$6)^2/H$5^2)) -> 0 | I55: =(1-I$3)*(I$4*EXP(-(($B55-I$6)^2/(I$5/1.67)^2)))+I$3*(I$4/(1+($B55-I$6)^2/I$5^2)) -> 0 | J55: =SUM(D55:I55) -> 0.8605269994 | L55: =(C55-J55)^2 -> 0.0009684798148
B56: 45 | C56: 0.6384340544 | D56: =(1-D$3)*(D$4*EXP(-(($B56-D$6)^2/(D$5/1.67)^2)))+D$3*(D$4/(1+($B56-D$6)^2/D$5^2)) -> 0.02802873426 | E56: =(1-E$3)*(E$4*EXP(-(($B56-E$6)^2/(E$5/1.67)^2)))+E$3*(E$4/(1+($B56-E$6)^2/E$5^2)) -> 0.6123309416 | F56: =(1-F$3)*(F$4*EXP(-(($B56-F$6)^2/(F$5/1.67)^2)))+F$3*(F$4/(1+($B56-F$6)^2/F$5^2)) -> 2.995740427e-27 | G56: =(1-G$3)*(G$4*EXP(-(($B56-G$6)^2/(G$5/1.67)^2)))+G$3*(G$4/(1+($B56-G$6)^2/G$5^2)) -> 0 | H56: =(1-H$3)*(H$4*EXP(-(($B56-H$6)^2/(H$5/1.67)^2)))+H$3*(H$4/(1+($B56-H$6)^2/H$5^2)) -> 0 | I56: =(1-I$3)*(I$4*EXP(-(($B56-I$6)^2/(I$5/1.67)^2)))+I$3*(I$4/(1+($B56-I$6)^2/I$5^2)) -> 0 | J56: =SUM(D56:I56) -> 0.6403596759 | L56: =(C56-J56)^2 -> 3.708018295e-06
B57: 46 | C57: 0.4339857061 | D57: =(1-D$3)*(D$4*EXP(-(($B57-D$6)^2/(D$5/1.67)^2)))+D$3*(D$4/(1+($B57-D$6)^2/D$5^2)) -> 0.03940207241 | E57: =(1-E$3)*(E$4*EXP(-(($B57-E$6)^2/(E$5/1.67)^2)))+E$3*(E$4/(1+($B57-E$6)^2/E$5^2)) -> 0.4103907546 | F57: =(1-F$3)*(F$4*EXP(-(($B57-F$6)^2/(F$5/1.67)^2)))+F$3*(F$4/(1+($B57-F$6)^2/F$5^2)) -> 8.400777174e-30 | G57: =(1-G$3)*(G$4*EXP(-(($B57-G$6)^2/(G$5/1.67)^2)))+G$3*(G$4/(1+($B57-G$6)^2/G$5^2)) -> 0 | H57: =(1-H$3)*(H$4*EXP(-(($B57-H$6)^2/(H$5/1.67)^2)))+H$3*(H$4/(1+($B57-H$6)^2/H$5^2)) -> 0 | I57: =(1-I$3)*(I$4*EXP(-(($B57-I$6)^2/(I$5/1.67)^2)))+I$3*(I$4/(1+($B57-I$6)^2/I$5^2)) -> 0 | J57: =SUM(D57:I57) -> 0.449792827 | L57: =(C57-J57)^2 -> 0.0002498650725
B58: 47 | C58: 0.3528723621 | D58: =(1-D$3)*(D$4*EXP(-(($B58-D$6)^2/(D$5/1.67)^2)))+D$3*(D$4/(1+($B58-D$6)^2/D$5^2)) -> 0.05611830205 | E58: =(1-E$3)*(E$4*EXP(-(($B58-E$6)^2/(E$5/1.67)^2)))+E$3*(E$4/(1+($B58-E$6)^2/E$5^2)) -> 0.266346868 | F58: =(1-F$3)*(F$4*EXP(-(($B58-F$6)^2/(F$5/1.67)^2)))+F$3*(F$4/(1+($B58-F$6)^2/F$5^2)) -> 1.776167679e-32 | G58: =(1-G$3)*(G$4*EXP(-(($B58-G$6)^2/(G$5/1.67)^2)))+G$3*(G$4/(1+($B58-G$6)^2/G$5^2)) -> 0 | H58: =(1-H$3)*(H$4*EXP(-(($B58-H$6)^2/(H$5/1.67)^2)))+H$3*(H$4/(1+($B58-H$6)^2/H$5^2)) -> 0 | I58: =(1-I$3)*(I$4*EXP(-(($B58-I$6)^2/(I$5/1.67)^2)))+I$3*(I$4/(1+($B58-I$6)^2/I$5^2)) -> 0 | J58: =SUM(D58:I58) -> 0.3224651701 | L58: =(C58-J58)^2 -> 0.0009245973272
B59: 48 | C59: 0.2731340649 | D59: =(1-D$3)*(D$4*EXP(-(($B59-D$6)^2/(D$5/1.67)^2)))+D$3*(D$4/(1+($B59-D$6)^2/D$5^2)) -> 0.0800492282 | E59: =(1-E$3)*(E$4*EXP(-(($B59-E$6)^2/(E$5/1.67)^2)))+E$3*(E$4/(1+($B59-E$6)^2/E$5^2)) -> 0.1784260932 | F59: =(1-F$3)*(F$4*EXP(-(($B59-F$6)^2/(F$5/1.67)^2)))+F$3*(F$4/(1+($B59-F$6)^2/F$5^2)) -> 2.831376821e-35 | G59: =(1-G$3)*(G$4*EXP(-(($B59-G$6)^2/(G$5/1.67)^2)))+G$3*(G$4/(1+($B59-G$6)^2/G$5^2)) -> 0 | H59: =(1-H$3)*(H$4*EXP(-(($B59-H$6)^2/(H$5/1.67)^2)))+H$3*(H$4/(1+($B59-H$6)^2/H$5^2)) -> 0 | I59: =(1-I$3)*(I$4*EXP(-(($B59-I$6)^2/(I$5/1.67)^2)))+I$3*(I$4/(1+($B59-I$6)^2/I$5^2)) -> 0 | J59: =SUM(D59:I59) -> 0.2584753214 | L59: =(C59-J59)^2 -> 0.0002148787598
B60: 49 | C60: 0.2563253952 | D60: =(1-D$3)*(D$4*EXP(-(($B60-D$6)^2/(D$5/1.67)^2)))+D$3*(D$4/(1+($B60-D$6)^2/D$5^2)) -> 0.1133267831 | E60: =(1-E$3)*(E$4*EXP(-(($B60-E$6)^2/(E$5/1.67)^2)))+E$3*(E$4/(1+($B60-E$6)^2/E$5^2)) -> 0.1291402225 | F60: =(1-F$3)*(F$4*EXP(-(($B60-F$6)^2/(F$5/1.67)^2)))+F$3*(F$4/(1+($B60-F$6)^2/F$5^2)) -> 3.402989382e-38 | G60: =(1-G$3)*(G$4*EXP(-(($B60-G$6)^2/(G$5/1.67)^2)))+G$3*(G$4/(1+($B60-G$6)^2/G$5^2)) -> 0 | H60: =(1-H$3)*(H$4*EXP(-(($B60-H$6)^2/(H$5/1.67)^2)))+H$3*(H$4/(1+($B60-H$6)^2/H$5^2)) -> 0 | I60: =(1-I$3)*(I$4*EXP(-(($B60-I$6)^2/(I$5/1.67)^2)))+I$3*(I$4/(1+($B60-I$6)^2/I$5^2)) -> 0 | J60: =SUM(D60:I60) -> 0.2424670056 | L60: =(C60-J60)^2 -> 0.0001920549638
B61: 50 | C61: 0.2659575623 | D61: =(1-D$3)*(D$4*EXP(-(($B61-D$6)^2/(D$5/1.67)^2)))+D$3*(D$4/(1+($B61-D$6)^2/D$5^2)) -> 0.1581812394 | E61: =(1-E$3)*(E$4*EXP(-(($B61-E$6)^2/(E$5/1.67)^2)))+E$3*(E$4/(1+($B61-E$6)^2/E$5^2)) -> 0.1012066991 | F61: =(1-F$3)*(F$4*EXP(-(($B61-F$6)^2/(F$5/1.67)^2)))+F$3*(F$4/(1+($B61-F$6)^2/F$5^2)) -> 3.08370431e-41 | G61: =(1-G$3)*(G$4*EXP(-(($B61-G$6)^2/(G$5/1.67)^2)))+G$3*(G$4/(1+($B61-G$6)^2/G$5^2)) -> 0 | H61: =(1-H$3)*(H$4*EXP(-(($B61-H$6)^2/(H$5/1.67)^2)))+H$3*(H$4/(1+($B61-H$6)^2/H$5^2)) -> 0 | I61: =(1-I$3)*(I$4*EXP(-(($B61-I$6)^2/(I$5/1.67)^2)))+I$3*(I$4/(1+($B61-I$6)^2/I$5^2)) -> 0 | J61: =SUM(D61:I61) -> 0.2593879385 | L61: =(C61-J61)^2 -> 4.315995687e-05
B62: 51 | C62: 0.2991801415 | D62: =(1-D$3)*(D$4*EXP(-(($B62-D$6)^2/(D$5/1.67)^2)))+D$3*(D$4/(1+($B62-D$6)^2/D$5^2)) -> 0.2166814912 | E62: =(1-E$3)*(E$4*EXP(-(($B62-E$6)^2/(E$5/1.67)^2)))+E$3*(E$4/(1+($B62-E$6)^2/E$5^2)) -> 0.0836499905 | F62: =(1-F$3)*(F$4*EXP(-(($B62-F$6)^2/(F$5/1.67)^2)))+F$3*(F$4/(1+($B62-F$6)^2/F$5^2)) -> 2.106852217e-44 | G62: =(1-G$3)*(G$4*EXP(-(($B62-G$6)^2/(G$5/1.67)^2)))+G$3*(G$4/(1+($B62-G$6)^2/G$5^2)) -> 0 | H62: =(1-H$3)*(H$4*EXP(-(($B62-H$6)^2/(H$5/1.67)^2)))+H$3*(H$4/(1+($B62-H$6)^2/H$5^2)) -> 0 | I62: =(1-I$3)*(I$4*EXP(-(($B62-I$6)^2/(I$5/1.67)^2)))+I$3*(I$4/(1+($B62-I$6)^2/I$5^2)) -> 0 | J62: =SUM(D62:I62) -> 0.3003314817 | L62: =(C62-J62)^2 -> 1.325584217e-06
B63: 52 | C63: 0.3838974244 | D63: =(1-D$3)*(D$4*EXP(-(($B63-D$6)^2/(D$5/1.67)^2)))+D$3*(D$4/(1+($B63-D$6)^2/D$5^2)) -> 0.2903836834 | E63: =(1-E$3)*(E$4*EXP(-(($B63-E$6)^2/(E$5/1.67)^2)))+E$3*(E$4/(1+($B63-E$6)^2/E$5^2)) -> 0.07110396931 | F63: =(1-F$3)*(F$4*EXP(-(($B63-F$6)^2/(F$5/1.67)^2)))+F$3*(F$4/(1+($B63-F$6)^2/F$5^2)) -> 1.085287077e-47 | G63: =(1-G$3)*(G$4*EXP(-(($B63-G$6)^2/(G$5/1.67)^2)))+G$3*(G$4/(1+($B63-G$6)^2/G$5^2)) -> 0 | H63: =(1-H$3)*(H$4*EXP(-(($B63-H$6)^2/(H$5/1.67)^2)))+H$3*(H$4/(1+($B63-H$6)^2/H$5^2)) -> 0 | I63: =(1-I$3)*(I$4*EXP(-(($B63-I$6)^2/(I$5/1.67)^2)))+I$3*(I$4/(1+($B63-I$6)^2/I$5^2)) -> 0 | J63: =SUM(D63:I63) -> 0.3614876527 | L63: =(C63-J63)^2 -> 0.0005021978673
B64: 53 | C64: 0.4508323633 | D64: =(1-D$3)*(D$4*EXP(-(($B64-D$6)^2/(D$5/1.67)^2)))+D$3*(D$4/(1+($B64-D$6)^2/D$5^2)) -> 0.3799188925 | E64: =(1-E$3)*(E$4*EXP(-(($B64-E$6)^2/(E$5/1.67)^2)))+E$3*(E$4/(1+($B64-E$6)^2/E$5^2)) -> 0.06132262065 | F64: =(1-F$3)*(F$4*EXP(-(($B64-F$6)^2/(F$5/1.67)^2)))+F$3*(F$4/(1+($B64-F$6)^2/F$5^2)) -> 4.215066217e-51 | G64: =(1-G$3)*(G$4*EXP(-(($B64-G$6)^2/(G$5/1.67)^2)))+G$3*(G$4/(1+($B64-G$6)^2/G$5^2)) -> 0 | H64: =(1-H$3)*(H$4*EXP(-(($B64-H$6)^2/(H$5/1.67)^2)))+H$3*(H$4/(1+($B64-H$6)^2/H$5^2)) -> 0 | I64: =(1-I$3)*(I$4*EXP(-(($B64-I$6)^2/(I$5/1.67)^2)))+I$3*(I$4/(1+($B64-I$6)^2/I$5^2)) -> 0 | J64: =SUM(D64:I64) -> 0.4412415132 | L64: =(C64-J64)^2 -> 9.198440615e-05
B65: 54 | C65: 0.5985965482 | D65: =(1-D$3)*(D$4*EXP(-(($B65-D$6)^2/(D$5/1.67)^2)))+D$3*(D$4/(1+($B65-D$6)^2/D$5^2)) -> 0.4845774311 | E65: =(1-E$3)*(E$4*EXP(-(($B65-E$6)^2/(E$5/1.67)^2)))+E$3*(E$4/(1+($B65-E$6)^2/E$5^2)) -> 0.0533753464 | F65: =(1-F$3)*(F$4*EXP(-(($B65-F$6)^2/(F$5/1.67)^2)))+F$3*(F$4/(1+($B65-F$6)^2/F$5^2)) -> 1.234279125e-54 | G65: =(1-G$3)*(G$4*EXP(-(($B65-G$6)^2/(G$5/1.67)^2)))+G$3*(G$4/(1+($B65-G$6)^2/G$5^2)) -> 0 | H65: =(1-H$3)*(H$4*EXP(-(($B65-H$6)^2/(H$5/1.67)^2)))+H$3*(H$4/(1+($B65-H$6)^2/H$5^2)) -> 0 | I65: =(1-I$3)*(I$4*EXP(-(($B65-I$6)^2/(I$5/1.67)^2)))+I$3*(I$4/(1+($B65-I$6)^2/I$5^2)) -> 0 | J65: =SUM(D65:I65) -> 0.5379527775 | L65: =(C65-J65)^2 -> 0.003677666919
B66: 55 | C66: 0.6931675527 | D66: =(1-D$3)*(D$4*EXP(-(($B66-D$6)^2/(D$5/1.67)^2)))+D$3*(D$4/(1+($B66-D$6)^2/D$5^2)) -> 0.6019697386 | E66: =(1-E$3)*(E$4*EXP(-(($B66-E$6)^2/(E$5/1.67)^2)))+E$3*(E$4/(1+($B66-E$6)^2/E$5^2)) -> 0.04680172795 | F66: =(1-F$3)*(F$4*EXP(-(($B66-F$6)^2/(F$5/1.67)^2)))+F$3*(F$4/(1+($B66-F$6)^2/F$5^2)) -> 2.725031821e-58 | G66: =(1-G$3)*(G$4*EXP(-(($B66-G$6)^2/(G$5/1.67)^2)))+G$3*(G$4/(1+($B66-G$6)^2/G$5^2)) -> 0 | H66: =(1-H$3)*(H$4*EXP(-(($B66-H$6)^2/(H$5/1.67)^2)))+H$3*(H$4/(1+($B66-H$6)^2/H$5^2)) -> 0 | I66: =(1-I$3)*(I$4*EXP(-(($B66-I$6)^2/(I$5/1.67)^2)))+I$3*(I$4/(1+($B66-I$6)^2/I$5^2)) -> 0 | J66: =SUM(D66:I66) -> 0.6487714666 | L66: =(C66-J66)^2 -> 0.001971012461
B67: 56 | C67: 0.8516329224 | D67: =(1-D$3)*(D$4*EXP(-(($B67-D$6)^2/(D$5/1.67)^2)))+D$3*(D$4/(1+($B67-D$6)^2/D$5^2)) -> 0.7278535748 | E67: =(1-E$3)*(E$4*EXP(-(($B67-E$6)^2/(E$5/1.67)^2)))+E$3*(E$4/(1+($B67-E$6)^2/E$5^2)) -> 0.04131035824 | F67: =(1-F$3)*(F$4*EXP(-(($B67-F$6)^2/(F$5/1.67)^2)))+F$3*(F$4/(1+($B67-F$6)^2/F$5^2)) -> 4.536062026e-62 | G67: =(1-G$3)*(G$4*EXP(-(($B67-G$6)^2/(G$5/1.67)^2)))+G$3*(G$4/(1+($B67-G$6)^2/G$5^2)) -> 0 | H67: =(1-H$3)*(H$4*EXP(-(($B67-H$6)^2/(H$5/1.67)^2)))+H$3*(H$4/(1+($B67-H$6)^2/H$5^2)) -> 0 | I67: =(1-I$3)*(I$4*EXP(-(($B67-I$6)^2/(I$5/1.67)^2)))+I$3*(I$4/(1+($B67-I$6)^2/I$5^2)) -> 0 | J67: =SUM(D67:I67) -> 0.769163933 | L67: =(C67-J67)^2 -> 0.006801134214
B68: 57 | C68: 0.8884474927 | D68: =(1-D$3)*(D$4*EXP(-(($B68-D$6)^2/(D$5/1.67)^2)))+D$3*(D$4/(1+($B68-D$6)^2/D$5^2)) -> 0.8562073008 | E68: =(1-E$3)*(E$4*EXP(-(($B68-E$6)^2/(E$5/1.67)^2)))+E$3*(E$4/(1+($B68-E$6)^2/E$5^2)) -> 0.03668745104 | F68: =(1-F$3)*(F$4*EXP(-(($B68-F$6)^2/(F$5/1.67)^2)))+F$3*(F$4/(1+($B68-F$6)^2/F$5^2)) -> 5.692926844e-66 | G68: =(1-G$3)*(G$4*EXP(-(($B68-G$6)^2/(G$5/1.67)^2)))+G$3*(G$4/(1+($B68-G$6)^2/G$5^2)) -> 0 | H68: =(1-H$3)*(H$4*EXP(-(($B68-H$6)^2/(H$5/1.67)^2)))+H$3*(H$4/(1+($B68-H$6)^2/H$5^2)) -> 0 | I68: =(1-I$3)*(I$4*EXP(-(($B68-I$6)^2/(I$5/1.67)^2)))+I$3*(I$4/(1+($B68-I$6)^2/I$5^2)) -> 0 | J68: =SUM(D68:I68) -> 0.8928947518 | L68: =(C68-J68)^2 -> 1.977811325e-05
B69: 58 | C69: 0.9382098225 | D69: =(1-D$3)*(D$4*EXP(-(($B69-D$6)^2/(D$5/1.67)^2)))+D$3*(D$4/(1+($B69-D$6)^2/D$5^2)) -> 0.9795963488 | E69: =(1-E$3)*(E$4*EXP(-(($B69-E$6)^2/(E$5/1.67)^2)))+E$3*(E$4/(1+($B69-E$6)^2/E$5^2)) -> 0.0327677853 | F69: =(1-F$3)*(F$4*EXP(-(($B69-F$6)^2/(F$5/1.67)^2)))+F$3*(F$4/(1+($B69-F$6)^2/F$5^2)) -> 5.386931258e-70 | G69: =(1-G$3)*(G$4*EXP(-(($B69-G$6)^2/(G$5/1.67)^2)))+G$3*(G$4/(1+($B69-G$6)^2/G$5^2)) -> 0 | H69: =(1-H$3)*(H$4*EXP(-(($B69-H$6)^2/(H$5/1.67)^2)))+H$3*(H$4/(1+($B69-H$6)^2/H$5^2)) -> 0 | I69: =(1-I$3)*(I$4*EXP(-(($B69-I$6)^2/(I$5/1.67)^2)))+I$3*(I$4/(1+($B69-I$6)^2/I$5^2)) -> 0 | J69: =SUM(D69:I69) -> 1.012364134 | L69: =(C69-J69)^2 -> 0.005498861925
B70: 59 | C70: 0.98972522 | D70: =(1-D$3)*(D$4*EXP(-(($B70-D$6)^2/(D$5/1.67)^2)))+D$3*(D$4/(1+($B70-D$6)^2/D$5^2)) -> 1.089827639 | E70: =(1-E$3)*(E$4*EXP(-(($B70-E$6)^2/(E$5/1.67)^2)))+E$3*(E$4/(1+($B70-E$6)^2/E$5^2)) -> 0.02942167888 | F70: =(1-F$3)*(F$4*EXP(-(($B70-F$6)^2/(F$5/1.67)^2)))+F$3*(F$4/(1+($B70-F$6)^2/F$5^2)) -> 3.843230889e-74 | G70: =(1-G$3)*(G$4*EXP(-(($B70-G$6)^2/(G$5/1.67)^2)))+G$3*(G$4/(1+($B70-G$6)^2/G$5^2)) -> 0 | H70: =(1-H$3)*(H$4*EXP(-(($B70-H$6)^2/(H$5/1.67)^2)))+H$3*(H$4/(1+($B70-H$6)^2/H$5^2)) -> 0 | I70: =(1-I$3)*(I$4*EXP(-(($B70-I$6)^2/(I$5/1.67)^2)))+I$3*(I$4/(1+($B70-I$6)^2/I$5^2)) -> 0 | J70: =SUM(D70:I70) -> 1.119249318 | L70: =(C70-J70)^2 -> 0.01677649191
B71: 60 | C71: 1.125295281 | D71: =(1-D$3)*(D$4*EXP(-(($B71-D$6)^2/(D$5/1.67)^2)))+D$3*(D$4/(1+($B71-D$6)^2/D$5^2)) -> 1.178824552 | E71: =(1-E$3)*(E$4*EXP(-(($B71-E$6)^2/(E$5/1.67)^2)))+E$3*(E$4/(1+($B71-E$6)^2/E$5^2)) -> 0.02654662218 | F71: =(1-F$3)*(F$4*EXP(-(($B71-F$6)^2/(F$5/1.67)^2)))+F$3*(F$4/(1+($B71-F$6)^2/F$5^2)) -> 2.067286798e-78 | G71: =(1-G$3)*(G$4*EXP(-(($B71-G$6)^2/(G$5/1.67)^2)))+G$3*(G$4/(1+($B71-G$6)^2/G$5^2)) -> 0 | H71: =(1-H$3)*(H$4*EXP(-(($B71-H$6)^2/(H$5/1.67)^2)))+H$3*(H$4/(1+($B71-H$6)^2/H$5^2)) -> 0 | I71: =(1-I$3)*(I$4*EXP(-(($B71-I$6)^2/(I$5/1.67)^2)))+I$3*(I$4/(1+($B71-I$6)^2/I$5^2)) -> 0 | J71: =SUM(D71:I71) -> 1.205371174 | L71: =(C71-J71)^2 -> 0.006412148687
B72: 61 | C72: 1.272920412 | D72: =(1-D$3)*(D$4*EXP(-(($B72-D$6)^2/(D$5/1.67)^2)))+D$3*(D$4/(1+($B72-D$6)^2/D$5^2)) -> 1.239597996 | E72: =(1-E$3)*(E$4*EXP(-(($B72-E$6)^2/(E$5/1.67)^2)))+E$3*(E$4/(1+($B72-E$6)^2/E$5^2)) -> 0.02406108988 | F72: =(1-F$3)*(F$4*EXP(-(($B72-F$6)^2/(F$5/1.67)^2)))+F$3*(F$4/(1+($B72-F$6)^2/F$5^2)) -> 8.384056534e-83 | G72: =(1-G$3)*(G$4*EXP(-(($B72-G$6)^2/(G$5/1.67)^2)))+G$3*(G$4/(1+($B72-G$6)^2/G$5^2)) -> 0 | H72: =(1-H$3)*(H$4*EXP(-(($B72-H$6)^2/(H$5/1.67)^2)))+H$3*(H$4/(1+($B72-H$6)^2/H$5^2)) -> 0 | I72: =(1-I$3)*(I$4*EXP(-(($B72-I$6)^2/(I$5/1.67)^2)))+I$3*(I$4/(1+($B72-I$6)^2/I$5^2)) -> 0 | J72: =SUM(D72:I72) -> 1.263659085 | L72: =(C72-J72)^2 -> 8.577216386e-05
B73: 62 | C73: 1.283830848 | D73: =(1-D$3)*(D$4*EXP(-(($B73-D$6)^2/(D$5/1.67)^2)))+D$3*(D$4/(1+($B73-D$6)^2/D$5^2)) -> 1.267153146 | E73: =(1-E$3)*(E$4*EXP(-(($B73-E$6)^2/(E$5/1.67)^2)))+E$3*(E$4/(1+($B73-E$6)^2/E$5^2)) -> 0.02189983394 | F73: =(1-F$3)*(F$4*EXP(-(($B73-F$6)^2/(F$5/1.67)^2)))+F$3*(F$4/(1+($B73-F$6)^2/F$5^2)) -> 2.563639043e-87 | G73: =(1-G$3)*(G$4*EXP(-(($B73-G$6)^2/(G$5/1.67)^2)))+G$3*(G$4/(1+($B73-G$6)^2/G$5^2)) -> 0 | H73: =(1-H$3)*(H$4*EXP(-(($B73-H$6)^2/(H$5/1.67)^2)))+H$3*(H$4/(1+($B73-H$6)^2/H$5^2)) -> 0 | I73: =(1-I$3)*(I$4*EXP(-(($B73-I$6)^2/(I$5/1.67)^2)))+I$3*(I$4/(1+($B73-I$6)^2/I$5^2)) -> 0 | J73: =SUM(D73:I73) -> 1.28905298 | L73: =(C73-J73)^2 -> 2.727066181e-05
B74: 63 | C74: 1.286947843 | D74: =(1-D$3)*(D$4*EXP(-(($B74-D$6)^2/(D$5/1.67)^2)))+D$3*(D$4/(1+($B74-D$6)^2/D$5^2)) -> 1.259168826 | E74: =(1-E$3)*(E$4*EXP(-(($B74-E$6)^2/(E$5/1.67)^2)))+E$3*(E$4/(1+($B74-E$6)^2/E$5^2)) -> 0.02001029145 | F74: =(1-F$3)*(F$4*EXP(-(($B74-F$6)^2/(F$5/1.67)^2)))+F$3*(F$4/(1+($B74-F$6)^2/F$5^2)) -> 5.910289692e-92 | G74: =(1-G$3)*(G$4*EXP(-(($B74-G$6)^2/(G$5/1.67)^2)))+G$3*(G$4/(1+($B74-G$6)^2/G$5^2)) -> 0 | H74: =(1-H$3)*(H$4*EXP(-(($B74-H$6)^2/(H$5/1.67)^2)))+H$3*(H$4/(1+($B74-H$6)^2/H$5^2)) -> 0 | I74: =(1-I$3)*(I$4*EXP(-(($B74-I$6)^2/(I$5/1.67)^2)))+I$3*(I$4/(1+($B74-I$6)^2/I$5^2)) -> 0 | J74: =SUM(D74:I74) -> 1.279179118 | L74: =(C74-J74)^2 -> 6.035308451e-05
B75: 64 | C75: 1.307790166 | D75: =(1-D$3)*(D$4*EXP(-(($B75-D$6)^2/(D$5/1.67)^2)))+D$3*(D$4/(1+($B75-D$6)^2/D$5^2)) -> 1.216321163 | E75: =(1-E$3)*(E$4*EXP(-(($B75-E$6)^2/(E$5/1.67)^2)))+E$3*(E$4/(1+($B75-E$6)^2/E$5^2)) -> 0.01834983901 | F75: =(1-F$3)*(F$4*EXP(-(($B75-F$6)^2/(F$5/1.67)^2)))+F$3*(F$4/(1+($B75-F$6)^2/F$5^2)) -> 1.027329766e-96 | G75: =(1-G$3)*(G$4*EXP(-(($B75-G$6)^2/(G$5/1.67)^2)))+G$3*(G$4/(1+($B75-G$6)^2/G$5^2)) -> 0 | H75: =(1-H$3)*(H$4*EXP(-(($B75-H$6)^2/(H$5/1.67)^2)))+H$3*(H$4/(1+($B75-H$6)^2/H$5^2)) -> 0 | I75: =(1-I$3)*(I$4*EXP(-(($B75-I$6)^2/(I$5/1.67)^2)))+I$3*(I$4/(1+($B75-I$6)^2/I$5^2)) -> 0 | J75: =SUM(D75:I75) -> 1.234671002 | L75: =(C75-J75)^2 -> 0.005346412176
B76: 65 | C76: 1.219402543 | D76: =(1-D$3)*(D$4*EXP(-(($B76-D$6)^2/(D$5/1.67)^2)))+D$3*(D$4/(1+($B76-D$6)^2/D$5^2)) -> 1.142188814 | E76: =(1-E$3)*(E$4*EXP(-(($B76-E$6)^2/(E$5/1.67)^2)))+E$3*(E$4/(1+($B76-E$6)^2/E$5^2)) -> 0.01688368802 | F76: =(1-F$3)*(F$4*EXP(-(($B76-F$6)^2/(F$5/1.67)^2)))+F$3*(F$4/(1+($B76-F$6)^2/F$5^2)) -> 1.346356858e-101 | G76: =(1-G$3)*(G$4*EXP(-(($B76-G$6)^2/(G$5/1.67)^2)))+G$3*(G$4/(1+($B76-G$6)^2/G$5^2)) -> 0 | H76: =(1-H$3)*(H$4*EXP(-(($B76-H$6)^2/(H$5/1.67)^2)))+H$3*(H$4/(1+($B76-H$6)^2/H$5^2)) -> 0 | I76: =(1-I$3)*(I$4*EXP(-(($B76-I$6)^2/(I$5/1.67)^2)))+I$3*(I$4/(1+($B76-I$6)^2/I$5^2)) -> 0 | J76: =SUM(D76:I76) -> 1.159072502 | L76: =(C76-J76)^2 -> 0.00363971389
B77: 66 | C77: 1.20191591 | D77: =(1-D$3)*(D$4*EXP(-(($B77-D$6)^2/(D$5/1.67)^2)))+D$3*(D$4/(1+($B77-D$6)^2/D$5^2)) -> 1.042758226 | E77: =(1-E$3)*(E$4*EXP(-(($B77-E$6)^2/(E$5/1.67)^2)))+E$3*(E$4/(1+($B77-E$6)^2/E$5^2)) -> 0.01558326397 | F77: =(1-F$3)*(F$4*EXP(-(($B77-F$6)^2/(F$5/1.67)^2)))+F$3*(F$4/(1+($B77-F$6)^2/F$5^2)) -> 1.330331009e-106 | G77: =(1-G$3)*(G$4*EXP(-(($B77-G$6)^2/(G$5/1.67)^2)))+G$3*(G$4/(1+($B77-G$6)^2/G$5^2)) -> 0 | H77: =(1-H$3)*(H$4*EXP(-(($B77-H$6)^2/(H$5/1.67)^2)))+H$3*(H$4/(1+($B77-H$6)^2/H$5^2)) -> 0 | I77: =(1-I$3)*(I$4*EXP(-(($B77-I$6)^2/(I$5/1.67)^2)))+I$3*(I$4/(1+($B77-I$6)^2/I$5^2)) -> 0 | J77: =SUM(D77:I77) -> 1.05834149 | L77: =(C77-J77)^2 -> 0.02061361407
B78: 67 | C78: 0.9190038393 | D78: =(1-D$3)*(D$4*EXP(-(($B78-D$6)^2/(D$5/1.67)^2)))+D$3*(D$4/(1+($B78-D$6)^2/D$5^2)) -> 0.9256239567 | E78: =(1-E$3)*(E$4*EXP(-(($B78-E$6)^2/(E$5/1.67)^2)))+E$3*(E$4/(1+($B78-E$6)^2/E$5^2)) -> 0.01442495216 | F78: =(1-F$3)*(F$4*EXP(-(($B78-F$6)^2/(F$5/1.67)^2)))+F$3*(F$4/(1+($B78-F$6)^2/F$5^2)) -> 9.910794109e-112 | G78: =(1-G$3)*(G$4*EXP(-(($B78-G$6)^2/(G$5/1.67)^2)))+G$3*(G$4/(1+($B78-G$6)^2/G$5^2)) -> 0 | H78: =(1-H$3)*(H$4*EXP(-(($B78-H$6)^2/(H$5/1.67)^2)))+H$3*(H$4/(1+($B78-H$6)^2/H$5^2)) -> 0 | I78: =(1-I$3)*(I$4*EXP(-(($B78-I$6)^2/(I$5/1.67)^2)))+I$3*(I$4/(1+($B78-I$6)^2/I$5^2)) -> 0 | J78: =SUM(D78:I78) -> 0.9400489088 | L78: =(C78-J78)^2 -> 0.0004428949519
B79: 68 | C79: 0.7299851478 | D79: =(1-D$3)*(D$4*EXP(-(($B79-D$6)^2/(D$5/1.67)^2)))+D$3*(D$4/(1+($B79-D$6)^2/D$5^2)) -> 0.7990323481 | E79: =(1-E$3)*(E$4*EXP(-(($B79-E$6)^2/(E$5/1.67)^2)))+E$3*(E$4/(1+($B79-E$6)^2/E$5^2)) -> 0.01338912137 | F79: =(1-F$3)*(F$4*EXP(-(($B79-F$6)^2/(F$5/1.67)^2)))+F$3*(F$4/(1+($B79-F$6)^2/F$5^2)) -> 5.566810089e-117 | G79: =(1-G$3)*(G$4*EXP(-(($B79-G$6)^2/(G$5/1.67)^2)))+G$3*(G$4/(1+($B79-G$6)^2/G$5^2)) -> 0 | H79: =(1-H$3)*(H$4*EXP(-(($B79-H$6)^2/(H$5/1.67)^2)))+H$3*(H$4/(1+($B79-H$6)^2/H$5^2)) -> 0 | I79: =(1-I$3)*(I$4*EXP(-(($B79-I$6)^2/(I$5/1.67)^2)))+I$3*(I$4/(1+($B79-I$6)^2/I$5^2)) -> 0 | J79: =SUM(D79:I79) -> 0.8124214694 | L79: =(C79-J79)^2 -> 0.006795747122
B80: 69 | C80: 0.6641883497 | D80: =(1-D$3)*(D$4*EXP(-(($B80-D$6)^2/(D$5/1.67)^2)))+D$3*(D$4/(1+($B80-D$6)^2/D$5^2)) -> 0.6709350294 | E80: =(1-E$3)*(E$4*EXP(-(($B80-E$6)^2/(E$5/1.67)^2)))+E$3*(E$4/(1+($B80-E$6)^2/E$5^2)) -> 0.01245935944 | F80: =(1-F$3)*(F$4*EXP(-(($B80-F$6)^2/(F$5/1.67)^2)))+F$3*(F$4/(1+($B80-F$6)^2/F$5^2)) -> 2.357510141e-122 | G80: =(1-G$3)*(G$4*EXP(-(($B80-G$6)^2/(G$5/1.67)^2)))+G$3*(G$4/(1+($B80-G$6)^2/G$5^2)) -> 0 | H80: =(1-H$3)*(H$4*EXP(-(($B80-H$6)^2/(H$5/1.67)^2)))+H$3*(H$4/(1+($B80-H$6)^2/H$5^2)) -> 0 | I80: =(1-I$3)*(I$4*EXP(-(($B80-I$6)^2/(I$5/1.67)^2)))+I$3*(I$4/(1+($B80-I$6)^2/I$5^2)) -> 0 | J80: =SUM(D80:I80) -> 0.6833943889 | L80: =(C80-J80)^2 -> 0.0003688719416
B81: 70 | C81: 0.552240116 | D81: =(1-D$3)*(D$4*EXP(-(($B81-D$6)^2/(D$5/1.67)^2)))+D$3*(D$4/(1+($B81-D$6)^2/D$5^2)) -> 0.5482001456 | E81: =(1-E$3)*(E$4*EXP(-(($B81-E$6)^2/(E$5/1.67)^2)))+E$3*(E$4/(1+($B81-E$6)^2/E$5^2)) -> 0.0116218711 | F81: =(1-F$3)*(F$4*EXP(-(($B81-F$6)^2/(F$5/1.67)^2)))+F$3*(F$4/(1+($B81-F$6)^2/F$5^2)) -> 7.527485809e-128 | G81: =(1-G$3)*(G$4*EXP(-(($B81-G$6)^2/(G$5/1.67)^2)))+G$3*(G$4/(1+($B81-G$6)^2/G$5^2)) -> 0 | H81: =(1-H$3)*(H$4*EXP(-(($B81-H$6)^2/(H$5/1.67)^2)))+H$3*(H$4/(1+($B81-H$6)^2/H$5^2)) -> 0 | I81: =(1-I$3)*(I$4*EXP(-(($B81-I$6)^2/(I$5/1.67)^2)))+I$3*(I$4/(1+($B81-I$6)^2/I$5^2)) -> 0 | J81: =SUM(D81:I81) -> 0.5598220167 | L81: =(C81-J81)^2 -> 5.748521731e-05
B82: 71 | C82: 0.432106441 | D82: =(1-D$3)*(D$4*EXP(-(($B82-D$6)^2/(D$5/1.67)^2)))+D$3*(D$4/(1+($B82-D$6)^2/D$5^2)) -> 0.4360819724 | E82: =(1-E$3)*(E$4*EXP(-(($B82-E$6)^2/(E$5/1.67)^2)))+E$3*(E$4/(1+($B82-E$6)^2/E$5^2)) -> 0.0108650008 | F82: =(1-F$3)*(F$4*EXP(-(($B82-F$6)^2/(F$5/1.67)^2)))+F$3*(F$4/(1+($B82-F$6)^2/F$5^2)) -> 1.8121558e-133 | G82: =(1-G$3)*(G$4*EXP(-(($B82-G$6)^2/(G$5/1.67)^2)))+G$3*(G$4/(1+($B82-G$6)^2/G$5^2)) -> 0 | H82: =(1-H$3)*(H$4*EXP(-(($B82-H$6)^2/(H$5/1.67)^2)))+H$3*(H$4/(1+($B82-H$6)^2/H$5^2)) -> 0 | I82: =(1-I$3)*(I$4*EXP(-(($B82-I$6)^2/(I$5/1.67)^2)))+I$3*(I$4/(1+($B82-I$6)^2/I$5^2)) -> 0 | J82: =SUM(D82:I82) -> 0.4469469732 | L82: =(C82-J82)^2 -> 0.0002202413959
B83: 72 | C83: 0.2905672524 | D83: =(1-D$3)*(D$4*EXP(-(($B83-D$6)^2/(D$5/1.67)^2)))+D$3*(D$4/(1+($B83-D$6)^2/D$5^2)) -> 0.3379882176 | E83: =(1-E$3)*(E$4*EXP(-(($B83-E$6)^2/(E$5/1.67)^2)))+E$3*(E$4/(1+($B83-E$6)^2/E$5^2)) -> 0.01017885234 | F83: =(1-F$3)*(F$4*EXP(-(($B83-F$6)^2/(F$5/1.67)^2)))+F$3*(F$4/(1+($B83-F$6)^2/F$5^2)) -> 3.289200394e-139 | G83: =(1-G$3)*(G$4*EXP(-(($B83-G$6)^2/(G$5/1.67)^2)))+G$3*(G$4/(1+($B83-G$6)^2/G$5^2)) -> 0 | H83: =(1-H$3)*(H$4*EXP(-(($B83-H$6)^2/(H$5/1.67)^2)))+H$3*(H$4/(1+($B83-H$6)^2/H$5^2)) -> 0 | I83: =(1-I$3)*(I$4*EXP(-(($B83-I$6)^2/(I$5/1.67)^2)))+I$3*(I$4/(1+($B83-I$6)^2/I$5^2)) -> 0 | J83: =SUM(D83:I83) -> 0.34816707 | L83: =(C83-J83)^2 -> 0.003317738987
B84: 73 | C84: 0.2355262992 | D84: =(1-D$3)*(D$4*EXP(-(($B84-D$6)^2/(D$5/1.67)^2)))+D$3*(D$4/(1+($B84-D$6)^2/D$5^2)) -> 0.2555249272 | E84: =(1-E$3)*(E$4*EXP(-(($B84-E$6)^2/(E$5/1.67)^2)))+E$3*(E$4/(1+($B84-E$6)^2/E$5^2)) -> 0.009554983857 | F84: =(1-F$3)*(F$4*EXP(-(($B84-F$6)^2/(F$5/1.67)^2)))+F$3*(F$4/(1+($B84-F$6)^2/F$5^2)) -> 4.501262556e-145 | G84: =(1-G$3)*(G$4*EXP(-(($B84-G$6)^2/(G$5/1.67)^2)))+G$3*(G$4/(1+($B84-G$6)^2/G$5^2)) -> 0 | H84: =(1-H$3)*(H$4*EXP(-(($B84-H$6)^2/(H$5/1.67)^2)))+H$3*(H$4/(1+($B84-H$6)^2/H$5^2)) -> 0 | I84: =(1-I$3)*(I$4*EXP(-(($B84-I$6)^2/(I$5/1.67)^2)))+I$3*(I$4/(1+($B84-I$6)^2/I$5^2)) -> 0 | J84: =SUM(D84:I84) -> 0.2650799111 | L84: =(C84-J84)^2 -> 0.0008734159764
B85: 74 | C85: 0.1608961826 | D85: =(1-D$3)*(D$4*EXP(-(($B85-D$6)^2/(D$5/1.67)^2)))+D$3*(D$4/(1+($B85-D$6)^2/D$5^2)) -> 0.1887545261 | E85: =(1-E$3)*(E$4*EXP(-(($B85-E$6)^2/(E$5/1.67)^2)))+E$3*(E$4/(1+($B85-E$6)^2/E$5^2)) -> 0.008986161948 | F85: =(1-F$3)*(F$4*EXP(-(($B85-F$6)^2/(F$5/1.67)^2)))+F$3*(F$4/(1+($B85-F$6)^2/F$5^2)) -> 4.644378118e-151 | G85: =(1-G$3)*(G$4*EXP(-(($B85-G$6)^2/(G$5/1.67)^2)))+G$3*(G$4/(1+($B85-G$6)^2/G$5^2)) -> 0 | H85: =(1-H$3)*(H$4*EXP(-(($B85-H$6)^2/(H$5/1.67)^2)))+H$3*(H$4/(1+($B85-H$6)^2/H$5^2)) -> 0 | I85: =(1-I$3)*(I$4*EXP(-(($B85-I$6)^2/(I$5/1.67)^2)))+I$3*(I$4/(1+($B85-I$6)^2/I$5^2)) -> 0 | J85: =SUM(D85:I85) -> 0.1977406881 | L85: =(C85-J85)^2 -> 0.001357517584
B86: 75 | C86: 0.1404820308 | D86: =(1-D$3)*(D$4*EXP(-(($B86-D$6)^2/(D$5/1.67)^2)))+D$3*(D$4/(1+($B86-D$6)^2/D$5^2)) -> 0.1365800223 | E86: =(1-E$3)*(E$4*EXP(-(($B86-E$6)^2/(E$5/1.67)^2)))+E$3*(E$4/(1+($B86-E$6)^2/E$5^2)) -> 0.008466162289 | F86: =(1-F$3)*(F$4*EXP(-(($B86-F$6)^2/(F$5/1.67)^2)))+F$3*(F$4/(1+($B86-F$6)^2/F$5^2)) -> 3.613017013e-157 | G86: =(1-G$3)*(G$4*EXP(-(($B86-G$6)^2/(G$5/1.67)^2)))+G$3*(G$4/(1+($B86-G$6)^2/G$5^2)) -> 0 | H86: =(1-H$3)*(H$4*EXP(-(($B86-H$6)^2/(H$5/1.67)^2)))+H$3*(H$4/(1+($B86-H$6)^2/H$5^2)) -> 0 | I86: =(1-I$3)*(I$4*EXP(-(($B86-I$6)^2/(I$5/1.67)^2)))+I$3*(I$4/(1+($B86-I$6)^2/I$5^2)) -> 0 | J86: =SUM(D86:I86) -> 0.1450461846 | L86: =(C86-J86)^2 -> 2.083149908e-05
B87: 76 | C87: 0.1033709959 | D87: =(1-D$3)*(D$4*EXP(-(($B87-D$6)^2/(D$5/1.67)^2)))+D$3*(D$4/(1+($B87-D$6)^2/D$5^2)) -> 0.09716794072 | E87: =(1-E$3)*(E$4*EXP(-(($B87-E$6)^2/(E$5/1.67)^2)))+E$3*(E$4/(1+($B87-E$6)^2/E$5^2)) -> 0.007989607152 | F87: =(1-F$3)*(F$4*EXP(-(($B87-F$6)^2/(F$5/1.67)^2)))+F$3*(F$4/(1+($B87-F$6)^2/F$5^2)) -> 2.119149789e-163 | G87: =(1-G$3)*(G$4*EXP(-(($B87-G$6)^2/(G$5/1.67)^2)))+G$3*(G$4/(1+($B87-G$6)^2/G$5^2)) -> 0 | H87: =(1-H$3)*(H$4*EXP(-(($B87-H$6)^2/(H$5/1.67)^2)))+H$3*(H$4/(1+($B87-H$6)^2/H$5^2)) -> 0 | I87: =(1-I$3)*(I$4*EXP(-(($B87-I$6)^2/(I$5/1.67)^2)))+I$3*(I$4/(1+($B87-I$6)^2/I$5^2)) -> 0 | J87: =SUM(D87:I87) -> 0.1051575479 | L87: =(C87-J87)^2 -> 3.191768059e-06
B88: 77 | C88: 0.09112294274 | D88: =(1-D$3)*(D$4*EXP(-(($B88-D$6)^2/(D$5/1.67)^2)))+D$3*(D$4/(1+($B88-D$6)^2/D$5^2)) -> 0.06833895258 | E88: =(1-E$3)*(E$4*EXP(-(($B88-E$6)^2/(E$5/1.67)^2)))+E$3*(E$4/(1+($B88-E$6)^2/E$5^2)) -> 0.007551832307 | F88: =(1-F$3)*(F$4*EXP(-(($B88-F$6)^2/(F$5/1.67)^2)))+F$3*(F$4/(1+($B88-F$6)^2/F$5^2)) -> 9.371357719e-170 | G88: =(1-G$3)*(G$4*EXP(-(($B88-G$6)^2/(G$5/1.67)^2)))+G$3*(G$4/(1+($B88-G$6)^2/G$5^2)) -> 0 | H88: =(1-H$3)*(H$4*EXP(-(($B88-H$6)^2/(H$5/1.67)^2)))+H$3*(H$4/(1+($B88-H$6)^2/H$5^2)) -> 0 | I88: =(1-I$3)*(I$4*EXP(-(($B88-I$6)^2/(I$5/1.67)^2)))+I$3*(I$4/(1+($B88-I$6)^2/I$5^2)) -> 0 | J88: =SUM(D88:I88) -> 0.07589078489 | L88: =(C88-J88)^2 -> 0.0002320186328
B89: 78 | C89: 0.07065900569 | D89: =(1-D$3)*(D$4*EXP(-(($B89-D$6)^2/(D$5/1.67)^2)))+D$3*(D$4/(1+($B89-D$6)^2/D$5^2)) -> 0.04788053621 | E89: =(1-E$3)*(E$4*EXP(-(($B89-E$6)^2/(E$5/1.67)^2)))+E$3*(E$4/(1+($B89-E$6)^2/E$5^2)) -> 0.007148777449 | F89: =(1-F$3)*(F$4*EXP(-(($B89-F$6)^2/(F$5/1.67)^2)))+F$3*(F$4/(1+($B89-F$6)^2/F$5^2)) -> 3.124586764e-176 | G89: =(1-G$3)*(G$4*EXP(-(($B89-G$6)^2/(G$5/1.67)^2)))+G$3*(G$4/(1+($B89-G$6)^2/G$5^2)) -> 0 | H89: =(1-H$3)*(H$4*EXP(-(($B89-H$6)^2/(H$5/1.67)^2)))+H$3*(H$4/(1+($B89-H$6)^2/H$5^2)) -> 0 | I89: =(1-I$3)*(I$4*EXP(-(($B89-I$6)^2/(I$5/1.67)^2)))+I$3*(I$4/(1+($B89-I$6)^2/I$5^2)) -> 0 | J89: =SUM(D89:I89) -> 0.05502931366 | L89: =(C89-J89)^2 -> 0.000244287273
B90: 79 | C90: 0.0649654453 | D90: =(1-D$3)*(D$4*EXP(-(($B90-D$6)^2/(D$5/1.67)^2)))+D$3*(D$4/(1+($B90-D$6)^2/D$5^2)) -> 0.03376249889 | E90: =(1-E$3)*(E$4*EXP(-(($B90-E$6)^2/(E$5/1.67)^2)))+E$3*(E$4/(1+($B90-E$6)^2/E$5^2)) -> 0.006776895586 | F90: =(1-F$3)*(F$4*EXP(-(($B90-F$6)^2/(F$5/1.67)^2)))+F$3*(F$4/(1+($B90-F$6)^2/F$5^2)) -> 7.854741077e-183 | G90: =(1-G$3)*(G$4*EXP(-(($B90-G$6)^2/(G$5/1.67)^2)))+G$3*(G$4/(1+($B90-G$6)^2/G$5^2)) -> 0 | H90: =(1-H$3)*(H$4*EXP(-(($B90-H$6)^2/(H$5/1.67)^2)))+H$3*(H$4/(1+($B90-H$6)^2/H$5^2)) -> 0 | I90: =(1-I$3)*(I$4*EXP(-(($B90-I$6)^2/(I$5/1.67)^2)))+I$3*(I$4/(1+($B90-I$6)^2/I$5^2)) -> 0 | J90: =SUM(D90:I90) -> 0.04053939447 | L90: =(C90-J90)^2 -> 0.0005966319591
B91: 80 | C91: 0.05135146522 | D91: =(1-D$3)*(D$4*EXP(-(($B91-D$6)^2/(D$5/1.67)^2)))+D$3*(D$4/(1+($B91-D$6)^2/D$5^2)) -> 0.02425796342 | E91: =(1-E$3)*(E$4*EXP(-(($B91-E$6)^2/(E$5/1.67)^2)))+E$3*(E$4/(1+($B91-E$6)^2/E$5^2)) -> 0.006433077745 | F91: =(1-F$3)*(F$4*EXP(-(($B91-F$6)^2/(F$5/1.67)^2)))+F$3*(F$4/(1+($B91-F$6)^2/F$5^2)) -> 1.488745187e-189 | G91: =(1-G$3)*(G$4*EXP(-(($B91-G$6)^2/(G$5/1.67)^2)))+G$3*(G$4/(1+($B91-G$6)^2/G$5^2)) -> 0 | H91: =(1-H$3)*(H$4*EXP(-(($B91-H$6)^2/(H$5/1.67)^2)))+H$3*(H$4/(1+($B91-H$6)^2/H$5^2)) -> 0 | I91: =(1-I$3)*(I$4*EXP(-(($B91-I$6)^2/(I$5/1.67)^2)))+I$3*(I$4/(1+($B91-I$6)^2/I$5^2)) -> 0 | J91: =SUM(D91:I91) -> 0.03069104116 | L91: =(C91-J91)^2 -> 0.0004268531222
B92: 81 | C92: 0.04541442056 | D92: =(1-D$3)*(D$4*EXP(-(($B92-D$6)^2/(D$5/1.67)^2)))+D$3*(D$4/(1+($B92-D$6)^2/D$5^2)) -> 0.01798653332 | E92: =(1-E$3)*(E$4*EXP(-(($B92-E$6)^2/(E$5/1.67)^2)))+E$3*(E$4/(1+($B92-E$6)^2/E$5^2)) -> 0.006114590153 | F92: =(1-F$3)*(F$4*EXP(-(($B92-F$6)^2/(F$5/1.67)^2)))+F$3*(F$4/(1+($B92-F$6)^2/F$5^2)) -> 2.127443719e-196 | G92: =(1-G$3)*(G$4*EXP(-(($B92-G$6)^2/(G$5/1.67)^2)))+G$3*(G$4/(1+($B92-G$6)^2/G$5^2)) -> 0 | H92: =(1-H$3)*(H$4*EXP(-(($B92-H$6)^2/(H$5/1.67)^2)))+H$3*(H$4/(1+($B92-H$6)^2/H$5^2)) -> 0 | I92: =(1-I$3)*(I$4*EXP(-(($B92-I$6)^2/(I$5/1.67)^2)))+I$3*(I$4/(1+($B92-I$6)^2/I$5^2)) -> 0 | J92: =SUM(D92:I92) -> 0.02410112347 | L92: =(C92-J92)^2 -> 0.0004542566327
B93: 82 | C93: 0.03524028267 | D93: =(1-D$3)*(D$4*EXP(-(($B93-D$6)^2/(D$5/1.67)^2)))+D$3*(D$4/(1+($B93-D$6)^2/D$5^2)) -> 0.01390253924 | E93: =(1-E$3)*(E$4*EXP(-(($B93-E$6)^2/(E$5/1.67)^2)))+E$3*(E$4/(1+($B93-E$6)^2/E$5^2)) -> 0.005819021592 | F93: =(1-F$3)*(F$4*EXP(-(($B93-F$6)^2/(F$5/1.67)^2)))+F$3*(F$4/(1+($B93-F$6)^2/F$5^2)) -> 2.292160377e-203 | G93: =(1-G$3)*(G$4*EXP(-(($B93-G$6)^2/(G$5/1.67)^2)))+G$3*(G$4/(1+($B93-G$6)^2/G$5^2)) -> 0 | H93: =(1-H$3)*(H$4*EXP(-(($B93-H$6)^2/(H$5/1.67)^2)))+H$3*(H$4/(1+($B93-H$6)^2/H$5^2)) -> 0 | I93: =(1-I$3)*(I$4*EXP(-(($B93-I$6)^2/(I$5/1.67)^2)))+I$3*(I$4/(1+($B93-I$6)^2/I$5^2)) -> 0 | J93: =SUM(D93:I93) -> 0.01972156083 | L93: =(C93-J93)^2 -> 0.0002408307273
B94: 83 | C94: 0.03003041235 | D94: =(1-D$3)*(D$4*EXP(-(($B94-D$6)^2/(D$5/1.67)^2)))+D$3*(D$4/(1+($B94-D$6)^2/D$5^2)) -> 0.01125113172 | E94: =(1-E$3)*(E$4*EXP(-(($B94-E$6)^2/(E$5/1.67)^2)))+E$3*(E$4/(1+($B94-E$6)^2/E$5^2)) -> 0.005544239112 | F94: =(1-F$3)*(F$4*EXP(-(($B94-F$6)^2/(F$5/1.67)^2)))+F$3*(F$4/(1+($B94-F$6)^2/F$5^2)) -> 1.862006249e-210 | G94: =(1-G$3)*(G$4*EXP(-(($B94-G$6)^2/(G$5/1.67)^2)))+G$3*(G$4/(1+($B94-G$6)^2/G$5^2)) -> 0 | H94: =(1-H$3)*(H$4*EXP(-(($B94-H$6)^2/(H$5/1.67)^2)))+H$3*(H$4/(1+($B94-H$6)^2/H$5^2)) -> 0 | I94: =(1-I$3)*(I$4*EXP(-(($B94-I$6)^2/(I$5/1.67)^2)))+I$3*(I$4/(1+($B94-I$6)^2/I$5^2)) -> 0 | J94: =SUM(D94:I94) -> 0.01679537084 | L94: =(C94-J94)^2 -> 0.0001751663238
B95: 84 | C95: 0.02535371821 | D95: =(1-D$3)*(D$4*EXP(-(($B95-D$6)^2/(D$5/1.67)^2)))+D$3*(D$4/(1+($B95-D$6)^2/D$5^2)) -> 0.009510922179 | E95: =(1-E$3)*(E$4*EXP(-(($B95-E$6)^2/(E$5/1.67)^2)))+E$3*(E$4/(1+($B95-E$6)^2/E$5^2)) -> 0.005288350627 | F95: =(1-F$3)*(F$4*EXP(-(($B95-F$6)^2/(F$5/1.67)^2)))+F$3*(F$4/(1+($B95-F$6)^2/F$5^2)) -> 1.140424345e-217 | G95: =(1-G$3)*(G$4*EXP(-(($B95-G$6)^2/(G$5/1.67)^2)))+G$3*(G$4/(1+($B95-G$6)^2/G$5^2)) -> 0 | H95: =(1-H$3)*(H$4*EXP(-(($B95-H$6)^2/(H$5/1.67)^2)))+H$3*(H$4/(1+($B95-H$6)^2/H$5^2)) -> 0 | I95: =(1-I$3)*(I$4*EXP(-(($B95-I$6)^2/(I$5/1.67)^2)))+I$3*(I$4/(1+($B95-I$6)^2/I$5^2)) -> 0 | J95: =SUM(D95:I95) -> 0.01479927281 | L95: =(C95-J95)^2 -> 0.0001113963178
B96: 85 | C96: 0.02282681412 | D96: =(1-D$3)*(D$4*EXP(-(($B96-D$6)^2/(D$5/1.67)^2)))+D$3*(D$4/(1+($B96-D$6)^2/D$5^2)) -> 0.008336215671 | E96: =(1-E$3)*(E$4*EXP(-(($B96-E$6)^2/(E$5/1.67)^2)))+E$3*(E$4/(1+($B96-E$6)^2/E$5^2)) -> 0.005049673207 | F96: =(1-F$3)*(F$4*EXP(-(($B96-F$6)^2/(F$5/1.67)^2)))+F$3*(F$4/(1+($B96-F$6)^2/F$5^2)) -> 5.266244726e-225 | G96: =(1-G$3)*(G$4*EXP(-(($B96-G$6)^2/(G$5/1.67)^2)))+G$3*(G$4/(1+($B96-G$6)^2/G$5^2)) -> 0 | H96: =(1-H$3)*(H$4*EXP(-(($B96-H$6)^2/(H$5/1.67)^2)))+H$3*(H$4/(1+($B96-H$6)^2/H$5^2)) -> 0 | I96: =(1-I$3)*(I$4*EXP(-(($B96-I$6)^2/(I$5/1.67)^2)))+I$3*(I$4/(1+($B96-I$6)^2/I$5^2)) -> 0 | J96: =SUM(D96:I96) -> 0.01338588888 | L96: =(C96-J96)^2 -> 8.913106935e-05
B97: 86 | C97: 0.01832770103 | D97: =(1-D$3)*(D$4*EXP(-(($B97-D$6)^2/(D$5/1.67)^2)))+D$3*(D$4/(1+($B97-D$6)^2/D$5^2)) -> 0.007506365756 | E97: =(1-E$3)*(E$4*EXP(-(($B97-E$6)^2/(E$5/1.67)^2)))+E$3*(E$4/(1+($B97-E$6)^2/E$5^2)) -> 0.004826706109 | F97: =(1-F$3)*(F$4*EXP(-(($B97-F$6)^2/(F$5/1.67)^2)))+F$3*(F$4/(1+($B97-F$6)^2/F$5^2)) -> 1.833516434e-232 | G97: =(1-G$3)*(G$4*EXP(-(($B97-G$6)^2/(G$5/1.67)^2)))+G$3*(G$4/(1+($B97-G$6)^2/G$5^2)) -> 0 | H97: =(1-H$3)*(H$4*EXP(-(($B97-H$6)^2/(H$5/1.67)^2)))+H$3*(H$4/(1+($B97-H$6)^2/H$5^2)) -> 0 | I97: =(1-I$3)*(I$4*EXP(-(($B97-I$6)^2/(I$5/1.67)^2)))+I$3*(I$4/(1+($B97-I$6)^2/I$5^2)) -> 0 | J97: =SUM(D97:I97) -> 0.01233307186 | L97: =(C97-J97)^2 -> 3.593557883e-05
B98: 87 | C98: 0.01485815342 | D98: =(1-D$3)*(D$4*EXP(-(($B98-D$6)^2/(D$5/1.67)^2)))+D$3*(D$4/(1+($B98-D$6)^2/D$5^2)) -> 0.006885397039 | E98: =(1-E$3)*(E$4*EXP(-(($B98-E$6)^2/(E$5/1.67)^2)))+E$3*(E$4/(1+($B98-E$6)^2/E$5^2)) -> 0.004618107745 | F98: =(1-F$3)*(F$4*EXP(-(($B98-F$6)^2/(F$5/1.67)^2)))+F$3*(F$4/(1+($B98-F$6)^2/F$5^2)) -> 4.813021355e-240 | G98: =(1-G$3)*(G$4*EXP(-(($B98-G$6)^2/(G$5/1.67)^2)))+G$3*(G$4/(1+($B98-G$6)^2/G$5^2)) -> 0 | H98: =(1-H$3)*(H$4*EXP(-(($B98-H$6)^2/(H$5/1.67)^2)))+H$3*(H$4/(1+($B98-H$6)^2/H$5^2)) -> 0 | I98: =(1-I$3)*(I$4*EXP(-(($B98-I$6)^2/(I$5/1.67)^2)))+I$3*(I$4/(1+($B98-I$6)^2/I$5^2)) -> 0 | J98: =SUM(D98:I98) -> 0.01150350478 | L98: =(C98-J98)^2 -> 1.125366751e-05
B99: 88 | C99: 0.01474657128 | D99: =(1-D$3)*(D$4*EXP(-(($B99-D$6)^2/(D$5/1.67)^2)))+D$3*(D$4/(1+($B99-D$6)^2/D$5^2)) -> 0.006392108205 | E99: =(1-E$3)*(E$4*EXP(-(($B99-E$6)^2/(E$5/1.67)^2)))+E$3*(E$4/(1+($B99-E$6)^2/E$5^2)) -> 0.004422675965 | F99: =(1-F$3)*(F$4*EXP(-(($B99-F$6)^2/(F$5/1.67)^2)))+F$3*(F$4/(1+($B99-F$6)^2/F$5^2)) -> 9.525767615e-248 | G99: =(1-G$3)*(G$4*EXP(-(($B99-G$6)^2/(G$5/1.67)^2)))+G$3*(G$4/(1+($B99-G$6)^2/G$5^2)) -> 0 | H99: =(1-H$3)*(H$4*EXP(-(($B99-H$6)^2/(H$5/1.67)^2)))+H$3*(H$4/(1+($B99-H$6)^2/H$5^2)) -> 0 | I99: =(1-I$3)*(I$4*EXP(-(($B99-I$6)^2/(I$5/1.67)^2)))+I$3*(I$4/(1+($B99-I$6)^2/I$5^2)) -> 0 | J99: =SUM(D99:I99) -> 0.01081478417 | L99: =(C99-J99)^2 -> 1.54589499e-05
B100: 89 | C100: 0.01198987339 | D100: =(1-D$3)*(D$4*EXP(-(($B100-D$6)^2/(D$5/1.67)^2)))+D$3*(D$4/(1+($B100-D$6)^2/D$5^2)) -> 0.005979265758 | E100: =(1-E$3)*(E$4*EXP(-(($B100-E$6)^2/(E$5/1.67)^2)))+E$3*(E$4/(1+($B100-E$6)^2/E$5^2)) -> 0.004239331115 | F100: =(1-F$3)*(F$4*EXP(-(($B100-F$6)^2/(F$5/1.67)^2)))+F$3*(F$4/(1+($B100-F$6)^2/F$5^2)) -> 1.421449348e-255 | G100: =(1-G$3)*(G$4*EXP(-(($B100-G$6)^2/(G$5/1.67)^2)))+G$3*(G$4/(1+($B100-G$6)^2/G$5^2)) -> 0 | H100: =(1-H$3)*(H$4*EXP(-(($B100-H$6)^2/(H$5/1.67)^2)))+H$3*(H$4/(1+($B100-H$6)^2/H$5^2)) -> 0 | I100: =(1-I$3)*(I$4*EXP(-(($B100-I$6)^2/(I$5/1.67)^2)))+I$3*(I$4/(1+($B100-I$6)^2/I$5^2)) -> 0 | J100: =SUM(D100:I100) -> 0.01021859687 | L100: =(C100-J100)^2 -> 3.137420514e-06
B101: 90 | C101: 0.009283542712 | D101: =(1-D$3)*(D$4*EXP(-(($B101-D$6)^2/(D$5/1.67)^2)))+D$3*(D$4/(1+($B101-D$6)^2/D$5^2)) -> 0.005619891312 | E101: =(1-E$3)*(E$4*EXP(-(($B101-E$6)^2/(E$5/1.67)^2)))+E$3*(E$4/(1+($B101-E$6)^2/E$5^2)) -> 0.004067101431 | F101: =(1-F$3)*(F$4*EXP(-(($B101-F$6)^2/(F$5/1.67)^2)))+F$3*(F$4/(1+($B101-F$6)^2/F$5^2)) -> 1.599233971e-263 | G101: =(1-G$3)*(G$4*EXP(-(($B101-G$6)^2/(G$5/1.67)^2)))+G$3*(G$4/(1+($B101-G$6)^2/G$5^2)) -> 0 | H101: =(1-H$3)*(H$4*EXP(-(($B101-H$6)^2/(H$5/1.67)^2)))+H$3*(H$4/(1+($B101-H$6)^2/H$5^2)) -> 0 | I101: =(1-I$3)*(I$4*EXP(-(($B101-I$6)^2/(I$5/1.67)^2)))+I$3*(I$4/(1+($B101-I$6)^2/I$5^2)) -> 0 | J101: =SUM(D101:I101) -> 0.009686992743 | L101: =(C101-J101)^2 -> 1.627719272e-07
B102: 91 | C102: 0.006433920518 | D102: =(1-D$3)*(D$4*EXP(-(($B102-D$6)^2/(D$5/1.67)^2)))+D$3*(D$4/(1+($B102-D$6)^2/D$5^2)) -> 0.005298658039 | E102: =(1-E$3)*(E$4*EXP(-(($B102-E$6)^2/(E$5/1.67)^2)))+E$3*(E$4/(1+($B102-E$6)^2/E$5^2)) -> 0.00390511042 | F102: =(1-F$3)*(F$4*EXP(-(($B102-F$6)^2/(F$5/1.67)^2)))+F$3*(F$4/(1+($B102-F$6)^2/F$5^2)) -> 1.356568839e-271 | G102: =(1-G$3)*(G$4*EXP(-(($B102-G$6)^2/(G$5/1.67)^2)))+G$3*(G$4/(1+($B102-G$6)^2/G$5^2)) -> 0 | H102: =(1-H$3)*(H$4*EXP(-(($B102-H$6)^2/(H$5/1.67)^2)))+H$3*(H$4/(1+($B102-H$6)^2/H$5^2)) -> 0 | I102: =(1-I$3)*(I$4*EXP(-(($B102-I$6)^2/(I$5/1.67)^2)))+I$3*(I$4/(1+($B102-I$6)^2/I$5^2)) -> 0 | J102: =SUM(D102:I102) -> 0.009203768459 | L102: =(C102-J102)^2 -> 7.672057615e-06
B103: 92 | C103: 0.005138609004 | D103: =(1-D$3)*(D$4*EXP(-(($B103-D$6)^2/(D$5/1.67)^2)))+D$3*(D$4/(1+($B103-D$6)^2/D$5^2)) -> 0.005006731887 | E103: =(1-E$3)*(E$4*EXP(-(($B103-E$6)^2/(E$5/1.67)^2)))+E$3*(E$4/(1+($B103-E$6)^2/E$5^2)) -> 0.00375256592 | F103: =(1-F$3)*(F$4*EXP(-(($B103-F$6)^2/(F$5/1.67)^2)))+F$3*(F$4/(1+($B103-F$6)^2/F$5^2)) -> 8.676026685e-280 | G103: =(1-G$3)*(G$4*EXP(-(($B103-G$6)^2/(G$5/1.67)^2)))+G$3*(G$4/(1+($B103-G$6)^2/G$5^2)) -> 0 | H103: =(1-H$3)*(H$4*EXP(-(($B103-H$6)^2/(H$5/1.67)^2)))+H$3*(H$4/(1+($B103-H$6)^2/H$5^2)) -> 0 | I103: =(1-I$3)*(I$4*EXP(-(($B103-I$6)^2/(I$5/1.67)^2)))+I$3*(I$4/(1+($B103-I$6)^2/I$5^2)) -> 0 | J103: =SUM(D103:I103) -> 0.008759297807 | L103: =(C103-J103)^2 -> 1.310938741e-05
B104: 93 | C104: 0.002731077138 | D104: =(1-D$3)*(D$4*EXP(-(($B104-D$6)^2/(D$5/1.67)^2)))+D$3*(D$4/(1+($B104-D$6)^2/D$5^2)) -> 0.004738805858 | E104: =(1-E$3)*(E$4*EXP(-(($B104-E$6)^2/(E$5/1.67)^2)))+E$3*(E$4/(1+($B104-E$6)^2/E$5^2)) -> 0.003608750591 | F104: =(1-F$3)*(F$4*EXP(-(($B104-F$6)^2/(F$5/1.67)^2)))+F$3*(F$4/(1+($B104-F$6)^2/F$5^2)) -> 4.183590166e-288 | G104: =(1-G$3)*(G$4*EXP(-(($B104-G$6)^2/(G$5/1.67)^2)))+G$3*(G$4/(1+($B104-G$6)^2/G$5^2)) -> 0 | H104: =(1-H$3)*(H$4*EXP(-(($B104-H$6)^2/(H$5/1.67)^2)))+H$3*(H$4/(1+($B104-H$6)^2/H$5^2)) -> 0 | I104: =(1-I$3)*(I$4*EXP(-(($B104-I$6)^2/(I$5/1.67)^2)))+I$3*(I$4/(1+($B104-I$6)^2/I$5^2)) -> 0 | J104: =SUM(D104:I104) -> 0.008347556449 | L104: =(C104-J104)^2 -> 3.154483985e-05
B105: 94 | C105: 0.001701663918 | D105: =(1-D$3)*(D$4*EXP(-(($B105-D$6)^2/(D$5/1.67)^2)))+D$3*(D$4/(1+($B105-D$6)^2/D$5^2)) -> 0.004491460283 | E105: =(1-E$3)*(E$4*EXP(-(($B105-E$6)^2/(E$5/1.67)^2)))+E$3*(E$4/(1+($B105-E$6)^2/E$5^2)) -> 0.003473013629 | F105: =(1-F$3)*(F$4*EXP(-(($B105-F$6)^2/(F$5/1.67)^2)))+F$3*(F$4/(1+($B105-F$6)^2/F$5^2)) -> 1.520990845e-296 | G105: =(1-G$3)*(G$4*EXP(-(($B105-G$6)^2/(G$5/1.67)^2)))+G$3*(G$4/(1+($B105-G$6)^2/G$5^2)) -> 0 | H105: =(1-H$3)*(H$4*EXP(-(($B105-H$6)^2/(H$5/1.67)^2)))+H$3*(H$4/(1+($B105-H$6)^2/H$5^2)) -> 0 | I105: =(1-I$3)*(I$4*EXP(-(($B105-I$6)^2/(I$5/1.67)^2)))+I$3*(I$4/(1+($B105-I$6)^2/I$5^2)) -> 0 | J105: =SUM(D105:I105) -> 0.007964473912 | L105: =(C105-J105)^2 -> 3.922278902e-05
B106: 95 | C106: 0.000801747893 | D106: =(1-D$3)*(D$4*EXP(-(($B106-D$6)^2/(D$5/1.67)^2)))+D$3*(D$4/(1+($B106-D$6)^2/D$5^2)) -> 0.004262287766 | E106: =(1-E$3)*(E$4*EXP(-(($B106-E$6)^2/(E$5/1.67)^2)))+E$3*(E$4/(1+($B106-E$6)^2/E$5^2)) -> 0.003344763524 | F106: =(1-F$3)*(F$4*EXP(-(($B106-F$6)^2/(F$5/1.67)^2)))+F$3*(F$4/(1+($B106-F$6)^2/F$5^2)) -> 4.169205276e-305 | G106: =(1-G$3)*(G$4*EXP(-(($B106-G$6)^2/(G$5/1.67)^2)))+G$3*(G$4/(1+($B106-G$6)^2/G$5^2)) -> 0 | H106: =(1-H$3)*(H$4*EXP(-(($B106-H$6)^2/(H$5/1.67)^2)))+H$3*(H$4/(1+($B106-H$6)^2/H$5^2)) -> 0 | I106: =(1-I$3)*(I$4*EXP(-(($B106-I$6)^2/(I$5/1.67)^2)))+I$3*(I$4/(1+($B106-I$6)^2/I$5^2)) -> 0 | J106: =SUM(D106:I106) -> 0.00760705129 | L106: =(C106-J106)^2 -> 4.631215433e-05
B107: 96 | C107: 0.0001254230946 | D107: =(1-D$3)*(D$4*EXP(-(($B107-D$6)^2/(D$5/1.67)^2)))+D$3*(D$4/(1+($B107-D$6)^2/D$5^2)) -> 0.004049440073 | E107: =(1-E$3)*(E$4*EXP(-(($B107-E$6)^2/(E$5/1.67)^2)))+E$3*(E$4/(1+($B107-E$6)^2/E$5^2)) -> 0.003223461721 | F107: =(1-F$3)*(F$4*EXP(-(($B107-F$6)^2/(F$5/1.67)^2)))+F$3*(F$4/(1+($B107-F$6)^2/F$5^2)) -> 0 | G107: =(1-G$3)*(G$4*EXP(-(($B107-G$6)^2/(G$5/1.67)^2)))+G$3*(G$4/(1+($B107-G$6)^2/G$5^2)) -> 0 | H107: =(1-H$3)*(H$4*EXP(-(($B107-H$6)^2/(H$5/1.67)^2)))+H$3*(H$4/(1+($B107-H$6)^2/H$5^2)) -> 0 | I107: =(1-I$3)*(I$4*EXP(-(($B107-I$6)^2/(I$5/1.67)^2)))+I$3*(I$4/(1+($B107-I$6)^2/I$5^2)) -> 0 | J107: =SUM(D107:I107) -> 0.007272901795 | L107: =(C107-J107)^2 -> 5.108645177e-05
B108: 97 | C108: 0 | D108: =(1-D$3)*(D$4*EXP(-(($B108-D$6)^2/(D$5/1.67)^2)))+D$3*(D$4/(1+($B108-D$6)^2/D$5^2)) -> 0.003851398511 | E108: =(1-E$3)*(E$4*EXP(-(($B108-E$6)^2/(E$5/1.67)^2)))+E$3*(E$4/(1+($B108-E$6)^2/E$5^2)) -> 0.003108617054 | F108: =(1-F$3)*(F$4*EXP(-(($B108-F$6)^2/(F$5/1.67)^2)))+F$3*(F$4/(1+($B108-F$6)^2/F$5^2)) -> 0 | G108: =(1-G$3)*(G$4*EXP(-(($B108-G$6)^2/(G$5/1.67)^2)))+G$3*(G$4/(1+($B108-G$6)^2/G$5^2)) -> 0 | H108: =(1-H$3)*(H$4*EXP(-(($B108-H$6)^2/(H$5/1.67)^2)))+H$3*(H$4/(1+($B108-H$6)^2/H$5^2)) -> 0 | I108: =(1-I$3)*(I$4*EXP(-(($B108-I$6)^2/(I$5/1.67)^2)))+I$3*(I$4/(1+($B108-I$6)^2/I$5^2)) -> 0 | J108: =SUM(D108:I108) -> 0.006960015565 | L108: =(C108-J108)^2 -> 4.844181666e-05
B109: 98 | C109: 0 | D109: =(1-D$3)*(D$4*EXP(-(($B109-D$6)^2/(D$5/1.67)^2)))+D$3*(D$4/(1+($B109-D$6)^2/D$5^2)) -> 0.003666858262 | E109: =(1-E$3)*(E$4*EXP(-(($B109-E$6)^2/(E$5/1.67)^2)))+E$3*(E$4/(1+($B109-E$6)^2/E$5^2)) -> 0.002999780843 | F109: =(1-F$3)*(F$4*EXP(-(($B109-F$6)^2/(F$5/1.67)^2)))+F$3*(F$4/(1+($B109-F$6)^2/F$5^2)) -> 0 | G109: =(1-G$3)*(G$4*EXP(-(($B109-G$6)^2/(G$5/1.67)^2)))+G$3*(G$4/(1+($B109-G$6)^2/G$5^2)) -> 0 | H109: =(1-H$3)*(H$4*EXP(-(($B109-H$6)^2/(H$5/1.67)^2)))+H$3*(H$4/(1+($B109-H$6)^2/H$5^2)) -> 0 | I109: =(1-I$3)*(I$4*EXP(-(($B109-I$6)^2/(I$5/1.67)^2)))+I$3*(I$4/(1+($B109-I$6)^2/I$5^2)) -> 0 | J109: =SUM(D109:I109) -> 0.006666639105 | L109: =(C109-J109)^2 -> 4.444407695e-05
B110: 99 | C110: 0 | D110: =(1-D$3)*(D$4*EXP(-(($B110-D$6)^2/(D$5/1.67)^2)))+D$3*(D$4/(1+($B110-D$6)^2/D$5^2)) -> 0.003494668936 | E110: =(1-E$3)*(E$4*EXP(-(($B110-E$6)^2/(E$5/1.67)^2)))+E$3*(E$4/(1+($B110-E$6)^2/E$5^2)) -> 0.002896542579 | F110: =(1-F$3)*(F$4*EXP(-(($B110-F$6)^2/(F$5/1.67)^2)))+F$3*(F$4/(1+($B110-F$6)^2/F$5^2)) -> 0 | G110: =(1-G$3)*(G$4*EXP(-(($B110-G$6)^2/(G$5/1.67)^2)))+G$3*(G$4/(1+($B110-G$6)^2/G$5^2)) -> 0 | H110: =(1-H$3)*(H$4*EXP(-(($B110-H$6)^2/(H$5/1.67)^2)))+H$3*(H$4/(1+($B110-H$6)^2/H$5^2)) -> 0 | I110: =(1-I$3)*(I$4*EXP(-(($B110-I$6)^2/(I$5/1.67)^2)))+I$3*(I$4/(1+($B110-I$6)^2/I$5^2)) -> 0 | J110: =SUM(D110:I110) -> 0.006391211515 | L110: =(C110-J110)^2 -> 4.084758463e-05
B111: 100 | C111: 0 | D111: =(1-D$3)*(D$4*EXP(-(($B111-D$6)^2/(D$5/1.67)^2)))+D$3*(D$4/(1+($B111-D$6)^2/D$5^2)) -> 0.003333802133 | E111: =(1-E$3)*(E$4*EXP(-(($B111-E$6)^2/(E$5/1.67)^2)))+E$3*(E$4/(1+($B111-E$6)^2/E$5^2)) -> 0.002798526106 | F111: =(1-F$3)*(F$4*EXP(-(($B111-F$6)^2/(F$5/1.67)^2)))+F$3*(F$4/(1+($B111-F$6)^2/F$5^2)) -> 0 | G111: =(1-G$3)*(G$4*EXP(-(($B111-G$6)^2/(G$5/1.67)^2)))+G$3*(G$4/(1+($B111-G$6)^2/G$5^2)) -> 0 | H111: =(1-H$3)*(H$4*EXP(-(($B111-H$6)^2/(H$5/1.67)^2)))+H$3*(H$4/(1+($B111-H$6)^2/H$5^2)) -> 0 | I111: =(1-I$3)*(I$4*EXP(-(($B111-I$6)^2/(I$5/1.67)^2)))+I$3*(I$4/(1+($B111-I$6)^2/I$5^2)) -> 0 | J111: =SUM(D111:I111) -> 0.006132328239 | L111: =(C111-J111)^2 -> 3.760544963e-05
B112: 101 | C112: 0 | D112: =(1-D$3)*(D$4*EXP(-(($B112-D$6)^2/(D$5/1.67)^2)))+D$3*(D$4/(1+($B112-D$6)^2/D$5^2)) -> 0.003183331845 | E112: =(1-E$3)*(E$4*EXP(-(($B112-E$6)^2/(E$5/1.67)^2)))+E$3*(E$4/(1+($B112-E$6)^2/E$5^2)) -> 0.002705386235 | F112: =(1-F$3)*(F$4*EXP(-(($B112-F$6)^2/(F$5/1.67)^2)))+F$3*(F$4/(1+($B112-F$6)^2/F$5^2)) -> 0 | G112: =(1-G$3)*(G$4*EXP(-(($B112-G$6)^2/(G$5/1.67)^2)))+G$3*(G$4/(1+($B112-G$6)^2/G$5^2)) -> 0 | H112: =(1-H$3)*(H$4*EXP(-(($B112-H$6)^2/(H$5/1.67)^2)))+H$3*(H$4/(1+($B112-H$6)^2/H$5^2)) -> 0 | I112: =(1-I$3)*(I$4*EXP(-(($B112-I$6)^2/(I$5/1.67)^2)))+I$3*(I$4/(1+($B112-I$6)^2/I$5^2)) -> 0 | J112: =SUM(D112:I112) -> 0.00588871808 | L112: =(C112-J112)^2 -> 3.467700062e-05
B113: 102 | C113: 0 | D113: =(1-D$3)*(D$4*EXP(-(($B113-D$6)^2/(D$5/1.67)^2)))+D$3*(D$4/(1+($B113-D$6)^2/D$5^2)) -> 0.003042421023 | E113: =(1-E$3)*(E$4*EXP(-(($B113-E$6)^2/(E$5/1.67)^2)))+E$3*(E$4/(1+($B113-E$6)^2/E$5^2)) -> 0.002616805748 | F113: =(1-F$3)*(F$4*EXP(-(($B113-F$6)^2/(F$5/1.67)^2)))+F$3*(F$4/(1+($B113-F$6)^2/F$5^2)) -> 0 | G113: =(1-G$3)*(G$4*EXP(-(($B113-G$6)^2/(G$5/1.67)^2)))+G$3*(G$4/(1+($B113-G$6)^2/G$5^2)) -> 0 | H113: =(1-H$3)*(H$4*EXP(-(($B113-H$6)^2/(H$5/1.67)^2)))+H$3*(H$4/(1+($B113-H$6)^2/H$5^2)) -> 0 | I113: =(1-I$3)*(I$4*EXP(-(($B113-I$6)^2/(I$5/1.67)^2)))+I$3*(I$4/(1+($B113-I$6)^2/I$5^2)) -> 0 | J113: =SUM(D113:I113) -> 0.005659226771 | L113: =(C113-J113)^2 -> 3.202684764e-05
B114: 103 | C114: 0 | D114: =(1-D$3)*(D$4*EXP(-(($B114-D$6)^2/(D$5/1.67)^2)))+D$3*(D$4/(1+($B114-D$6)^2/D$5^2)) -> 0.002910311304 | E114: =(1-E$3)*(E$4*EXP(-(($B114-E$6)^2/(E$5/1.67)^2)))+E$3*(E$4/(1+($B114-E$6)^2/E$5^2)) -> 0.00253249273 | F114: =(1-F$3)*(F$4*EXP(-(($B114-F$6)^2/(F$5/1.67)^2)))+F$3*(F$4/(1+($B114-F$6)^2/F$5^2)) -> 0 | G114: =(1-G$3)*(G$4*EXP(-(($B114-G$6)^2/(G$5/1.67)^2)))+G$3*(G$4/(1+($B114-G$6)^2/G$5^2)) -> 0 | H114: =(1-H$3)*(H$4*EXP(-(($B114-H$6)^2/(H$5/1.67)^2)))+H$3*(H$4/(1+($B114-H$6)^2/H$5^2)) -> 0 | I114: =(1-I$3)*(I$4*EXP(-(($B114-I$6)^2/(I$5/1.67)^2)))+I$3*(I$4/(1+($B114-I$6)^2/I$5^2)) -> 0 | J114: =SUM(D114:I114) -> 0.005442804033 | L114: =(C114-J114)^2 -> 2.962411575e-05
B115: 104 | C115: 0 | D115: =(1-D$3)*(D$4*EXP(-(($B115-D$6)^2/(D$5/1.67)^2)))+D$3*(D$4/(1+($B115-D$6)^2/D$5^2)) -> 0.002786314523 | E115: =(1-E$3)*(E$4*EXP(-(($B115-E$6)^2/(E$5/1.67)^2)))+E$3*(E$4/(1+($B115-E$6)^2/E$5^2)) -> 0.00245217819 | F115: =(1-F$3)*(F$4*EXP(-(($B115-F$6)^2/(F$5/1.67)^2)))+F$3*(F$4/(1+($B115-F$6)^2/F$5^2)) -> 0 | G115: =(1-G$3)*(G$4*EXP(-(($B115-G$6)^2/(G$5/1.67)^2)))+G$3*(G$4/(1+($B115-G$6)^2/G$5^2)) -> 0 | H115: =(1-H$3)*(H$4*EXP(-(($B115-H$6)^2/(H$5/1.67)^2)))+H$3*(H$4/(1+($B115-H$6)^2/H$5^2)) -> 0 | I115: =(1-I$3)*(I$4*EXP(-(($B115-I$6)^2/(I$5/1.67)^2)))+I$3*(I$4/(1+($B115-I$6)^2/I$5^2)) -> 0 | J115: =SUM(D115:I115) -> 0.005238492713 | L115: =(C115-J115)^2 -> 2.74418059e-05
B116: 105 | C116: 0 | D116: =(1-D$3)*(D$4*EXP(-(($B116-D$6)^2/(D$5/1.67)^2)))+D$3*(D$4/(1+($B116-D$6)^2/D$5^2)) -> 0.002669805406 | E116: =(1-E$3)*(E$4*EXP(-(($B116-E$6)^2/(E$5/1.67)^2)))+E$3*(E$4/(1+($B116-E$6)^2/E$5^2)) -> 0.002375613942 | F116: =(1-F$3)*(F$4*EXP(-(($B116-F$6)^2/(F$5/1.67)^2)))+F$3*(F$4/(1+($B116-F$6)^2/F$5^2)) -> 0 | G116: =(1-G$3)*(G$4*EXP(-(($B116-G$6)^2/(G$5/1.67)^2)))+G$3*(G$4/(1+($B116-G$6)^2/G$5^2)) -> 0 | H116: =(1-H$3)*(H$4*EXP(-(($B116-H$6)^2/(H$5/1.67)^2)))+H$3*(H$4/(1+($B116-H$6)^2/H$5^2)) -> 0 | I116: =(1-I$3)*(I$4*EXP(-(($B116-I$6)^2/(I$5/1.67)^2)))+I$3*(I$4/(1+($B116-I$6)^2/I$5^2)) -> 0 | J116: =SUM(D116:I116) -> 0.005045419349 | L116: =(C116-J116)^2 -> 2.54562564e-05
B117: 106 | C117: 0 | D117: =(1-D$3)*(D$4*EXP(-(($B117-D$6)^2/(D$5/1.67)^2)))+D$3*(D$4/(1+($B117-D$6)^2/D$5^2)) -> 0.002560215146 | E117: =(1-E$3)*(E$4*EXP(-(($B117-E$6)^2/(E$5/1.67)^2)))+E$3*(E$4/(1+($B117-E$6)^2/E$5^2)) -> 0.002302570711 | F117: =(1-F$3)*(F$4*EXP(-(($B117-F$6)^2/(F$5/1.67)^2)))+F$3*(F$4/(1+($B117-F$6)^2/F$5^2)) -> 0 | G117: =(1-G$3)*(G$4*EXP(-(($B117-G$6)^2/(G$5/1.67)^2)))+G$3*(G$4/(1+($B117-G$6)^2/G$5^2)) -> 0 | H117: =(1-H$3)*(H$4*EXP(-(($B117-H$6)^2/(H$5/1.67)^2)))+H$3*(H$4/(1+($B117-H$6)^2/H$5^2)) -> 0 | I117: =(1-I$3)*(I$4*EXP(-(($B117-I$6)^2/(I$5/1.67)^2)))+I$3*(I$4/(1+($B117-I$6)^2/I$5^2)) -> 0 | J117: =SUM(D117:I117) -> 0.004862785857 | L117: =(C117-J117)^2 -> 2.364668629e-05
B118: 107 | C118: 0 | D118: =(1-D$3)*(D$4*EXP(-(($B118-D$6)^2/(D$5/1.67)^2)))+D$3*(D$4/(1+($B118-D$6)^2/D$5^2)) -> 0.002457025703 | E118: =(1-E$3)*(E$4*EXP(-(($B118-E$6)^2/(E$5/1.67)^2)))+E$3*(E$4/(1+($B118-E$6)^2/E$5^2)) -> 0.002232836428 | F118: =(1-F$3)*(F$4*EXP(-(($B118-F$6)^2/(F$5/1.67)^2)))+F$3*(F$4/(1+($B118-F$6)^2/F$5^2)) -> 0 | G118: =(1-G$3)*(G$4*EXP(-(($B118-G$6)^2/(G$5/1.67)^2)))+G$3*(G$4/(1+($B118-G$6)^2/G$5^2)) -> 0 | H118: =(1-H$3)*(H$4*EXP(-(($B118-H$6)^2/(H$5/1.67)^2)))+H$3*(H$4/(1+($B118-H$6)^2/H$5^2)) -> 0 | I118: =(1-I$3)*(I$4*EXP(-(($B118-I$6)^2/(I$5/1.67)^2)))+I$3*(I$4/(1+($B118-I$6)^2/I$5^2)) -> 0 | J118: =SUM(D118:I118) -> 0.004689862131 | L118: =(C118-J118)^2 -> 2.199480681e-05
B119: 108 | C119: 0 | D119: =(1-D$3)*(D$4*EXP(-(($B119-D$6)^2/(D$5/1.67)^2)))+D$3*(D$4/(1+($B119-D$6)^2/D$5^2)) -> 0.00235976473 | E119: =(1-E$3)*(E$4*EXP(-(($B119-E$6)^2/(E$5/1.67)^2)))+E$3*(E$4/(1+($B119-E$6)^2/E$5^2)) -> 0.002166214714 | F119: =(1-F$3)*(F$4*EXP(-(($B119-F$6)^2/(F$5/1.67)^2)))+F$3*(F$4/(1+($B119-F$6)^2/F$5^2)) -> 0 | G119: =(1-G$3)*(G$4*EXP(-(($B119-G$6)^2/(G$5/1.67)^2)))+G$3*(G$4/(1+($B119-G$6)^2/G$5^2)) -> 0 | H119: =(1-H$3)*(H$4*EXP(-(($B119-H$6)^2/(H$5/1.67)^2)))+H$3*(H$4/(1+($B119-H$6)^2/H$5^2)) -> 0 | I119: =(1-I$3)*(I$4*EXP(-(($B119-I$6)^2/(I$5/1.67)^2)))+I$3*(I$4/(1+($B119-I$6)^2/I$5^2)) -> 0 | J119: =SUM(D119:I119) -> 0.004525979444 | L119: =(C119-J119)^2 -> 2.048448993e-05
B120: 109 | C120: 0 | D120: =(1-D$3)*(D$4*EXP(-(($B120-D$6)^2/(D$5/1.67)^2)))+D$3*(D$4/(1+($B120-D$6)^2/D$5^2)) -> 0.002268001041 | E120: =(1-E$3)*(E$4*EXP(-(($B120-E$6)^2/(E$5/1.67)^2)))+E$3*(E$4/(1+($B120-E$6)^2/E$5^2)) -> 0.00210252351 | F120: =(1-F$3)*(F$4*EXP(-(($B120-F$6)^2/(F$5/1.67)^2)))+F$3*(F$4/(1+($B120-F$6)^2/F$5^2)) -> 0 | G120: =(1-G$3)*(G$4*EXP(-(($B120-G$6)^2/(G$5/1.67)^2)))+G$3*(G$4/(1+($B120-G$6)^2/G$5^2)) -> 0 | H120: =(1-H$3)*(H$4*EXP(-(($B120-H$6)^2/(H$5/1.67)^2)))+H$3*(H$4/(1+($B120-H$6)^2/H$5^2)) -> 0 | I120: =(1-I$3)*(I$4*EXP(-(($B120-I$6)^2/(I$5/1.67)^2)))+I$3*(I$4/(1+($B120-I$6)^2/I$5^2)) -> 0 | J120: =SUM(D120:I120) -> 0.004370524551 | L120: =(C120-J120)^2 -> 1.910148485e-05
B121: 110 | C121: 0 | D121: =(1-D$3)*(D$4*EXP(-(($B121-D$6)^2/(D$5/1.67)^2)))+D$3*(D$4/(1+($B121-D$6)^2/D$5^2)) -> 0.002181340574 | E121: =(1-E$3)*(E$4*EXP(-(($B121-E$6)^2/(E$5/1.67)^2)))+E$3*(E$4/(1+($B121-E$6)^2/E$5^2)) -> 0.002041593841 | F121: =(1-F$3)*(F$4*EXP(-(($B121-F$6)^2/(F$5/1.67)^2)))+F$3*(F$4/(1+($B121-F$6)^2/F$5^2)) -> 0 | G121: =(1-G$3)*(G$4*EXP(-(($B121-G$6)^2/(G$5/1.67)^2)))+G$3*(G$4/(1+($B121-G$6)^2/G$5^2)) -> 0 | H121: =(1-H$3)*(H$4*EXP(-(($B121-H$6)^2/(H$5/1.67)^2)))+H$3*(H$4/(1+($B121-H$6)^2/H$5^2)) -> 0 | I121: =(1-I$3)*(I$4*EXP(-(($B121-I$6)^2/(I$5/1.67)^2)))+I$3*(I$4/(1+($B121-I$6)^2/I$5^2)) -> 0 | J121: =SUM(D121:I121) -> 0.004222934415 | L121: =(C121-J121)^2 -> 1.783317508e-05
B122: 111 | C122: 0 | D122: =(1-D$3)*(D$4*EXP(-(($B122-D$6)^2/(D$5/1.67)^2)))+D$3*(D$4/(1+($B122-D$6)^2/D$5^2)) -> 0.002099422775 | E122: =(1-E$3)*(E$4*EXP(-(($B122-E$6)^2/(E$5/1.67)^2)))+E$3*(E$4/(1+($B122-E$6)^2/E$5^2)) -> 0.00198326871 | F122: =(1-F$3)*(F$4*EXP(-(($B122-F$6)^2/(F$5/1.67)^2)))+F$3*(F$4/(1+($B122-F$6)^2/F$5^2)) -> 0 | G122: =(1-G$3)*(G$4*EXP(-(($B122-G$6)^2/(G$5/1.67)^2)))+G$3*(G$4/(1+($B122-G$6)^2/G$5^2)) -> 0 | H122: =(1-H$3)*(H$4*EXP(-(($B122-H$6)^2/(H$5/1.67)^2)))+H$3*(H$4/(1+($B122-H$6)^2/H$5^2)) -> 0 | I122: =(1-I$3)*(I$4*EXP(-(($B122-I$6)^2/(I$5/1.67)^2)))+I$3*(I$4/(1+($B122-I$6)^2/I$5^2)) -> 0 | J122: =SUM(D122:I122) -> 0.004082691486 | L122: =(C122-J122)^2 -> 1.666836977e-05
B123: 112 | C123: 0 | D123: =(1-D$3)*(D$4*EXP(-(($B123-D$6)^2/(D$5/1.67)^2)))+D$3*(D$4/(1+($B123-D$6)^2/D$5^2)) -> 0.002021917368 | E123: =(1-E$3)*(E$4*EXP(-(($B123-E$6)^2/(E$5/1.67)^2)))+E$3*(E$4/(1+($B123-E$6)^2/E$5^2)) -> 0.001927402096 | F123: =(1-F$3)*(F$4*EXP(-(($B123-F$6)^2/(F$5/1.67)^2)))+F$3*(F$4/(1+($B123-F$6)^2/F$5^2)) -> 0 | G123: =(1-G$3)*(G$4*EXP(-(($B123-G$6)^2/(G$5/1.67)^2)))+G$3*(G$4/(1+($B123-G$6)^2/G$5^2)) -> 0 | H123: =(1-H$3)*(H$4*EXP(-(($B123-H$6)^2/(H$5/1.67)^2)))+H$3*(H$4/(1+($B123-H$6)^2/H$5^2)) -> 0 | I123: =(1-I$3)*(I$4*EXP(-(($B123-I$6)^2/(I$5/1.67)^2)))+I$3*(I$4/(1+($B123-I$6)^2/I$5^2)) -> 0 | J123: =SUM(D123:I123) -> 0.003949319464 | L123: =(C123-J123)^2 -> 1.559712423e-05
B124: 113 | C124: 0 | D124: =(1-D$3)*(D$4*EXP(-(($B124-D$6)^2/(D$5/1.67)^2)))+D$3*(D$4/(1+($B124-D$6)^2/D$5^2)) -> 0.001948521466 | E124: =(1-E$3)*(E$4*EXP(-(($B124-E$6)^2/(E$5/1.67)^2)))+E$3*(E$4/(1+($B124-E$6)^2/E$5^2)) -> 0.001873858044 | F124: =(1-F$3)*(F$4*EXP(-(($B124-F$6)^2/(F$5/1.67)^2)))+F$3*(F$4/(1+($B124-F$6)^2/F$5^2)) -> 0 | G124: =(1-G$3)*(G$4*EXP(-(($B124-G$6)^2/(G$5/1.67)^2)))+G$3*(G$4/(1+($B124-G$6)^2/G$5^2)) -> 0 | H124: =(1-H$3)*(H$4*EXP(-(($B124-H$6)^2/(H$5/1.67)^2)))+H$3*(H$4/(1+($B124-H$6)^2/H$5^2)) -> 0 | I124: =(1-I$3)*(I$4*EXP(-(($B124-I$6)^2/(I$5/1.67)^2)))+I$3*(I$4/(1+($B124-I$6)^2/I$5^2)) -> 0 | J124: =SUM(D124:I124) -> 0.003822379511 | L124: =(C124-J124)^2 -> 1.461058512e-05
B125: 114 | C125: 0 | D125: =(1-D$3)*(D$4*EXP(-(($B125-D$6)^2/(D$5/1.67)^2)))+D$3*(D$4/(1+($B125-D$6)^2/D$5^2)) -> 0.001878956984 | E125: =(1-E$3)*(E$4*EXP(-(($B125-E$6)^2/(E$5/1.67)^2)))+E$3*(E$4/(1+($B125-E$6)^2/E$5^2)) -> 0.001822509851 | F125: =(1-F$3)*(F$4*EXP(-(($B125-F$6)^2/(F$5/1.67)^2)))+F$3*(F$4/(1+($B125-F$6)^2/F$5^2)) -> 0 | G125: =(1-G$3)*(G$4*EXP(-(($B125-G$6)^2/(G$5/1.67)^2)))+G$3*(G$4/(1+($B125-G$6)^2/G$5^2)) -> 0 | H125: =(1-H$3)*(H$4*EXP(-(($B125-H$6)^2/(H$5/1.67)^2)))+H$3*(H$4/(1+($B125-H$6)^2/H$5^2)) -> 0 | I125: =(1-I$3)*(I$4*EXP(-(($B125-I$6)^2/(I$5/1.67)^2)))+I$3*(I$4/(1+($B125-I$6)^2/I$5^2)) -> 0 | J125: =SUM(D125:I125) -> 0.003701466835 | L125: =(C125-J125)^2 -> 1.370085673e-05
B126: 115 | C126: 0 | D126: =(1-D$3)*(D$4*EXP(-(($B126-D$6)^2/(D$5/1.67)^2)))+D$3*(D$4/(1+($B126-D$6)^2/D$5^2)) -> 0.001812968319 | E126: =(1-E$3)*(E$4*EXP(-(($B126-E$6)^2/(E$5/1.67)^2)))+E$3*(E$4/(1+($B126-E$6)^2/E$5^2)) -> 0.001773239318 | F126: =(1-F$3)*(F$4*EXP(-(($B126-F$6)^2/(F$5/1.67)^2)))+F$3*(F$4/(1+($B126-F$6)^2/F$5^2)) -> 0 | G126: =(1-G$3)*(G$4*EXP(-(($B126-G$6)^2/(G$5/1.67)^2)))+G$3*(G$4/(1+($B126-G$6)^2/G$5^2)) -> 0 | H126: =(1-H$3)*(H$4*EXP(-(($B126-H$6)^2/(H$5/1.67)^2)))+H$3*(H$4/(1+($B126-H$6)^2/H$5^2)) -> 0 | I126: =(1-I$3)*(I$4*EXP(-(($B126-I$6)^2/(I$5/1.67)^2)))+I$3*(I$4/(1+($B126-I$6)^2/I$5^2)) -> 0 | J126: =SUM(D126:I126) -> 0.003586207637 | L126: =(C126-J126)^2 -> 1.286088522e-05
B127: 116 | C127: 0 | D127: =(1-D$3)*(D$4*EXP(-(($B127-D$6)^2/(D$5/1.67)^2)))+D$3*(D$4/(1+($B127-D$6)^2/D$5^2)) -> 0.001750320275 | E127: =(1-E$3)*(E$4*EXP(-(($B127-E$6)^2/(E$5/1.67)^2)))+E$3*(E$4/(1+($B127-E$6)^2/E$5^2)) -> 0.001725936077 | F127: =(1-F$3)*(F$4*EXP(-(($B127-F$6)^2/(F$5/1.67)^2)))+F$3*(F$4/(1+($B127-F$6)^2/F$5^2)) -> 0 | G127: =(1-G$3)*(G$4*EXP(-(($B127-G$6)^2/(G$5/1.67)^2)))+G$3*(G$4/(1+($B127-G$6)^2/G$5^2)) -> 0 | H127: =(1-H$3)*(H$4*EXP(-(($B127-H$6)^2/(H$5/1.67)^2)))+H$3*(H$4/(1+($B127-H$6)^2/H$5^2)) -> 0 | I127: =(1-I$3)*(I$4*EXP(-(($B127-I$6)^2/(I$5/1.67)^2)))+I$3*(I$4/(1+($B127-I$6)^2/I$5^2)) -> 0 | J127: =SUM(D127:I127) -> 0.003476256352 | L127: =(C127-J127)^2 -> 1.208435823e-05
B128: 117 | C128: 0 | D128: =(1-D$3)*(D$4*EXP(-(($B128-D$6)^2/(D$5/1.67)^2)))+D$3*(D$4/(1+($B128-D$6)^2/D$5^2)) -> 0.001690796193 | E128: =(1-E$3)*(E$4*EXP(-(($B128-E$6)^2/(E$5/1.67)^2)))+E$3*(E$4/(1+($B128-E$6)^2/E$5^2)) -> 0.001680496978 | F128: =(1-F$3)*(F$4*EXP(-(($B128-F$6)^2/(F$5/1.67)^2)))+F$3*(F$4/(1+($B128-F$6)^2/F$5^2)) -> 0 | G128: =(1-G$3)*(G$4*EXP(-(($B128-G$6)^2/(G$5/1.67)^2)))+G$3*(G$4/(1+($B128-G$6)^2/G$5^2)) -> 0 | H128: =(1-H$3)*(H$4*EXP(-(($B128-H$6)^2/(H$5/1.67)^2)))+H$3*(H$4/(1+($B128-H$6)^2/H$5^2)) -> 0 | I128: =(1-I$3)*(I$4*EXP(-(($B128-I$6)^2/(I$5/1.67)^2)))+I$3*(I$4/(1+($B128-I$6)^2/I$5^2)) -> 0 | J128: =SUM(D128:I128) -> 0.003371293171 | L128: =(C128-J128)^2 -> 1.136561764e-05
B129: 118 | C129: 0 | D129: =(1-D$3)*(D$4*EXP(-(($B129-D$6)^2/(D$5/1.67)^2)))+D$3*(D$4/(1+($B129-D$6)^2/D$5^2)) -> 0.001634196273 | E129: =(1-E$3)*(E$4*EXP(-(($B129-E$6)^2/(E$5/1.67)^2)))+E$3*(E$4/(1+($B129-E$6)^2/E$5^2)) -> 0.001636825531 | F129: =(1-F$3)*(F$4*EXP(-(($B129-F$6)^2/(F$5/1.67)^2)))+F$3*(F$4/(1+($B129-F$6)^2/F$5^2)) -> 0 | G129: =(1-G$3)*(G$4*EXP(-(($B129-G$6)^2/(G$5/1.67)^2)))+G$3*(G$4/(1+($B129-G$6)^2/G$5^2)) -> 0 | H129: =(1-H$3)*(H$4*EXP(-(($B129-H$6)^2/(H$5/1.67)^2)))+H$3*(H$4/(1+($B129-H$6)^2/H$5^2)) -> 0 | I129: =(1-I$3)*(I$4*EXP(-(($B129-I$6)^2/(I$5/1.67)^2)))+I$3*(I$4/(1+($B129-I$6)^2/I$5^2)) -> 0 | J129: =SUM(D129:I129) -> 0.003271021804 | L129: =(C129-J129)^2 -> 1.069958364e-05
B130: 119 | C130: 0 | D130: =(1-D$3)*(D$4*EXP(-(($B130-D$6)^2/(D$5/1.67)^2)))+D$3*(D$4/(1+($B130-D$6)^2/D$5^2)) -> 0.00158033607 | E130: =(1-E$3)*(E$4*EXP(-(($B130-E$6)^2/(E$5/1.67)^2)))+E$3*(E$4/(1+($B130-E$6)^2/E$5^2)) -> 0.001594831397 | F130: =(1-F$3)*(F$4*EXP(-(($B130-F$6)^2/(F$5/1.67)^2)))+F$3*(F$4/(1+($B130-F$6)^2/F$5^2)) -> 0 | G130: =(1-G$3)*(G$4*EXP(-(($B130-G$6)^2/(G$5/1.67)^2)))+G$3*(G$4/(1+($B130-G$6)^2/G$5^2)) -> 0 | H130: =(1-H$3)*(H$4*EXP(-(($B130-H$6)^2/(H$5/1.67)^2)))+H$3*(H$4/(1+($B130-H$6)^2/H$5^2)) -> 0 | I130: =(1-I$3)*(I$4*EXP(-(($B130-I$6)^2/(I$5/1.67)^2)))+I$3*(I$4/(1+($B130-I$6)^2/I$5^2)) -> 0 | J130: =SUM(D130:I130) -> 0.003175167467 | L130: =(C130-J130)^2 -> 1.008168844e-05
B131: 120 | C131: 0 | D131: =(1-D$3)*(D$4*EXP(-(($B131-D$6)^2/(D$5/1.67)^2)))+D$3*(D$4/(1+($B131-D$6)^2/D$5^2)) -> 0.001529045132 | E131: =(1-E$3)*(E$4*EXP(-(($B131-E$6)^2/(E$5/1.67)^2)))+E$3*(E$4/(1+($B131-E$6)^2/E$5^2)) -> 0.001554429925 | F131: =(1-F$3)*(F$4*EXP(-(($B131-F$6)^2/(F$5/1.67)^2)))+F$3*(F$4/(1+($B131-F$6)^2/F$5^2)) -> 0 | G131: =(1-G$3)*(G$4*EXP(-(($B131-G$6)^2/(G$5/1.67)^2)))+G$3*(G$4/(1+($B131-G$6)^2/G$5^2)) -> 0 | H131: =(1-H$3)*(H$4*EXP(-(($B131-H$6)^2/(H$5/1.67)^2)))+H$3*(H$4/(1+($B131-H$6)^2/H$5^2)) -> 0 | I131: =(1-I$3)*(I$4*EXP(-(($B131-I$6)^2/(I$5/1.67)^2)))+I$3*(I$4/(1+($B131-I$6)^2/I$5^2)) -> 0 | J131: =SUM(D131:I131) -> 0.003083475057 | L131: =(C131-J131)^2 -> 9.507818426e-06
B132: 121 | C132: 0 | D132: =(1-D$3)*(D$4*EXP(-(($B132-D$6)^2/(D$5/1.67)^2)))+D$3*(D$4/(1+($B132-D$6)^2/D$5^2)) -> 0.001480165777 | E132: =(1-E$3)*(E$4*EXP(-(($B132-E$6)^2/(E$5/1.67)^2)))+E$3*(E$4/(1+($B132-E$6)^2/E$5^2)) -> 0.001515541727 | F132: =(1-F$3)*(F$4*EXP(-(($B132-F$6)^2/(F$5/1.67)^2)))+F$3*(F$4/(1+($B132-F$6)^2/F$5^2)) -> 0 | G132: =(1-G$3)*(G$4*EXP(-(($B132-G$6)^2/(G$5/1.67)^2)))+G$3*(G$4/(1+($B132-G$6)^2/G$5^2)) -> 0 | H132: =(1-H$3)*(H$4*EXP(-(($B132-H$6)^2/(H$5/1.67)^2)))+H$3*(H$4/(1+($B132-H$6)^2/H$5^2)) -> 0 | I132: =(1-I$3)*(I$4*EXP(-(($B132-I$6)^2/(I$5/1.67)^2)))+I$3*(I$4/(1+($B132-I$6)^2/I$5^2)) -> 0 | J132: =SUM(D132:I132) -> 0.002995707504 | L132: =(C132-J132)^2 -> 8.974263452e-06
B133: 122 | C133: 0 | D133: =(1-D$3)*(D$4*EXP(-(($B133-D$6)^2/(D$5/1.67)^2)))+D$3*(D$4/(1+($B133-D$6)^2/D$5^2)) -> 0.001433551989 | E133: =(1-E$3)*(E$4*EXP(-(($B133-E$6)^2/(E$5/1.67)^2)))+E$3*(E$4/(1+($B133-E$6)^2/E$5^2)) -> 0.001478092294 | F133: =(1-F$3)*(F$4*EXP(-(($B133-F$6)^2/(F$5/1.67)^2)))+F$3*(F$4/(1+($B133-F$6)^2/F$5^2)) -> 0 | G133: =(1-G$3)*(G$4*EXP(-(($B133-G$6)^2/(G$5/1.67)^2)))+G$3*(G$4/(1+($B133-G$6)^2/G$5^2)) -> 0 | H133: =(1-H$3)*(H$4*EXP(-(($B133-H$6)^2/(H$5/1.67)^2)))+H$3*(H$4/(1+($B133-H$6)^2/H$5^2)) -> 0 | I133: =(1-I$3)*(I$4*EXP(-(($B133-I$6)^2/(I$5/1.67)^2)))+I$3*(I$4/(1+($B133-I$6)^2/I$5^2)) -> 0 | J133: =SUM(D133:I133) -> 0.002911644283 | L133: =(C133-J133)^2 -> 8.477672432e-06
B134: 123 | C134: 0 | D134: =(1-D$3)*(D$4*EXP(-(($B134-D$6)^2/(D$5/1.67)^2)))+D$3*(D$4/(1+($B134-D$6)^2/D$5^2)) -> 0.00138906842 | E134: =(1-E$3)*(E$4*EXP(-(($B134-E$6)^2/(E$5/1.67)^2)))+E$3*(E$4/(1+($B134-E$6)^2/E$5^2)) -> 0.001442011637 | F134: =(1-F$3)*(F$4*EXP(-(($B134-F$6)^2/(F$5/1.67)^2)))+F$3*(F$4/(1+($B134-F$6)^2/F$5^2)) -> 0 | G134: =(1-G$3)*(G$4*EXP(-(($B134-G$6)^2/(G$5/1.67)^2)))+G$3*(G$4/(1+($B134-G$6)^2/G$5^2)) -> 0 | H134: =(1-H$3)*(H$4*EXP(-(($B134-H$6)^2/(H$5/1.67)^2)))+H$3*(H$4/(1+($B134-H$6)^2/H$5^2)) -> 0 | I134: =(1-I$3)*(I$4*EXP(-(($B134-I$6)^2/(I$5/1.67)^2)))+I$3*(I$4/(1+($B134-I$6)^2/I$5^2)) -> 0 | J134: =SUM(D134:I134) -> 0.002831080057 | L134: =(C134-J134)^2 -> 8.015014291e-06
B135: 124 | C135: 0 | D135: =(1-D$3)*(D$4*EXP(-(($B135-D$6)^2/(D$5/1.67)^2)))+D$3*(D$4/(1+($B135-D$6)^2/D$5^2)) -> 0.001346589488 | E135: =(1-E$3)*(E$4*EXP(-(($B135-E$6)^2/(E$5/1.67)^2)))+E$3*(E$4/(1+($B135-E$6)^2/E$5^2)) -> 0.001407233966 | F135: =(1-F$3)*(F$4*EXP(-(($B135-F$6)^2/(F$5/1.67)^2)))+F$3*(F$4/(1+($B135-F$6)^2/F$5^2)) -> 0 | G135: =(1-G$3)*(G$4*EXP(-(($B135-G$6)^2/(G$5/1.67)^2)))+G$3*(G$4/(1+($B135-G$6)^2/G$5^2)) -> 0 | H135: =(1-H$3)*(H$4*EXP(-(($B135-H$6)^2/(H$5/1.67)^2)))+H$3*(H$4/(1+($B135-H$6)^2/H$5^2)) -> 0 | I135: =(1-I$3)*(I$4*EXP(-(($B135-I$6)^2/(I$5/1.67)^2)))+I$3*(I$4/(1+($B135-I$6)^2/I$5^2)) -> 0 | J135: =SUM(D135:I135) -> 0.002753823454 | L135: =(C135-J135)^2 -> 7.583543618e-06
B136: 125 | C136: 0 | D136: =(1-D$3)*(D$4*EXP(-(($B136-D$6)^2/(D$5/1.67)^2)))+D$3*(D$4/(1+($B136-D$6)^2/D$5^2)) -> 0.001305998563 | E136: =(1-E$3)*(E$4*EXP(-(($B136-E$6)^2/(E$5/1.67)^2)))+E$3*(E$4/(1+($B136-E$6)^2/E$5^2)) -> 0.001373697389 | F136: =(1-F$3)*(F$4*EXP(-(($B136-F$6)^2/(F$5/1.67)^2)))+F$3*(F$4/(1+($B136-F$6)^2/F$5^2)) -> 0 | G136: =(1-G$3)*(G$4*EXP(-(($B136-G$6)^2/(G$5/1.67)^2)))+G$3*(G$4/(1+($B136-G$6)^2/G$5^2)) -> 0 | H136: =(1-H$3)*(H$4*EXP(-(($B136-H$6)^2/(H$5/1.67)^2)))+H$3*(H$4/(1+($B136-H$6)^2/H$5^2)) -> 0 | I136: =(1-I$3)*(I$4*EXP(-(($B136-I$6)^2/(I$5/1.67)^2)))+I$3*(I$4/(1+($B136-I$6)^2/I$5^2)) -> 0 | J136: =SUM(D136:I136) -> 0.002679695952 | L136: =(C136-J136)^2 -> 7.180770395e-06
B137: 126 | C137: 0 | D137: =(1-D$3)*(D$4*EXP(-(($B137-D$6)^2/(D$5/1.67)^2)))+D$3*(D$4/(1+($B137-D$6)^2/D$5^2)) -> 0.001267187223 | E137: =(1-E$3)*(E$4*EXP(-(($B137-E$6)^2/(E$5/1.67)^2)))+E$3*(E$4/(1+($B137-E$6)^2/E$5^2)) -> 0.00134134364 | F137: =(1-F$3)*(F$4*EXP(-(($B137-F$6)^2/(F$5/1.67)^2)))+F$3*(F$4/(1+($B137-F$6)^2/F$5^2)) -> 0 | G137: =(1-G$3)*(G$4*EXP(-(($B137-G$6)^2/(G$5/1.67)^2)))+G$3*(G$4/(1+($B137-G$6)^2/G$5^2)) -> 0 | H137: =(1-H$3)*(H$4*EXP(-(($B137-H$6)^2/(H$5/1.67)^2)))+H$3*(H$4/(1+($B137-H$6)^2/H$5^2)) -> 0 | I137: =(1-I$3)*(I$4*EXP(-(($B137-I$6)^2/(I$5/1.67)^2)))+I$3*(I$4/(1+($B137-I$6)^2/I$5^2)) -> 0 | J137: =SUM(D137:I137) -> 0.002608530863 | L137: =(C137-J137)^2 -> 6.804433264e-06
B138: 127 | C138: 0 | D138: =(1-D$3)*(D$4*EXP(-(($B138-D$6)^2/(D$5/1.67)^2)))+D$3*(D$4/(1+($B138-D$6)^2/D$5^2)) -> 0.001230054586 | E138: =(1-E$3)*(E$4*EXP(-(($B138-E$6)^2/(E$5/1.67)^2)))+E$3*(E$4/(1+($B138-E$6)^2/E$5^2)) -> 0.001310117829 | F138: =(1-F$3)*(F$4*EXP(-(($B138-F$6)^2/(F$5/1.67)^2)))+F$3*(F$4/(1+($B138-F$6)^2/F$5^2)) -> 0 | G138: =(1-G$3)*(G$4*EXP(-(($B138-G$6)^2/(G$5/1.67)^2)))+G$3*(G$4/(1+($B138-G$6)^2/G$5^2)) -> 0 | H138: =(1-H$3)*(H$4*EXP(-(($B138-H$6)^2/(H$5/1.67)^2)))+H$3*(H$4/(1+($B138-H$6)^2/H$5^2)) -> 0 | I138: =(1-I$3)*(I$4*EXP(-(($B138-I$6)^2/(I$5/1.67)^2)))+I$3*(I$4/(1+($B138-I$6)^2/I$5^2)) -> 0 | J138: =SUM(D138:I138) -> 0.002540172415 | L138: =(C138-J138)^2 -> 6.4524759e-06
B139: 128 | C139: 0 | D139: =(1-D$3)*(D$4*EXP(-(($B139-D$6)^2/(D$5/1.67)^2)))+D$3*(D$4/(1+($B139-D$6)^2/D$5^2)) -> 0.001194506703 | E139: =(1-E$3)*(E$4*EXP(-(($B139-E$6)^2/(E$5/1.67)^2)))+E$3*(E$4/(1+($B139-E$6)^2/E$5^2)) -> 0.001279968206 | F139: =(1-F$3)*(F$4*EXP(-(($B139-F$6)^2/(F$5/1.67)^2)))+F$3*(F$4/(1+($B139-F$6)^2/F$5^2)) -> 0 | G139: =(1-G$3)*(G$4*EXP(-(($B139-G$6)^2/(G$5/1.67)^2)))+G$3*(G$4/(1+($B139-G$6)^2/G$5^2)) -> 0 | H139: =(1-H$3)*(H$4*EXP(-(($B139-H$6)^2/(H$5/1.67)^2)))+H$3*(H$4/(1+($B139-H$6)^2/H$5^2)) -> 0 | I139: =(1-I$3)*(I$4*EXP(-(($B139-I$6)^2/(I$5/1.67)^2)))+I$3*(I$4/(1+($B139-I$6)^2/I$5^2)) -> 0 | J139: =SUM(D139:I139) -> 0.002474474909 | L139: =(C139-J139)^2 -> 6.123026077e-06
B140: 129 | C140: 0 | D140: =(1-D$3)*(D$4*EXP(-(($B140-D$6)^2/(D$5/1.67)^2)))+D$3*(D$4/(1+($B140-D$6)^2/D$5^2)) -> 0.001160456 | E140: =(1-E$3)*(E$4*EXP(-(($B140-E$6)^2/(E$5/1.67)^2)))+E$3*(E$4/(1+($B140-E$6)^2/E$5^2)) -> 0.001250845953 | F140: =(1-F$3)*(F$4*EXP(-(($B140-F$6)^2/(F$5/1.67)^2)))+F$3*(F$4/(1+($B140-F$6)^2/F$5^2)) -> 0 | G140: =(1-G$3)*(G$4*EXP(-(($B140-G$6)^2/(G$5/1.67)^2)))+G$3*(G$4/(1+($B140-G$6)^2/G$5^2)) -> 0 | H140: =(1-H$3)*(H$4*EXP(-(($B140-H$6)^2/(H$5/1.67)^2)))+H$3*(H$4/(1+($B140-H$6)^2/H$5^2)) -> 0 | I140: =(1-I$3)*(I$4*EXP(-(($B140-I$6)^2/(I$5/1.67)^2)))+I$3*(I$4/(1+($B140-I$6)^2/I$5^2)) -> 0 | J140: =SUM(D140:I140) -> 0.002411301953 | L140: =(C140-J140)^2 -> 5.814377107e-06
B141: 130 | C141: 0 | D141: =(1-D$3)*(D$4*EXP(-(($B141-D$6)^2/(D$5/1.67)^2)))+D$3*(D$4/(1+($B141-D$6)^2/D$5^2)) -> 0.001127820776 | E141: =(1-E$3)*(E$4*EXP(-(($B141-E$6)^2/(E$5/1.67)^2)))+E$3*(E$4/(1+($B141-E$6)^2/E$5^2)) -> 0.001222704983 | F141: =(1-F$3)*(F$4*EXP(-(($B141-F$6)^2/(F$5/1.67)^2)))+F$3*(F$4/(1+($B141-F$6)^2/F$5^2)) -> 0 | G141: =(1-G$3)*(G$4*EXP(-(($B141-G$6)^2/(G$5/1.67)^2)))+G$3*(G$4/(1+($B141-G$6)^2/G$5^2)) -> 0 | H141: =(1-H$3)*(H$4*EXP(-(($B141-H$6)^2/(H$5/1.67)^2)))+H$3*(H$4/(1+($B141-H$6)^2/H$5^2)) -> 0 | I141: =(1-I$3)*(I$4*EXP(-(($B141-I$6)^2/(I$5/1.67)^2)))+I$3*(I$4/(1+($B141-I$6)^2/I$5^2)) -> 0 | J141: =SUM(D141:I141) -> 0.002350525759 | L141: =(C141-J141)^2 -> 5.524971345e-06
B142: 131 | C142: 0 | D142: =(1-D$3)*(D$4*EXP(-(($B142-D$6)^2/(D$5/1.67)^2)))+D$3*(D$4/(1+($B142-D$6)^2/D$5^2)) -> 0.001096524746 | E142: =(1-E$3)*(E$4*EXP(-(($B142-E$6)^2/(E$5/1.67)^2)))+E$3*(E$4/(1+($B142-E$6)^2/E$5^2)) -> 0.001195501764 | F142: =(1-F$3)*(F$4*EXP(-(($B142-F$6)^2/(F$5/1.67)^2)))+F$3*(F$4/(1+($B142-F$6)^2/F$5^2)) -> 0 | G142: =(1-G$3)*(G$4*EXP(-(($B142-G$6)^2/(G$5/1.67)^2)))+G$3*(G$4/(1+($B142-G$6)^2/G$5^2)) -> 0 | H142: =(1-H$3)*(H$4*EXP(-(($B142-H$6)^2/(H$5/1.67)^2)))+H$3*(H$4/(1+($B142-H$6)^2/H$5^2)) -> 0 | I142: =(1-I$3)*(I$4*EXP(-(($B142-I$6)^2/(I$5/1.67)^2)))+I$3*(I$4/(1+($B142-I$6)^2/I$5^2)) -> 0 | J142: =SUM(D142:I142) -> 0.002292026509 | L142: =(C142-J142)^2 -> 5.253385519e-06
B143: 132 | C143: 0 | D143: =(1-D$3)*(D$4*EXP(-(($B143-D$6)^2/(D$5/1.67)^2)))+D$3*(D$4/(1+($B143-D$6)^2/D$5^2)) -> 0.00106649662 | E143: =(1-E$3)*(E$4*EXP(-(($B143-E$6)^2/(E$5/1.67)^2)))+E$3*(E$4/(1+($B143-E$6)^2/E$5^2)) -> 0.001169195144 | F143: =(1-F$3)*(F$4*EXP(-(($B143-F$6)^2/(F$5/1.67)^2)))+F$3*(F$4/(1+($B143-F$6)^2/F$5^2)) -> 0 | G143: =(1-G$3)*(G$4*EXP(-(($B143-G$6)^2/(G$5/1.67)^2)))+G$3*(G$4/(1+($B143-G$6)^2/G$5^2)) -> 0 | H143: =(1-H$3)*(H$4*EXP(-(($B143-H$6)^2/(H$5/1.67)^2)))+H$3*(H$4/(1+($B143-H$6)^2/H$5^2)) -> 0 | I143: =(1-I$3)*(I$4*EXP(-(($B143-I$6)^2/(I$5/1.67)^2)))+I$3*(I$4/(1+($B143-I$6)^2/I$5^2)) -> 0 | J143: =SUM(D143:I143) -> 0.002235691764 | L143: =(C143-J143)^2 -> 4.998317663e-06
B144: 133 | C144: 0 | D144: =(1-D$3)*(D$4*EXP(-(($B144-D$6)^2/(D$5/1.67)^2)))+D$3*(D$4/(1+($B144-D$6)^2/D$5^2)) -> 0.001037669725 | E144: =(1-E$3)*(E$4*EXP(-(($B144-E$6)^2/(E$5/1.67)^2)))+E$3*(E$4/(1+($B144-E$6)^2/E$5^2)) -> 0.001143746204 | F144: =(1-F$3)*(F$4*EXP(-(($B144-F$6)^2/(F$5/1.67)^2)))+F$3*(F$4/(1+($B144-F$6)^2/F$5^2)) -> 0 | G144: =(1-G$3)*(G$4*EXP(-(($B144-G$6)^2/(G$5/1.67)^2)))+G$3*(G$4/(1+($B144-G$6)^2/G$5^2)) -> 0 | H144: =(1-H$3)*(H$4*EXP(-(($B144-H$6)^2/(H$5/1.67)^2)))+H$3*(H$4/(1+($B144-H$6)^2/H$5^2)) -> 0 | I144: =(1-I$3)*(I$4*EXP(-(($B144-I$6)^2/(I$5/1.67)^2)))+I$3*(I$4/(1+($B144-I$6)^2/I$5^2)) -> 0 | J144: =SUM(D144:I144) -> 0.002181415929 | L144: =(C144-J144)^2 -> 4.758575455e-06
B145: 134 | C145: 0 | D145: =(1-D$3)*(D$4*EXP(-(($B145-D$6)^2/(D$5/1.67)^2)))+D$3*(D$4/(1+($B145-D$6)^2/D$5^2)) -> 0.001009981652 | E145: =(1-E$3)*(E$4*EXP(-(($B145-E$6)^2/(E$5/1.67)^2)))+E$3*(E$4/(1+($B145-E$6)^2/E$5^2)) -> 0.00111911811 | F145: =(1-F$3)*(F$4*EXP(-(($B145-F$6)^2/(F$5/1.67)^2)))+F$3*(F$4/(1+($B145-F$6)^2/F$5^2)) -> 0 | G145: =(1-G$3)*(G$4*EXP(-(($B145-G$6)^2/(G$5/1.67)^2)))+G$3*(G$4/(1+($B145-G$6)^2/G$5^2)) -> 0 | H145: =(1-H$3)*(H$4*EXP(-(($B145-H$6)^2/(H$5/1.67)^2)))+H$3*(H$4/(1+($B145-H$6)^2/H$5^2)) -> 0 | I145: =(1-I$3)*(I$4*EXP(-(($B145-I$6)^2/(I$5/1.67)^2)))+I$3*(I$4/(1+($B145-I$6)^2/I$5^2)) -> 0 | J145: =SUM(D145:I145) -> 0.002129099762 | L145: =(C145-J145)^2 -> 4.533065798e-06
B146: 135 | C146: 0 | D146: =(1-D$3)*(D$4*EXP(-(($B146-D$6)^2/(D$5/1.67)^2)))+D$3*(D$4/(1+($B146-D$6)^2/D$5^2)) -> 0.0009833739411 | E146: =(1-E$3)*(E$4*EXP(-(($B146-E$6)^2/(E$5/1.67)^2)))+E$3*(E$4/(1+($B146-E$6)^2/E$5^2)) -> 0.001095275983 | F146: =(1-F$3)*(F$4*EXP(-(($B146-F$6)^2/(F$5/1.67)^2)))+F$3*(F$4/(1+($B146-F$6)^2/F$5^2)) -> 0 | G146: =(1-G$3)*(G$4*EXP(-(($B146-G$6)^2/(G$5/1.67)^2)))+G$3*(G$4/(1+($B146-G$6)^2/G$5^2)) -> 0 | H146: =(1-H$3)*(H$4*EXP(-(($B146-H$6)^2/(H$5/1.67)^2)))+H$3*(H$4/(1+($B146-H$6)^2/H$5^2)) -> 0 | I146: =(1-I$3)*(I$4*EXP(-(($B146-I$6)^2/(I$5/1.67)^2)))+I$3*(I$4/(1+($B146-I$6)^2/I$5^2)) -> 0 | J146: =SUM(D146:I146) -> 0.002078649924 | L146: =(C146-J146)^2 -> 4.320785505e-06
B147: 136 | C147: 0 | D147: =(1-D$3)*(D$4*EXP(-(($B147-D$6)^2/(D$5/1.67)^2)))+D$3*(D$4/(1+($B147-D$6)^2/D$5^2)) -> 0.000957791787 | E147: =(1-E$3)*(E$4*EXP(-(($B147-E$6)^2/(E$5/1.67)^2)))+E$3*(E$4/(1+($B147-E$6)^2/E$5^2)) -> 0.001072186772 | F147: =(1-F$3)*(F$4*EXP(-(($B147-F$6)^2/(F$5/1.67)^2)))+F$3*(F$4/(1+($B147-F$6)^2/F$5^2)) -> 0 | G147: =(1-G$3)*(G$4*EXP(-(($B147-G$6)^2/(G$5/1.67)^2)))+G$3*(G$4/(1+($B147-G$6)^2/G$5^2)) -> 0 | H147: =(1-H$3)*(H$4*EXP(-(($B147-H$6)^2/(H$5/1.67)^2)))+H$3*(H$4/(1+($B147-H$6)^2/H$5^2)) -> 0 | I147: =(1-I$3)*(I$4*EXP(-(($B147-I$6)^2/(I$5/1.67)^2)))+I$3*(I$4/(1+($B147-I$6)^2/I$5^2)) -> 0 | J147: =SUM(D147:I147) -> 0.002029978559 | L147: =(C147-J147)^2 -> 4.120812949e-06
B148: 137 | C148: 0 | D148: =(1-D$3)*(D$4*EXP(-(($B148-D$6)^2/(D$5/1.67)^2)))+D$3*(D$4/(1+($B148-D$6)^2/D$5^2)) -> 0.0009331837735 | E148: =(1-E$3)*(E$4*EXP(-(($B148-E$6)^2/(E$5/1.67)^2)))+E$3*(E$4/(1+($B148-E$6)^2/E$5^2)) -> 0.001049819145 | F148: =(1-F$3)*(F$4*EXP(-(($B148-F$6)^2/(F$5/1.67)^2)))+F$3*(F$4/(1+($B148-F$6)^2/F$5^2)) -> 0 | G148: =(1-G$3)*(G$4*EXP(-(($B148-G$6)^2/(G$5/1.67)^2)))+G$3*(G$4/(1+($B148-G$6)^2/G$5^2)) -> 0 | H148: =(1-H$3)*(H$4*EXP(-(($B148-H$6)^2/(H$5/1.67)^2)))+H$3*(H$4/(1+($B148-H$6)^2/H$5^2)) -> 0 | I148: =(1-I$3)*(I$4*EXP(-(($B148-I$6)^2/(I$5/1.67)^2)))+I$3*(I$4/(1+($B148-I$6)^2/I$5^2)) -> 0 | J148: =SUM(D148:I148) -> 0.001983002919 | L148: =(C148-J148)^2 -> 3.932300577e-06
B149: 138 | C149: 0 | D149: =(1-D$3)*(D$4*EXP(-(($B149-D$6)^2/(D$5/1.67)^2)))+D$3*(D$4/(1+($B149-D$6)^2/D$5^2)) -> 0.0009095016277 | E149: =(1-E$3)*(E$4*EXP(-(($B149-E$6)^2/(E$5/1.67)^2)))+E$3*(E$4/(1+($B149-E$6)^2/E$5^2)) -> 0.001028143382 | F149: =(1-F$3)*(F$4*EXP(-(($B149-F$6)^2/(F$5/1.67)^2)))+F$3*(F$4/(1+($B149-F$6)^2/F$5^2)) -> 0 | G149: =(1-G$3)*(G$4*EXP(-(($B149-G$6)^2/(G$5/1.67)^2)))+G$3*(G$4/(1+($B149-G$6)^2/G$5^2)) -> 0 | H149: =(1-H$3)*(H$4*EXP(-(($B149-H$6)^2/(H$5/1.67)^2)))+H$3*(H$4/(1+($B149-H$6)^2/H$5^2)) -> 0 | I149: =(1-I$3)*(I$4*EXP(-(($B149-I$6)^2/(I$5/1.67)^2)))+I$3*(I$4/(1+($B149-I$6)^2/I$5^2)) -> 0 | J149: =SUM(D149:I149) -> 0.00193764501 | L149: =(C149-J149)^2 -> 3.754468185e-06
B150: 139 | C150: 0 | D150: =(1-D$3)*(D$4*EXP(-(($B150-D$6)^2/(D$5/1.67)^2)))+D$3*(D$4/(1+($B150-D$6)^2/D$5^2)) -> 0.000886699995 | E150: =(1-E$3)*(E$4*EXP(-(($B150-E$6)^2/(E$5/1.67)^2)))+E$3*(E$4/(1+($B150-E$6)^2/E$5^2)) -> 0.001007131274 | F150: =(1-F$3)*(F$4*EXP(-(($B150-F$6)^2/(F$5/1.67)^2)))+F$3*(F$4/(1+($B150-F$6)^2/F$5^2)) -> 0 | G150: =(1-G$3)*(G$4*EXP(-(($B150-G$6)^2/(G$5/1.67)^2)))+G$3*(G$4/(1+($B150-G$6)^2/G$5^2)) -> 0 | H150: =(1-H$3)*(H$4*EXP(-(($B150-H$6)^2/(H$5/1.67)^2)))+H$3*(H$4/(1+($B150-H$6)^2/H$5^2)) -> 0 | I150: =(1-I$3)*(I$4*EXP(-(($B150-I$6)^2/(I$5/1.67)^2)))+I$3*(I$4/(1+($B150-I$6)^2/I$5^2)) -> 0 | J150: =SUM(D150:I150) -> 0.001893831269 | L150: =(C150-J150)^2 -> 3.586596876e-06
B151: 140 | C151: 0 | D151: =(1-D$3)*(D$4*EXP(-(($B151-D$6)^2/(D$5/1.67)^2)))+D$3*(D$4/(1+($B151-D$6)^2/D$5^2)) -> 0.0008647362329 | E151: =(1-E$3)*(E$4*EXP(-(($B151-E$6)^2/(E$5/1.67)^2)))+E$3*(E$4/(1+($B151-E$6)^2/E$5^2)) -> 0.0009867560334 | F151: =(1-F$3)*(F$4*EXP(-(($B151-F$6)^2/(F$5/1.67)^2)))+F$3*(F$4/(1+($B151-F$6)^2/F$5^2)) -> 0 | G151: =(1-G$3)*(G$4*EXP(-(($B151-G$6)^2/(G$5/1.67)^2)))+G$3*(G$4/(1+($B151-G$6)^2/G$5^2)) -> 0 | H151: =(1-H$3)*(H$4*EXP(-(($B151-H$6)^2/(H$5/1.67)^2)))+H$3*(H$4/(1+($B151-H$6)^2/H$5^2)) -> 0 | I151: =(1-I$3)*(I$4*EXP(-(($B151-I$6)^2/(I$5/1.67)^2)))+I$3*(I$4/(1+($B151-I$6)^2/I$5^2)) -> 0 | J151: =SUM(D151:I151) -> 0.001851492266 | L151: =(C151-J151)^2 -> 3.428023612e-06
B152: 141 | C152: 0 | D152: =(1-D$3)*(D$4*EXP(-(($B152-D$6)^2/(D$5/1.67)^2)))+D$3*(D$4/(1+($B152-D$6)^2/D$5^2)) -> 0.0008435702206 | E152: =(1-E$3)*(E$4*EXP(-(($B152-E$6)^2/(E$5/1.67)^2)))+E$3*(E$4/(1+($B152-E$6)^2/E$5^2)) -> 0.0009669922099 | F152: =(1-F$3)*(F$4*EXP(-(($B152-F$6)^2/(F$5/1.67)^2)))+F$3*(F$4/(1+($B152-F$6)^2/F$5^2)) -> 0 | G152: =(1-G$3)*(G$4*EXP(-(($B152-G$6)^2/(G$5/1.67)^2)))+G$3*(G$4/(1+($B152-G$6)^2/G$5^2)) -> 0 | H152: =(1-H$3)*(H$4*EXP(-(($B152-H$6)^2/(H$5/1.67)^2)))+H$3*(H$4/(1+($B152-H$6)^2/H$5^2)) -> 0 | I152: =(1-I$3)*(I$4*EXP(-(($B152-I$6)^2/(I$5/1.67)^2)))+I$3*(I$4/(1+($B152-I$6)^2/I$5^2)) -> 0 | J152: =SUM(D152:I152) -> 0.001810562431 | L152: =(C152-J152)^2 -> 3.278136315e-06
B153: 142 | C153: 0 | D153: =(1-D$3)*(D$4*EXP(-(($B153-D$6)^2/(D$5/1.67)^2)))+D$3*(D$4/(1+($B153-D$6)^2/D$5^2)) -> 0.0008231641845 | E153: =(1-E$3)*(E$4*EXP(-(($B153-E$6)^2/(E$5/1.67)^2)))+E$3*(E$4/(1+($B153-E$6)^2/E$5^2)) -> 0.0009478156102 | F153: =(1-F$3)*(F$4*EXP(-(($B153-F$6)^2/(F$5/1.67)^2)))+F$3*(F$4/(1+($B153-F$6)^2/F$5^2)) -> 0 | G153: =(1-G$3)*(G$4*EXP(-(($B153-G$6)^2/(G$5/1.67)^2)))+G$3*(G$4/(1+($B153-G$6)^2/G$5^2)) -> 0 | H153: =(1-H$3)*(H$4*EXP(-(($B153-H$6)^2/(H$5/1.67)^2)))+H$3*(H$4/(1+($B153-H$6)^2/H$5^2)) -> 0 | I153: =(1-I$3)*(I$4*EXP(-(($B153-I$6)^2/(I$5/1.67)^2)))+I$3*(I$4/(1+($B153-I$6)^2/I$5^2)) -> 0 | J153: =SUM(D153:I153) -> 0.001770979795 | L153: =(C153-J153)^2 -> 3.136369434e-06
B154: 143 | C154: 0 | D154: =(1-D$3)*(D$4*EXP(-(($B154-D$6)^2/(D$5/1.67)^2)))+D$3*(D$4/(1+($B154-D$6)^2/D$5^2)) -> 0.0008034825371 | E154: =(1-E$3)*(E$4*EXP(-(($B154-E$6)^2/(E$5/1.67)^2)))+E$3*(E$4/(1+($B154-E$6)^2/E$5^2)) -> 0.0009292032247 | F154: =(1-F$3)*(F$4*EXP(-(($B154-F$6)^2/(F$5/1.67)^2)))+F$3*(F$4/(1+($B154-F$6)^2/F$5^2)) -> 0 | G154: =(1-G$3)*(G$4*EXP(-(($B154-G$6)^2/(G$5/1.67)^2)))+G$3*(G$4/(1+($B154-G$6)^2/G$5^2)) -> 0 | H154: =(1-H$3)*(H$4*EXP(-(($B154-H$6)^2/(H$5/1.67)^2)))+H$3*(H$4/(1+($B154-H$6)^2/H$5^2)) -> 0 | I154: =(1-I$3)*(I$4*EXP(-(($B154-I$6)^2/(I$5/1.67)^2)))+I$3*(I$4/(1+($B154-I$6)^2/I$5^2)) -> 0 | J154: =SUM(D154:I154) -> 0.001732685762 | L154: =(C154-J154)^2 -> 3.002199949e-06
B155: 144 | C155: 0 | D155: =(1-D$3)*(D$4*EXP(-(($B155-D$6)^2/(D$5/1.67)^2)))+D$3*(D$4/(1+($B155-D$6)^2/D$5^2)) -> 0.0007844917285 | E155: =(1-E$3)*(E$4*EXP(-(($B155-E$6)^2/(E$5/1.67)^2)))+E$3*(E$4/(1+($B155-E$6)^2/E$5^2)) -> 0.0009111331585 | F155: =(1-F$3)*(F$4*EXP(-(($B155-F$6)^2/(F$5/1.67)^2)))+F$3*(F$4/(1+($B155-F$6)^2/F$5^2)) -> 0 | G155: =(1-G$3)*(G$4*EXP(-(($B155-G$6)^2/(G$5/1.67)^2)))+G$3*(G$4/(1+($B155-G$6)^2/G$5^2)) -> 0 | H155: =(1-H$3)*(H$4*EXP(-(($B155-H$6)^2/(H$5/1.67)^2)))+H$3*(H$4/(1+($B155-H$6)^2/H$5^2)) -> 0 | I155: =(1-I$3)*(I$4*EXP(-(($B155-I$6)^2/(I$5/1.67)^2)))+I$3*(I$4/(1+($B155-I$6)^2/I$5^2)) -> 0 | J155: =SUM(D155:I155) -> 0.001695624887 | L155: =(C155-J155)^2 -> 2.875143757e-06
B156: 145 | C156: 0 | D156: =(1-D$3)*(D$4*EXP(-(($B156-D$6)^2/(D$5/1.67)^2)))+D$3*(D$4/(1+($B156-D$6)^2/D$5^2)) -> 0.0007661601094 | E156: =(1-E$3)*(E$4*EXP(-(($B156-E$6)^2/(E$5/1.67)^2)))+E$3*(E$4/(1+($B156-E$6)^2/E$5^2)) -> 0.0008935845674 | F156: =(1-F$3)*(F$4*EXP(-(($B156-F$6)^2/(F$5/1.67)^2)))+F$3*(F$4/(1+($B156-F$6)^2/F$5^2)) -> 0 | G156: =(1-G$3)*(G$4*EXP(-(($B156-G$6)^2/(G$5/1.67)^2)))+G$3*(G$4/(1+($B156-G$6)^2/G$5^2)) -> 0 | H156: =(1-H$3)*(H$4*EXP(-(($B156-H$6)^2/(H$5/1.67)^2)))+H$3*(H$4/(1+($B156-H$6)^2/H$5^2)) -> 0 | I156: =(1-I$3)*(I$4*EXP(-(($B156-I$6)^2/(I$5/1.67)^2)))+I$3*(I$4/(1+($B156-I$6)^2/I$5^2)) -> 0 | J156: =SUM(D156:I156) -> 0.001659744677 | L156: =(C156-J156)^2 -> 2.754752392e-06
B157: 146 | C157: 0 | D157: =(1-D$3)*(D$4*EXP(-(($B157-D$6)^2/(D$5/1.67)^2)))+D$3*(D$4/(1+($B157-D$6)^2/D$5^2)) -> 0.0007484578048 | E157: =(1-E$3)*(E$4*EXP(-(($B157-E$6)^2/(E$5/1.67)^2)))+E$3*(E$4/(1+($B157-E$6)^2/E$5^2)) -> 0.0008765375982 | F157: =(1-F$3)*(F$4*EXP(-(($B157-F$6)^2/(F$5/1.67)^2)))+F$3*(F$4/(1+($B157-F$6)^2/F$5^2)) -> 0 | G157: =(1-G$3)*(G$4*EXP(-(($B157-G$6)^2/(G$5/1.67)^2)))+G$3*(G$4/(1+($B157-G$6)^2/G$5^2)) -> 0 | H157: =(1-H$3)*(H$4*EXP(-(($B157-H$6)^2/(H$5/1.67)^2)))+H$3*(H$4/(1+($B157-H$6)^2/H$5^2)) -> 0 | I157: =(1-I$3)*(I$4*EXP(-(($B157-I$6)^2/(I$5/1.67)^2)))+I$3*(I$4/(1+($B157-I$6)^2/I$5^2)) -> 0 | J157: =SUM(D157:I157) -> 0.001624995403 | L157: =(C157-J157)^2 -> 2.64061006e-06
B158: 147 | C158: 0 | D158: =(1-D$3)*(D$4*EXP(-(($B158-D$6)^2/(D$5/1.67)^2)))+D$3*(D$4/(1+($B158-D$6)^2/D$5^2)) -> 0.0007313565972 | E158: =(1-E$3)*(E$4*EXP(-(($B158-E$6)^2/(E$5/1.67)^2)))+E$3*(E$4/(1+($B158-E$6)^2/E$5^2)) -> 0.0008599733326 | F158: =(1-F$3)*(F$4*EXP(-(($B158-F$6)^2/(F$5/1.67)^2)))+F$3*(F$4/(1+($B158-F$6)^2/F$5^2)) -> 0 | G158: =(1-G$3)*(G$4*EXP(-(($B158-G$6)^2/(G$5/1.67)^2)))+G$3*(G$4/(1+($B158-G$6)^2/G$5^2)) -> 0 | H158: =(1-H$3)*(H$4*EXP(-(($B158-H$6)^2/(H$5/1.67)^2)))+H$3*(H$4/(1+($B158-H$6)^2/H$5^2)) -> 0 | I158: =(1-I$3)*(I$4*EXP(-(($B158-I$6)^2/(I$5/1.67)^2)))+I$3*(I$4/(1+($B158-I$6)^2/I$5^2)) -> 0 | J158: =SUM(D158:I158) -> 0.00159132993 | L158: =(C158-J158)^2 -> 2.532330946e-06
B159: 148 | C159: 0 | D159: =(1-D$3)*(D$4*EXP(-(($B159-D$6)^2/(D$5/1.67)^2)))+D$3*(D$4/(1+($B159-D$6)^2/D$5^2)) -> 0.0007148298186 | E159: =(1-E$3)*(E$4*EXP(-(($B159-E$6)^2/(E$5/1.67)^2)))+E$3*(E$4/(1+($B159-E$6)^2/E$5^2)) -> 0.0008438737349 | F159: =(1-F$3)*(F$4*EXP(-(($B159-F$6)^2/(F$5/1.67)^2)))+F$3*(F$4/(1+($B159-F$6)^2/F$5^2)) -> 0 | G159: =(1-G$3)*(G$4*EXP(-(($B159-G$6)^2/(G$5/1.67)^2)))+G$3*(G$4/(1+($B159-G$6)^2/G$5^2)) -> 0 | H159: =(1-H$3)*(H$4*EXP(-(($B159-H$6)^2/(H$5/1.67)^2)))+H$3*(H$4/(1+($B159-H$6)^2/H$5^2)) -> 0 | I159: =(1-I$3)*(I$4*EXP(-(($B159-I$6)^2/(I$5/1.67)^2)))+I$3*(I$4/(1+($B159-I$6)^2/I$5^2)) -> 0 | J159: =SUM(D159:I159) -> 0.001558703553 | L159: =(C159-J159)^2 -> 2.429556767e-06
B160: 149 | C160: 0 | D160: =(1-D$3)*(D$4*EXP(-(($B160-D$6)^2/(D$5/1.67)^2)))+D$3*(D$4/(1+($B160-D$6)^2/D$5^2)) -> 0.00069885225 | E160: =(1-E$3)*(E$4*EXP(-(($B160-E$6)^2/(E$5/1.67)^2)))+E$3*(E$4/(1+($B160-E$6)^2/E$5^2)) -> 0.000828221603 | F160: =(1-F$3)*(F$4*EXP(-(($B160-F$6)^2/(F$5/1.67)^2)))+F$3*(F$4/(1+($B160-F$6)^2/F$5^2)) -> 0 | G160: =(1-G$3)*(G$4*EXP(-(($B160-G$6)^2/(G$5/1.67)^2)))+G$3*(G$4/(1+($B160-G$6)^2/G$5^2)) -> 0 | H160: =(1-H$3)*(H$4*EXP(-(($B160-H$6)^2/(H$5/1.67)^2)))+H$3*(H$4/(1+($B160-H$6)^2/H$5^2)) -> 0 | I160: =(1-I$3)*(I$4*EXP(-(($B160-I$6)^2/(I$5/1.67)^2)))+I$3*(I$4/(1+($B160-I$6)^2/I$5^2)) -> 0 | J160: =SUM(D160:I160) -> 0.001527073853 | L160: =(C160-J160)^2 -> 2.331954553e-06
B161: 150 | C161: 0 | D161: =(1-D$3)*(D$4*EXP(-(($B161-D$6)^2/(D$5/1.67)^2)))+D$3*(D$4/(1+($B161-D$6)^2/D$5^2)) -> 0.0006834000295 | E161: =(1-E$3)*(E$4*EXP(-(($B161-E$6)^2/(E$5/1.67)^2)))+E$3*(E$4/(1+($B161-E$6)^2/E$5^2)) -> 0.000813000523 | F161: =(1-F$3)*(F$4*EXP(-(($B161-F$6)^2/(F$5/1.67)^2)))+F$3*(F$4/(1+($B161-F$6)^2/F$5^2)) -> 0 | G161: =(1-G$3)*(G$4*EXP(-(($B161-G$6)^2/(G$5/1.67)^2)))+G$3*(G$4/(1+($B161-G$6)^2/G$5^2)) -> 0 | H161: =(1-H$3)*(H$4*EXP(-(($B161-H$6)^2/(H$5/1.67)^2)))+H$3*(H$4/(1+($B161-H$6)^2/H$5^2)) -> 0 | I161: =(1-I$3)*(I$4*EXP(-(($B161-I$6)^2/(I$5/1.67)^2)))+I$3*(I$4/(1+($B161-I$6)^2/I$5^2)) -> 0 | J161: =SUM(D161:I161) -> 0.001496400553 | L161: =(C161-J161)^2 -> 2.239214614e-06
B162: 151 | C162: 0 | D162: =(1-D$3)*(D$4*EXP(-(($B162-D$6)^2/(D$5/1.67)^2)))+D$3*(D$4/(1+($B162-D$6)^2/D$5^2)) -> 0.000668450566 | E162: =(1-E$3)*(E$4*EXP(-(($B162-E$6)^2/(E$5/1.67)^2)))+E$3*(E$4/(1+($B162-E$6)^2/E$5^2)) -> 0.000798194826 | F162: =(1-F$3)*(F$4*EXP(-(($B162-F$6)^2/(F$5/1.67)^2)))+F$3*(F$4/(1+($B162-F$6)^2/F$5^2)) -> 0 | G162: =(1-G$3)*(G$4*EXP(-(($B162-G$6)^2/(G$5/1.67)^2)))+G$3*(G$4/(1+($B162-G$6)^2/G$5^2)) -> 0 | H162: =(1-H$3)*(H$4*EXP(-(($B162-H$6)^2/(H$5/1.67)^2)))+H$3*(H$4/(1+($B162-H$6)^2/H$5^2)) -> 0 | I162: =(1-I$3)*(I$4*EXP(-(($B162-I$6)^2/(I$5/1.67)^2)))+I$3*(I$4/(1+($B162-I$6)^2/I$5^2)) -> 0 | J162: =SUM(D162:I162) -> 0.001466645392 | L162: =(C162-J162)^2 -> 2.151048706e-06
B163: 152 | C163: 0 | D163: =(1-D$3)*(D$4*EXP(-(($B163-D$6)^2/(D$5/1.67)^2)))+D$3*(D$4/(1+($B163-D$6)^2/D$5^2)) -> 0.0006539824593 | E163: =(1-E$3)*(E$4*EXP(-(($B163-E$6)^2/(E$5/1.67)^2)))+E$3*(E$4/(1+($B163-E$6)^2/E$5^2)) -> 0.0007837895477 | F163: =(1-F$3)*(F$4*EXP(-(($B163-F$6)^2/(F$5/1.67)^2)))+F$3*(F$4/(1+($B163-F$6)^2/F$5^2)) -> 0 | G163: =(1-G$3)*(G$4*EXP(-(($B163-G$6)^2/(G$5/1.67)^2)))+G$3*(G$4/(1+($B163-G$6)^2/G$5^2)) -> 0 | H163: =(1-H$3)*(H$4*EXP(-(($B163-H$6)^2/(H$5/1.67)^2)))+H$3*(H$4/(1+($B163-H$6)^2/H$5^2)) -> 0 | I163: =(1-I$3)*(I$4*EXP(-(($B163-I$6)^2/(I$5/1.67)^2)))+I$3*(I$4/(1+($B163-I$6)^2/I$5^2)) -> 0 | J163: =SUM(D163:I163) -> 0.001437772007 | L163: =(C163-J163)^2 -> 2.067188344e-06
B164: 153 | C164: 0 | D164: =(1-D$3)*(D$4*EXP(-(($B164-D$6)^2/(D$5/1.67)^2)))+D$3*(D$4/(1+($B164-D$6)^2/D$5^2)) -> 0.000639975427 | E164: =(1-E$3)*(E$4*EXP(-(($B164-E$6)^2/(E$5/1.67)^2)))+E$3*(E$4/(1+($B164-E$6)^2/E$5^2)) -> 0.0007697703915 | F164: =(1-F$3)*(F$4*EXP(-(($B164-F$6)^2/(F$5/1.67)^2)))+F$3*(F$4/(1+($B164-F$6)^2/F$5^2)) -> 0 | G164: =(1-G$3)*(G$4*EXP(-(($B164-G$6)^2/(G$5/1.67)^2)))+G$3*(G$4/(1+($B164-G$6)^2/G$5^2)) -> 0 | H164: =(1-H$3)*(H$4*EXP(-(($B164-H$6)^2/(H$5/1.67)^2)))+H$3*(H$4/(1+($B164-H$6)^2/H$5^2)) -> 0 | I164: =(1-I$3)*(I$4*EXP(-(($B164-I$6)^2/(I$5/1.67)^2)))+I$3*(I$4/(1+($B164-I$6)^2/I$5^2)) -> 0 | J164: =SUM(D164:I164) -> 0.001409745819 | L164: =(C164-J164)^2 -> 1.987383273e-06
B165: 154 | C165: 0 | D165: =(1-D$3)*(D$4*EXP(-(($B165-D$6)^2/(D$5/1.67)^2)))+D$3*(D$4/(1+($B165-D$6)^2/D$5^2)) -> 0.0006264102349 | E165: =(1-E$3)*(E$4*EXP(-(($B165-E$6)^2/(E$5/1.67)^2)))+E$3*(E$4/(1+($B165-E$6)^2/E$5^2)) -> 0.0007561236923 | F165: =(1-F$3)*(F$4*EXP(-(($B165-F$6)^2/(F$5/1.67)^2)))+F$3*(F$4/(1+($B165-F$6)^2/F$5^2)) -> 0 | G165: =(1-G$3)*(G$4*EXP(-(($B165-G$6)^2/(G$5/1.67)^2)))+G$3*(G$4/(1+($B165-G$6)^2/G$5^2)) -> 0 | H165: =(1-H$3)*(H$4*EXP(-(($B165-H$6)^2/(H$5/1.67)^2)))+H$3*(H$4/(1+($B165-H$6)^2/H$5^2)) -> 0 | I165: =(1-I$3)*(I$4*EXP(-(($B165-I$6)^2/(I$5/1.67)^2)))+I$3*(I$4/(1+($B165-I$6)^2/I$5^2)) -> 0 | J165: =SUM(D165:I165) -> 0.001382533927 | L165: =(C165-J165)^2 -> 1.91140006e-06
B166: 155 | C166: 0 | D166: =(1-D$3)*(D$4*EXP(-(($B166-D$6)^2/(D$5/1.67)^2)))+D$3*(D$4/(1+($B166-D$6)^2/D$5^2)) -> 0.0006132686338 | E166: =(1-E$3)*(E$4*EXP(-(($B166-E$6)^2/(E$5/1.67)^2)))+E$3*(E$4/(1+($B166-E$6)^2/E$5^2)) -> 0.0007428363837 | F166: =(1-F$3)*(F$4*EXP(-(($B166-F$6)^2/(F$5/1.67)^2)))+F$3*(F$4/(1+($B166-F$6)^2/F$5^2)) -> 0 | G166: =(1-G$3)*(G$4*EXP(-(($B166-G$6)^2/(G$5/1.67)^2)))+G$3*(G$4/(1+($B166-G$6)^2/G$5^2)) -> 0 | H166: =(1-H$3)*(H$4*EXP(-(($B166-H$6)^2/(H$5/1.67)^2)))+H$3*(H$4/(1+($B166-H$6)^2/H$5^2)) -> 0 | I166: =(1-I$3)*(I$4*EXP(-(($B166-I$6)^2/(I$5/1.67)^2)))+I$3*(I$4/(1+($B166-I$6)^2/I$5^2)) -> 0 | J166: =SUM(D166:I166) -> 0.001356105018 | L166: =(C166-J166)^2 -> 1.839020819e-06
B167: 156 | C167: 0 | D167: =(1-D$3)*(D$4*EXP(-(($B167-D$6)^2/(D$5/1.67)^2)))+D$3*(D$4/(1+($B167-D$6)^2/D$5^2)) -> 0.0006005332996 | E167: =(1-E$3)*(E$4*EXP(-(($B167-E$6)^2/(E$5/1.67)^2)))+E$3*(E$4/(1+($B167-E$6)^2/E$5^2)) -> 0.0007298959671 | F167: =(1-F$3)*(F$4*EXP(-(($B167-F$6)^2/(F$5/1.67)^2)))+F$3*(F$4/(1+($B167-F$6)^2/F$5^2)) -> 0 | G167: =(1-G$3)*(G$4*EXP(-(($B167-G$6)^2/(G$5/1.67)^2)))+G$3*(G$4/(1+($B167-G$6)^2/G$5^2)) -> 0 | H167: =(1-H$3)*(H$4*EXP(-(($B167-H$6)^2/(H$5/1.67)^2)))+H$3*(H$4/(1+($B167-H$6)^2/H$5^2)) -> 0 | I167: =(1-I$3)*(I$4*EXP(-(($B167-I$6)^2/(I$5/1.67)^2)))+I$3*(I$4/(1+($B167-I$6)^2/I$5^2)) -> 0 | J167: =SUM(D167:I167) -> 0.001330429267 | L167: =(C167-J167)^2 -> 1.770042034e-06
B168: 157 | C168: 0 | D168: =(1-D$3)*(D$4*EXP(-(($B168-D$6)^2/(D$5/1.67)^2)))+D$3*(D$4/(1+($B168-D$6)^2/D$5^2)) -> 0.0005881877785 | E168: =(1-E$3)*(E$4*EXP(-(($B168-E$6)^2/(E$5/1.67)^2)))+E$3*(E$4/(1+($B168-E$6)^2/E$5^2)) -> 0.0007172904817 | F168: =(1-F$3)*(F$4*EXP(-(($B168-F$6)^2/(F$5/1.67)^2)))+F$3*(F$4/(1+($B168-F$6)^2/F$5^2)) -> 0 | G168: =(1-G$3)*(G$4*EXP(-(($B168-G$6)^2/(G$5/1.67)^2)))+G$3*(G$4/(1+($B168-G$6)^2/G$5^2)) -> 0 | H168: =(1-H$3)*(H$4*EXP(-(($B168-H$6)^2/(H$5/1.67)^2)))+H$3*(H$4/(1+($B168-H$6)^2/H$5^2)) -> 0 | I168: =(1-I$3)*(I$4*EXP(-(($B168-I$6)^2/(I$5/1.67)^2)))+I$3*(I$4/(1+($B168-I$6)^2/I$5^2)) -> 0 | J168: =SUM(D168:I168) -> 0.00130547826 | L168: =(C168-J168)^2 -> 1.704273488e-06
B169: 158 | C169: 0 | D169: =(1-D$3)*(D$4*EXP(-(($B169-D$6)^2/(D$5/1.67)^2)))+D$3*(D$4/(1+($B169-D$6)^2/D$5^2)) -> 0.000576216435 | E169: =(1-E$3)*(E$4*EXP(-(($B169-E$6)^2/(E$5/1.67)^2)))+E$3*(E$4/(1+($B169-E$6)^2/E$5^2)) -> 0.0007050084776 | F169: =(1-F$3)*(F$4*EXP(-(($B169-F$6)^2/(F$5/1.67)^2)))+F$3*(F$4/(1+($B169-F$6)^2/F$5^2)) -> 0 | G169: =(1-G$3)*(G$4*EXP(-(($B169-G$6)^2/(G$5/1.67)^2)))+G$3*(G$4/(1+($B169-G$6)^2/G$5^2)) -> 0 | H169: =(1-H$3)*(H$4*EXP(-(($B169-H$6)^2/(H$5/1.67)^2)))+H$3*(H$4/(1+($B169-H$6)^2/H$5^2)) -> 0 | I169: =(1-I$3)*(I$4*EXP(-(($B169-I$6)^2/(I$5/1.67)^2)))+I$3*(I$4/(1+($B169-I$6)^2/I$5^2)) -> 0 | J169: =SUM(D169:I169) -> 0.001281224913 | L169: =(C169-J169)^2 -> 1.641537277e-06
B170: 159 | C170: 0 | D170: =(1-D$3)*(D$4*EXP(-(($B170-D$6)^2/(D$5/1.67)^2)))+D$3*(D$4/(1+($B170-D$6)^2/D$5^2)) -> 0.0005646044042 | E170: =(1-E$3)*(E$4*EXP(-(($B170-E$6)^2/(E$5/1.67)^2)))+E$3*(E$4/(1+($B170-E$6)^2/E$5^2)) -> 0.0006930389896 | F170: =(1-F$3)*(F$4*EXP(-(($B170-F$6)^2/(F$5/1.67)^2)))+F$3*(F$4/(1+($B170-F$6)^2/F$5^2)) -> 0 | G170: =(1-G$3)*(G$4*EXP(-(($B170-G$6)^2/(G$5/1.67)^2)))+G$3*(G$4/(1+($B170-G$6)^2/G$5^2)) -> 0 | H170: =(1-H$3)*(H$4*EXP(-(($B170-H$6)^2/(H$5/1.67)^2)))+H$3*(H$4/(1+($B170-H$6)^2/H$5^2)) -> 0 | I170: =(1-I$3)*(I$4*EXP(-(($B170-I$6)^2/(I$5/1.67)^2)))+I$3*(I$4/(1+($B170-I$6)^2/I$5^2)) -> 0 | J170: =SUM(D170:I170) -> 0.001257643394 | L170: =(C170-J170)^2 -> 1.581666906e-06
B171: 160 | C171: 0 | D171: =(1-D$3)*(D$4*EXP(-(($B171-D$6)^2/(D$5/1.67)^2)))+D$3*(D$4/(1+($B171-D$6)^2/D$5^2)) -> 0.000553337547 | E171: =(1-E$3)*(E$4*EXP(-(($B171-E$6)^2/(E$5/1.67)^2)))+E$3*(E$4/(1+($B171-E$6)^2/E$5^2)) -> 0.0006813715128 | F171: =(1-F$3)*(F$4*EXP(-(($B171-F$6)^2/(F$5/1.67)^2)))+F$3*(F$4/(1+($B171-F$6)^2/F$5^2)) -> 0 | G171: =(1-G$3)*(G$4*EXP(-(($B171-G$6)^2/(G$5/1.67)^2)))+G$3*(G$4/(1+($B171-G$6)^2/G$5^2)) -> 0 | H171: =(1-H$3)*(H$4*EXP(-(($B171-H$6)^2/(H$5/1.67)^2)))+H$3*(H$4/(1+($B171-H$6)^2/H$5^2)) -> 0 | I171: =(1-I$3)*(I$4*EXP(-(($B171-I$6)^2/(I$5/1.67)^2)))+I$3*(I$4/(1+($B171-I$6)^2/I$5^2)) -> 0 | J171: =SUM(D171:I171) -> 0.00123470906 | L171: =(C171-J171)^2 -> 1.524506462e-06
B172: 161 | C172: 0 | D172: =(1-D$3)*(D$4*EXP(-(($B172-D$6)^2/(D$5/1.67)^2)))+D$3*(D$4/(1+($B172-D$6)^2/D$5^2)) -> 0.0005424024082 | E172: =(1-E$3)*(E$4*EXP(-(($B172-E$6)^2/(E$5/1.67)^2)))+E$3*(E$4/(1+($B172-E$6)^2/E$5^2)) -> 0.0006699959796 | F172: =(1-F$3)*(F$4*EXP(-(($B172-F$6)^2/(F$5/1.67)^2)))+F$3*(F$4/(1+($B172-F$6)^2/F$5^2)) -> 0 | G172: =(1-G$3)*(G$4*EXP(-(($B172-G$6)^2/(G$5/1.67)^2)))+G$3*(G$4/(1+($B172-G$6)^2/G$5^2)) -> 0 | H172: =(1-H$3)*(H$4*EXP(-(($B172-H$6)^2/(H$5/1.67)^2)))+H$3*(H$4/(1+($B172-H$6)^2/H$5^2)) -> 0 | I172: =(1-I$3)*(I$4*EXP(-(($B172-I$6)^2/(I$5/1.67)^2)))+I$3*(I$4/(1+($B172-I$6)^2/I$5^2)) -> 0 | J172: =SUM(D172:I172) -> 0.001212398388 | L172: =(C172-J172)^2 -> 1.469909851e-06
B173: 162 | C173: 0 | D173: =(1-D$3)*(D$4*EXP(-(($B173-D$6)^2/(D$5/1.67)^2)))+D$3*(D$4/(1+($B173-D$6)^2/D$5^2)) -> 0.0005317861775 | E173: =(1-E$3)*(E$4*EXP(-(($B173-E$6)^2/(E$5/1.67)^2)))+E$3*(E$4/(1+($B173-E$6)^2/E$5^2)) -> 0.0006589027383 | F173: =(1-F$3)*(F$4*EXP(-(($B173-F$6)^2/(F$5/1.67)^2)))+F$3*(F$4/(1+($B173-F$6)^2/F$5^2)) -> 0 | G173: =(1-G$3)*(G$4*EXP(-(($B173-G$6)^2/(G$5/1.67)^2)))+G$3*(G$4/(1+($B173-G$6)^2/G$5^2)) -> 0 | H173: =(1-H$3)*(H$4*EXP(-(($B173-H$6)^2/(H$5/1.67)^2)))+H$3*(H$4/(1+($B173-H$6)^2/H$5^2)) -> 0 | I173: =(1-I$3)*(I$4*EXP(-(($B173-I$6)^2/(I$5/1.67)^2)))+I$3*(I$4/(1+($B173-I$6)^2/I$5^2)) -> 0 | J173: =SUM(D173:I173) -> 0.001190688916 | L173: =(C173-J173)^2 -> 1.417740094e-06
B174: 163 | C174: 0 | D174: =(1-D$3)*(D$4*EXP(-(($B174-D$6)^2/(D$5/1.67)^2)))+D$3*(D$4/(1+($B174-D$6)^2/D$5^2)) -> 0.0005214766528 | E174: =(1-E$3)*(E$4*EXP(-(($B174-E$6)^2/(E$5/1.67)^2)))+E$3*(E$4/(1+($B174-E$6)^2/E$5^2)) -> 0.0006480825322 | F174: =(1-F$3)*(F$4*EXP(-(($B174-F$6)^2/(F$5/1.67)^2)))+F$3*(F$4/(1+($B174-F$6)^2/F$5^2)) -> 0 | G174: =(1-G$3)*(G$4*EXP(-(($B174-G$6)^2/(G$5/1.67)^2)))+G$3*(G$4/(1+($B174-G$6)^2/G$5^2)) -> 0 | H174: =(1-H$3)*(H$4*EXP(-(($B174-H$6)^2/(H$5/1.67)^2)))+H$3*(H$4/(1+($B174-H$6)^2/H$5^2)) -> 0 | I174: =(1-I$3)*(I$4*EXP(-(($B174-I$6)^2/(I$5/1.67)^2)))+I$3*(I$4/(1+($B174-I$6)^2/I$5^2)) -> 0 | J174: =SUM(D174:I174) -> 0.001169559185 | L174: =(C174-J174)^2 -> 1.367868687e-06
B175: 164 | C175: 0 | D175: =(1-D$3)*(D$4*EXP(-(($B175-D$6)^2/(D$5/1.67)^2)))+D$3*(D$4/(1+($B175-D$6)^2/D$5^2)) -> 0.0005114622065 | E175: =(1-E$3)*(E$4*EXP(-(($B175-E$6)^2/(E$5/1.67)^2)))+E$3*(E$4/(1+($B175-E$6)^2/E$5^2)) -> 0.000637526481 | F175: =(1-F$3)*(F$4*EXP(-(($B175-F$6)^2/(F$5/1.67)^2)))+F$3*(F$4/(1+($B175-F$6)^2/F$5^2)) -> 0 | G175: =(1-G$3)*(G$4*EXP(-(($B175-G$6)^2/(G$5/1.67)^2)))+G$3*(G$4/(1+($B175-G$6)^2/G$5^2)) -> 0 | H175: =(1-H$3)*(H$4*EXP(-(($B175-H$6)^2/(H$5/1.67)^2)))+H$3*(H$4/(1+($B175-H$6)^2/H$5^2)) -> 0 | I175: =(1-I$3)*(I$4*EXP(-(($B175-I$6)^2/(I$5/1.67)^2)))+I$3*(I$4/(1+($B175-I$6)^2/I$5^2)) -> 0 | J175: =SUM(D175:I175) -> 0.001148988688 | L175: =(C175-J175)^2 -> 1.320175004e-06
B176: 165 | C176: 0 | D176: =(1-D$3)*(D$4*EXP(-(($B176-D$6)^2/(D$5/1.67)^2)))+D$3*(D$4/(1+($B176-D$6)^2/D$5^2)) -> 0.0005017317534 | E176: =(1-E$3)*(E$4*EXP(-(($B176-E$6)^2/(E$5/1.67)^2)))+E$3*(E$4/(1+($B176-E$6)^2/E$5^2)) -> 0.000627226062 | F176: =(1-F$3)*(F$4*EXP(-(($B176-F$6)^2/(F$5/1.67)^2)))+F$3*(F$4/(1+($B176-F$6)^2/F$5^2)) -> 0 | G176: =(1-G$3)*(G$4*EXP(-(($B176-G$6)^2/(G$5/1.67)^2)))+G$3*(G$4/(1+($B176-G$6)^2/G$5^2)) -> 0 | H176: =(1-H$3)*(H$4*EXP(-(($B176-H$6)^2/(H$5/1.67)^2)))+H$3*(H$4/(1+($B176-H$6)^2/H$5^2)) -> 0 | I176: =(1-I$3)*(I$4*EXP(-(($B176-I$6)^2/(I$5/1.67)^2)))+I$3*(I$4/(1+($B176-I$6)^2/I$5^2)) -> 0 | J176: =SUM(D176:I176) -> 0.001128957815 | L176: =(C176-J176)^2 -> 1.274545749e-06
B177: 166 | C177: 0 | D177: =(1-D$3)*(D$4*EXP(-(($B177-D$6)^2/(D$5/1.67)^2)))+D$3*(D$4/(1+($B177-D$6)^2/D$5^2)) -> 0.0004922747207 | E177: =(1-E$3)*(E$4*EXP(-(($B177-E$6)^2/(E$5/1.67)^2)))+E$3*(E$4/(1+($B177-E$6)^2/E$5^2)) -> 0.0006171730931 | F177: =(1-F$3)*(F$4*EXP(-(($B177-F$6)^2/(F$5/1.67)^2)))+F$3*(F$4/(1+($B177-F$6)^2/F$5^2)) -> 0 | G177: =(1-G$3)*(G$4*EXP(-(($B177-G$6)^2/(G$5/1.67)^2)))+G$3*(G$4/(1+($B177-G$6)^2/G$5^2)) -> 0 | H177: =(1-H$3)*(H$4*EXP(-(($B177-H$6)^2/(H$5/1.67)^2)))+H$3*(H$4/(1+($B177-H$6)^2/H$5^2)) -> 0 | I177: =(1-I$3)*(I$4*EXP(-(($B177-I$6)^2/(I$5/1.67)^2)))+I$3*(I$4/(1+($B177-I$6)^2/I$5^2)) -> 0 | J177: =SUM(D177:I177) -> 0.001109447814 | L177: =(C177-J177)^2 -> 1.230874452e-06
B178: 167 | C178: 0 | D178: =(1-D$3)*(D$4*EXP(-(($B178-D$6)^2/(D$5/1.67)^2)))+D$3*(D$4/(1+($B178-D$6)^2/D$5^2)) -> 0.0004830810199 | E178: =(1-E$3)*(E$4*EXP(-(($B178-E$6)^2/(E$5/1.67)^2)))+E$3*(E$4/(1+($B178-E$6)^2/E$5^2)) -> 0.0006073597172 | F178: =(1-F$3)*(F$4*EXP(-(($B178-F$6)^2/(F$5/1.67)^2)))+F$3*(F$4/(1+($B178-F$6)^2/F$5^2)) -> 0 | G178: =(1-G$3)*(G$4*EXP(-(($B178-G$6)^2/(G$5/1.67)^2)))+G$3*(G$4/(1+($B178-G$6)^2/G$5^2)) -> 0 | H178: =(1-H$3)*(H$4*EXP(-(($B178-H$6)^2/(H$5/1.67)^2)))+H$3*(H$4/(1+($B178-H$6)^2/H$5^2)) -> 0 | I178: =(1-I$3)*(I$4*EXP(-(($B178-I$6)^2/(I$5/1.67)^2)))+I$3*(I$4/(1+($B178-I$6)^2/I$5^2)) -> 0 | J178: =SUM(D178:I178) -> 0.001090440737 | L178: =(C178-J178)^2 -> 1.189061001e-06
B179: 168 | C179: 0 | D179: =(1-D$3)*(D$4*EXP(-(($B179-D$6)^2/(D$5/1.67)^2)))+D$3*(D$4/(1+($B179-D$6)^2/D$5^2)) -> 0.0004741410212 | E179: =(1-E$3)*(E$4*EXP(-(($B179-E$6)^2/(E$5/1.67)^2)))+E$3*(E$4/(1+($B179-E$6)^2/E$5^2)) -> 0.0005977783858 | F179: =(1-F$3)*(F$4*EXP(-(($B179-F$6)^2/(F$5/1.67)^2)))+F$3*(F$4/(1+($B179-F$6)^2/F$5^2)) -> 0 | G179: =(1-G$3)*(G$4*EXP(-(($B179-G$6)^2/(G$5/1.67)^2)))+G$3*(G$4/(1+($B179-G$6)^2/G$5^2)) -> 0 | H179: =(1-H$3)*(H$4*EXP(-(($B179-H$6)^2/(H$5/1.67)^2)))+H$3*(H$4/(1+($B179-H$6)^2/H$5^2)) -> 0 | I179: =(1-I$3)*(I$4*EXP(-(($B179-I$6)^2/(I$5/1.67)^2)))+I$3*(I$4/(1+($B179-I$6)^2/I$5^2)) -> 0 | J179: =SUM(D179:I179) -> 0.001071919407 | L179: =(C179-J179)^2 -> 1.149011215e-06
B180: 169 | C180: 0 | D180: =(1-D$3)*(D$4*EXP(-(($B180-D$6)^2/(D$5/1.67)^2)))+D$3*(D$4/(1+($B180-D$6)^2/D$5^2)) -> 0.0004654455281 | E180: =(1-E$3)*(E$4*EXP(-(($B180-E$6)^2/(E$5/1.67)^2)))+E$3*(E$4/(1+($B180-E$6)^2/E$5^2)) -> 0.0005884218456 | F180: =(1-F$3)*(F$4*EXP(-(($B180-F$6)^2/(F$5/1.67)^2)))+F$3*(F$4/(1+($B180-F$6)^2/F$5^2)) -> 0 | G180: =(1-G$3)*(G$4*EXP(-(($B180-G$6)^2/(G$5/1.67)^2)))+G$3*(G$4/(1+($B180-G$6)^2/G$5^2)) -> 0 | H180: =(1-H$3)*(H$4*EXP(-(($B180-H$6)^2/(H$5/1.67)^2)))+H$3*(H$4/(1+($B180-H$6)^2/H$5^2)) -> 0 | I180: =(1-I$3)*(I$4*EXP(-(($B180-I$6)^2/(I$5/1.67)^2)))+I$3*(I$4/(1+($B180-I$6)^2/I$5^2)) -> 0 | J180: =SUM(D180:I180) -> 0.001053867374 | L180: =(C180-J180)^2 -> 1.110636441e-06
B181: 170 | C181: 0 | D181: =(1-D$3)*(D$4*EXP(-(($B181-D$6)^2/(D$5/1.67)^2)))+D$3*(D$4/(1+($B181-D$6)^2/D$5^2)) -> 0.0004569857547 | E181: =(1-E$3)*(E$4*EXP(-(($B181-E$6)^2/(E$5/1.67)^2)))+E$3*(E$4/(1+($B181-E$6)^2/E$5^2)) -> 0.000579283124 | F181: =(1-F$3)*(F$4*EXP(-(($B181-F$6)^2/(F$5/1.67)^2)))+F$3*(F$4/(1+($B181-F$6)^2/F$5^2)) -> 0 | G181: =(1-G$3)*(G$4*EXP(-(($B181-G$6)^2/(G$5/1.67)^2)))+G$3*(G$4/(1+($B181-G$6)^2/G$5^2)) -> 0 | H181: =(1-H$3)*(H$4*EXP(-(($B181-H$6)^2/(H$5/1.67)^2)))+H$3*(H$4/(1+($B181-H$6)^2/H$5^2)) -> 0 | I181: =(1-I$3)*(I$4*EXP(-(($B181-I$6)^2/(I$5/1.67)^2)))+I$3*(I$4/(1+($B181-I$6)^2/I$5^2)) -> 0 | J181: =SUM(D181:I181) -> 0.001036268879 | L181: =(C181-J181)^2 -> 1.073853189e-06
B182: 171 | C182: 0 | D182: =(1-D$3)*(D$4*EXP(-(($B182-D$6)^2/(D$5/1.67)^2)))+D$3*(D$4/(1+($B182-D$6)^2/D$5^2)) -> 0.0004487533042 | E182: =(1-E$3)*(E$4*EXP(-(($B182-E$6)^2/(E$5/1.67)^2)))+E$3*(E$4/(1+($B182-E$6)^2/E$5^2)) -> 0.0005703555166 | F182: =(1-F$3)*(F$4*EXP(-(($B182-F$6)^2/(F$5/1.67)^2)))+F$3*(F$4/(1+($B182-F$6)^2/F$5^2)) -> 0 | G182: =(1-G$3)*(G$4*EXP(-(($B182-G$6)^2/(G$5/1.67)^2)))+G$3*(G$4/(1+($B182-G$6)^2/G$5^2)) -> 0 | H182: =(1-H$3)*(H$4*EXP(-(($B182-H$6)^2/(H$5/1.67)^2)))+H$3*(H$4/(1+($B182-H$6)^2/H$5^2)) -> 0 | I182: =(1-I$3)*(I$4*EXP(-(($B182-I$6)^2/(I$5/1.67)^2)))+I$3*(I$4/(1+($B182-I$6)^2/I$5^2)) -> 0 | J182: =SUM(D182:I182) -> 0.001019108821 | L182: =(C182-J182)^2 -> 1.038582789e-06
B183: 172 | C183: 0 | D183: =(1-D$3)*(D$4*EXP(-(($B183-D$6)^2/(D$5/1.67)^2)))+D$3*(D$4/(1+($B183-D$6)^2/D$5^2)) -> 0.0004407401481 | E183: =(1-E$3)*(E$4*EXP(-(($B183-E$6)^2/(E$5/1.67)^2)))+E$3*(E$4/(1+($B183-E$6)^2/E$5^2)) -> 0.000561632575 | F183: =(1-F$3)*(F$4*EXP(-(($B183-F$6)^2/(F$5/1.67)^2)))+F$3*(F$4/(1+($B183-F$6)^2/F$5^2)) -> 0 | G183: =(1-G$3)*(G$4*EXP(-(($B183-G$6)^2/(G$5/1.67)^2)))+G$3*(G$4/(1+($B183-G$6)^2/G$5^2)) -> 0 | H183: =(1-H$3)*(H$4*EXP(-(($B183-H$6)^2/(H$5/1.67)^2)))+H$3*(H$4/(1+($B183-H$6)^2/H$5^2)) -> 0 | I183: =(1-I$3)*(I$4*EXP(-(($B183-I$6)^2/(I$5/1.67)^2)))+I$3*(I$4/(1+($B183-I$6)^2/I$5^2)) -> 0 | J183: =SUM(D183:I183) -> 0.001002372723 | L183: =(C183-J183)^2 -> 1.004751076e-06
B184: 173 | C184: 0 | D184: =(1-D$3)*(D$4*EXP(-(($B184-D$6)^2/(D$5/1.67)^2)))+D$3*(D$4/(1+($B184-D$6)^2/D$5^2)) -> 0.0004329386075 | E184: =(1-E$3)*(E$4*EXP(-(($B184-E$6)^2/(E$5/1.67)^2)))+E$3*(E$4/(1+($B184-E$6)^2/E$5^2)) -> 0.0005531080946 | F184: =(1-F$3)*(F$4*EXP(-(($B184-F$6)^2/(F$5/1.67)^2)))+F$3*(F$4/(1+($B184-F$6)^2/F$5^2)) -> 0 | G184: =(1-G$3)*(G$4*EXP(-(($B184-G$6)^2/(G$5/1.67)^2)))+G$3*(G$4/(1+($B184-G$6)^2/G$5^2)) -> 0 | H184: =(1-H$3)*(H$4*EXP(-(($B184-H$6)^2/(H$5/1.67)^2)))+H$3*(H$4/(1+($B184-H$6)^2/H$5^2)) -> 0 | I184: =(1-I$3)*(I$4*EXP(-(($B184-I$6)^2/(I$5/1.67)^2)))+I$3*(I$4/(1+($B184-I$6)^2/I$5^2)) -> 0 | J184: =SUM(D184:I184) -> 0.0009860467021 | L184: =(C184-J184)^2 -> 9.722880988e-07
B185: 174 | C185: 0 | D185: =(1-D$3)*(D$4*EXP(-(($B185-D$6)^2/(D$5/1.67)^2)))+D$3*(D$4/(1+($B185-D$6)^2/D$5^2)) -> 0.0004253413347 | E185: =(1-E$3)*(E$4*EXP(-(($B185-E$6)^2/(E$5/1.67)^2)))+E$3*(E$4/(1+($B185-E$6)^2/E$5^2)) -> 0.0005447761043 | F185: =(1-F$3)*(F$4*EXP(-(($B185-F$6)^2/(F$5/1.67)^2)))+F$3*(F$4/(1+($B185-F$6)^2/F$5^2)) -> 0 | G185: =(1-G$3)*(G$4*EXP(-(($B185-G$6)^2/(G$5/1.67)^2)))+G$3*(G$4/(1+($B185-G$6)^2/G$5^2)) -> 0 | H185: =(1-H$3)*(H$4*EXP(-(($B185-H$6)^2/(H$5/1.67)^2)))+H$3*(H$4/(1+($B185-H$6)^2/H$5^2)) -> 0 | I185: =(1-I$3)*(I$4*EXP(-(($B185-I$6)^2/(I$5/1.67)^2)))+I$3*(I$4/(1+($B185-I$6)^2/I$5^2)) -> 0 | J185: =SUM(D185:I185) -> 0.0009701174391 | L185: =(C185-J185)^2 -> 9.411278456e-07
B186: 175 | C186: 0 | D186: =(1-D$3)*(D$4*EXP(-(($B186-D$6)^2/(D$5/1.67)^2)))+D$3*(D$4/(1+($B186-D$6)^2/D$5^2)) -> 0.0004179412968 | E186: =(1-E$3)*(E$4*EXP(-(($B186-E$6)^2/(E$5/1.67)^2)))+E$3*(E$4/(1+($B186-E$6)^2/E$5^2)) -> 0.0005366308556 | F186: =(1-F$3)*(F$4*EXP(-(($B186-F$6)^2/(F$5/1.67)^2)))+F$3*(F$4/(1+($B186-F$6)^2/F$5^2)) -> 0 | G186: =(1-G$3)*(G$4*EXP(-(($B186-G$6)^2/(G$5/1.67)^2)))+G$3*(G$4/(1+($B186-G$6)^2/G$5^2)) -> 0 | H186: =(1-H$3)*(H$4*EXP(-(($B186-H$6)^2/(H$5/1.67)^2)))+H$3*(H$4/(1+($B186-H$6)^2/H$5^2)) -> 0 | I186: =(1-I$3)*(I$4*EXP(-(($B186-I$6)^2/(I$5/1.67)^2)))+I$3*(I$4/(1+($B186-I$6)^2/I$5^2)) -> 0 | J186: =SUM(D186:I186) -> 0.0009545721524 | L186: =(C186-J186)^2 -> 9.112079942e-07
B187: 176 | C187: 0 | D187: =(1-D$3)*(D$4*EXP(-(($B187-D$6)^2/(D$5/1.67)^2)))+D$3*(D$4/(1+($B187-D$6)^2/D$5^2)) -> 0.0004107317591 | E187: =(1-E$3)*(E$4*EXP(-(($B187-E$6)^2/(E$5/1.67)^2)))+E$3*(E$4/(1+($B187-E$6)^2/E$5^2)) -> 0.000528666813 | F187: =(1-F$3)*(F$4*EXP(-(($B187-F$6)^2/(F$5/1.67)^2)))+F$3*(F$4/(1+($B187-F$6)^2/F$5^2)) -> 0 | G187: =(1-G$3)*(G$4*EXP(-(($B187-G$6)^2/(G$5/1.67)^2)))+G$3*(G$4/(1+($B187-G$6)^2/G$5^2)) -> 0 | H187: =(1-H$3)*(H$4*EXP(-(($B187-H$6)^2/(H$5/1.67)^2)))+H$3*(H$4/(1+($B187-H$6)^2/H$5^2)) -> 0 | I187: =(1-I$3)*(I$4*EXP(-(($B187-I$6)^2/(I$5/1.67)^2)))+I$3*(I$4/(1+($B187-I$6)^2/I$5^2)) -> 0 | J187: =SUM(D187:I187) -> 0.000939398572 | L187: =(C187-J187)^2 -> 8.824696771e-07
B188: 177 | C188: 0 | D188: =(1-D$3)*(D$4*EXP(-(($B188-D$6)^2/(D$5/1.67)^2)))+D$3*(D$4/(1+($B188-D$6)^2/D$5^2)) -> 0.0004037062707 | E188: =(1-E$3)*(E$4*EXP(-(($B188-E$6)^2/(E$5/1.67)^2)))+E$3*(E$4/(1+($B188-E$6)^2/E$5^2)) -> 0.0005208786442 | F188: =(1-F$3)*(F$4*EXP(-(($B188-F$6)^2/(F$5/1.67)^2)))+F$3*(F$4/(1+($B188-F$6)^2/F$5^2)) -> 0 | G188: =(1-G$3)*(G$4*EXP(-(($B188-G$6)^2/(G$5/1.67)^2)))+G$3*(G$4/(1+($B188-G$6)^2/G$5^2)) -> 0 | H188: =(1-H$3)*(H$4*EXP(-(($B188-H$6)^2/(H$5/1.67)^2)))+H$3*(H$4/(1+($B188-H$6)^2/H$5^2)) -> 0 | I188: =(1-I$3)*(I$4*EXP(-(($B188-I$6)^2/(I$5/1.67)^2)))+I$3*(I$4/(1+($B188-I$6)^2/I$5^2)) -> 0 | J188: =SUM(D188:I188) -> 0.0009245849148 | L188: =(C188-J188)^2 -> 8.548572647e-07
B189: 178 | C189: 0 | D189: =(1-D$3)*(D$4*EXP(-(($B189-D$6)^2/(D$5/1.67)^2)))+D$3*(D$4/(1+($B189-D$6)^2/D$5^2)) -> 0.00039685865 | E189: =(1-E$3)*(E$4*EXP(-(($B189-E$6)^2/(E$5/1.67)^2)))+E$3*(E$4/(1+($B189-E$6)^2/E$5^2)) -> 0.0005132612117 | F189: =(1-F$3)*(F$4*EXP(-(($B189-F$6)^2/(F$5/1.67)^2)))+F$3*(F$4/(1+($B189-F$6)^2/F$5^2)) -> 0 | G189: =(1-G$3)*(G$4*EXP(-(($B189-G$6)^2/(G$5/1.67)^2)))+G$3*(G$4/(1+($B189-G$6)^2/G$5^2)) -> 0 | H189: =(1-H$3)*(H$4*EXP(-(($B189-H$6)^2/(H$5/1.67)^2)))+H$3*(H$4/(1+($B189-H$6)^2/H$5^2)) -> 0 | I189: =(1-I$3)*(I$4*EXP(-(($B189-I$6)^2/(I$5/1.67)^2)))+I$3*(I$4/(1+($B189-I$6)^2/I$5^2)) -> 0 | J189: =SUM(D189:I189) -> 0.0009101198617 | L189: =(C189-J189)^2 -> 8.283181627e-07
B190: 179 | C190: 0 | D190: =(1-D$3)*(D$4*EXP(-(($B190-D$6)^2/(D$5/1.67)^2)))+D$3*(D$4/(1+($B190-D$6)^2/D$5^2)) -> 0.0003901829716 | E190: =(1-E$3)*(E$4*EXP(-(($B190-E$6)^2/(E$5/1.67)^2)))+E$3*(E$4/(1+($B190-E$6)^2/E$5^2)) -> 0.0005058095642 | F190: =(1-F$3)*(F$4*EXP(-(($B190-F$6)^2/(F$5/1.67)^2)))+F$3*(F$4/(1+($B190-F$6)^2/F$5^2)) -> 0 | G190: =(1-G$3)*(G$4*EXP(-(($B190-G$6)^2/(G$5/1.67)^2)))+G$3*(G$4/(1+($B190-G$6)^2/G$5^2)) -> 0 | H190: =(1-H$3)*(H$4*EXP(-(($B190-H$6)^2/(H$5/1.67)^2)))+H$3*(H$4/(1+($B190-H$6)^2/H$5^2)) -> 0 | I190: =(1-I$3)*(I$4*EXP(-(($B190-I$6)^2/(I$5/1.67)^2)))+I$3*(I$4/(1+($B190-I$6)^2/I$5^2)) -> 0 | J190: =SUM(D190:I190) -> 0.0008959925358 | L190: =(C190-J190)^2 -> 8.028026243e-07
B191: 180 | C191: 0 | D191: =(1-D$3)*(D$4*EXP(-(($B191-D$6)^2/(D$5/1.67)^2)))+D$3*(D$4/(1+($B191-D$6)^2/D$5^2)) -> 0.0003836735537 | E191: =(1-E$3)*(E$4*EXP(-(($B191-E$6)^2/(E$5/1.67)^2)))+E$3*(E$4/(1+($B191-E$6)^2/E$5^2)) -> 0.0004985189283 | F191: =(1-F$3)*(F$4*EXP(-(($B191-F$6)^2/(F$5/1.67)^2)))+F$3*(F$4/(1+($B191-F$6)^2/F$5^2)) -> 0 | G191: =(1-G$3)*(G$4*EXP(-(($B191-G$6)^2/(G$5/1.67)^2)))+G$3*(G$4/(1+($B191-G$6)^2/G$5^2)) -> 0 | H191: =(1-H$3)*(H$4*EXP(-(($B191-H$6)^2/(H$5/1.67)^2)))+H$3*(H$4/(1+($B191-H$6)^2/H$5^2)) -> 0 | I191: =(1-I$3)*(I$4*EXP(-(($B191-I$6)^2/(I$5/1.67)^2)))+I$3*(I$4/(1+($B191-I$6)^2/I$5^2)) -> 0 | J191: =SUM(D191:I191) -> 0.0008821924819 | L191: =(C191-J191)^2 -> 7.782635752e-07
B192: 181 | C192: 0 | D192: =(1-D$3)*(D$4*EXP(-(($B192-D$6)^2/(D$5/1.67)^2)))+D$3*(D$4/(1+($B192-D$6)^2/D$5^2)) -> 0.0003773249458 | E192: =(1-E$3)*(E$4*EXP(-(($B192-E$6)^2/(E$5/1.67)^2)))+E$3*(E$4/(1+($B192-E$6)^2/E$5^2)) -> 0.0004913847011 | F192: =(1-F$3)*(F$4*EXP(-(($B192-F$6)^2/(F$5/1.67)^2)))+F$3*(F$4/(1+($B192-F$6)^2/F$5^2)) -> 0 | G192: =(1-G$3)*(G$4*EXP(-(($B192-G$6)^2/(G$5/1.67)^2)))+G$3*(G$4/(1+($B192-G$6)^2/G$5^2)) -> 0 | H192: =(1-H$3)*(H$4*EXP(-(($B192-H$6)^2/(H$5/1.67)^2)))+H$3*(H$4/(1+($B192-H$6)^2/H$5^2)) -> 0 | I192: =(1-I$3)*(I$4*EXP(-(($B192-I$6)^2/(I$5/1.67)^2)))+I$3*(I$4/(1+($B192-I$6)^2/I$5^2)) -> 0 | J192: =SUM(D192:I192) -> 0.0008687096469 | L192: =(C192-J192)^2 -> 7.546564507e-07
B193: 182 | C193: 0 | D193: =(1-D$3)*(D$4*EXP(-(($B193-D$6)^2/(D$5/1.67)^2)))+D$3*(D$4/(1+($B193-D$6)^2/D$5^2)) -> 0.0003711319184 | E193: =(1-E$3)*(E$4*EXP(-(($B193-E$6)^2/(E$5/1.67)^2)))+E$3*(E$4/(1+($B193-E$6)^2/E$5^2)) -> 0.000484402443 | F193: =(1-F$3)*(F$4*EXP(-(($B193-F$6)^2/(F$5/1.67)^2)))+F$3*(F$4/(1+($B193-F$6)^2/F$5^2)) -> 0 | G193: =(1-G$3)*(G$4*EXP(-(($B193-G$6)^2/(G$5/1.67)^2)))+G$3*(G$4/(1+($B193-G$6)^2/G$5^2)) -> 0 | H193: =(1-H$3)*(H$4*EXP(-(($B193-H$6)^2/(H$5/1.67)^2)))+H$3*(H$4/(1+($B193-H$6)^2/H$5^2)) -> 0 | I193: =(1-I$3)*(I$4*EXP(-(($B193-I$6)^2/(I$5/1.67)^2)))+I$3*(I$4/(1+($B193-I$6)^2/I$5^2)) -> 0 | J193: =SUM(D193:I193) -> 0.0008555343614 | L193: =(C193-J193)^2 -> 7.319390435e-07
B194: 183 | C194: 0 | D194: =(1-D$3)*(D$4*EXP(-(($B194-D$6)^2/(D$5/1.67)^2)))+D$3*(D$4/(1+($B194-D$6)^2/D$5^2)) -> 0.0003650894515 | E194: =(1-E$3)*(E$4*EXP(-(($B194-E$6)^2/(E$5/1.67)^2)))+E$3*(E$4/(1+($B194-E$6)^2/E$5^2)) -> 0.0004775678707 | F194: =(1-F$3)*(F$4*EXP(-(($B194-F$6)^2/(F$5/1.67)^2)))+F$3*(F$4/(1+($B194-F$6)^2/F$5^2)) -> 0 | G194: =(1-G$3)*(G$4*EXP(-(($B194-G$6)^2/(G$5/1.67)^2)))+G$3*(G$4/(1+($B194-G$6)^2/G$5^2)) -> 0 | H194: =(1-H$3)*(H$4*EXP(-(($B194-H$6)^2/(H$5/1.67)^2)))+H$3*(H$4/(1+($B194-H$6)^2/H$5^2)) -> 0 | I194: =(1-I$3)*(I$4*EXP(-(($B194-I$6)^2/(I$5/1.67)^2)))+I$3*(I$4/(1+($B194-I$6)^2/I$5^2)) -> 0 | J194: =SUM(D194:I194) -> 0.0008426573222 | L194: =(C194-J194)^2 -> 7.100713627e-07
B195: 184 | C195: 0 | D195: =(1-D$3)*(D$4*EXP(-(($B195-D$6)^2/(D$5/1.67)^2)))+D$3*(D$4/(1+($B195-D$6)^2/D$5^2)) -> 0.0003591927254 | E195: =(1-E$3)*(E$4*EXP(-(($B195-E$6)^2/(E$5/1.67)^2)))+E$3*(E$4/(1+($B195-E$6)^2/E$5^2)) -> 0.0004708768505 | F195: =(1-F$3)*(F$4*EXP(-(($B195-F$6)^2/(F$5/1.67)^2)))+F$3*(F$4/(1+($B195-F$6)^2/F$5^2)) -> 0 | G195: =(1-G$3)*(G$4*EXP(-(($B195-G$6)^2/(G$5/1.67)^2)))+G$3*(G$4/(1+($B195-G$6)^2/G$5^2)) -> 0 | H195: =(1-H$3)*(H$4*EXP(-(($B195-H$6)^2/(H$5/1.67)^2)))+H$3*(H$4/(1+($B195-H$6)^2/H$5^2)) -> 0 | I195: =(1-I$3)*(I$4*EXP(-(($B195-I$6)^2/(I$5/1.67)^2)))+I$3*(I$4/(1+($B195-I$6)^2/I$5^2)) -> 0 | J195: =SUM(D195:I195) -> 0.0008300695759 | L195: =(C195-J195)^2 -> 6.890155008e-07
B196: 185 | C196: 0 | D196: =(1-D$3)*(D$4*EXP(-(($B196-D$6)^2/(D$5/1.67)^2)))+D$3*(D$4/(1+($B196-D$6)^2/D$5^2)) -> 0.0003534371105 | E196: =(1-E$3)*(E$4*EXP(-(($B196-E$6)^2/(E$5/1.67)^2)))+E$3*(E$4/(1+($B196-E$6)^2/E$5^2)) -> 0.0004643253926 | F196: =(1-F$3)*(F$4*EXP(-(($B196-F$6)^2/(F$5/1.67)^2)))+F$3*(F$4/(1+($B196-F$6)^2/F$5^2)) -> 0 | G196: =(1-G$3)*(G$4*EXP(-(($B196-G$6)^2/(G$5/1.67)^2)))+G$3*(G$4/(1+($B196-G$6)^2/G$5^2)) -> 0 | H196: =(1-H$3)*(H$4*EXP(-(($B196-H$6)^2/(H$5/1.67)^2)))+H$3*(H$4/(1+($B196-H$6)^2/H$5^2)) -> 0 | I196: =(1-I$3)*(I$4*EXP(-(($B196-I$6)^2/(I$5/1.67)^2)))+I$3*(I$4/(1+($B196-I$6)^2/I$5^2)) -> 0 | J196: =SUM(D196:I196) -> 0.0008177625031 | L196: =(C196-J196)^2 -> 6.687355114e-07
B197: 186 | C197: 0 | D197: =(1-D$3)*(D$4*EXP(-(($B197-D$6)^2/(D$5/1.67)^2)))+D$3*(D$4/(1+($B197-D$6)^2/D$5^2)) -> 0.0003478181591 | E197: =(1-E$3)*(E$4*EXP(-(($B197-E$6)^2/(E$5/1.67)^2)))+E$3*(E$4/(1+($B197-E$6)^2/E$5^2)) -> 0.0004579096444 | F197: =(1-F$3)*(F$4*EXP(-(($B197-F$6)^2/(F$5/1.67)^2)))+F$3*(F$4/(1+($B197-F$6)^2/F$5^2)) -> 0 | G197: =(1-G$3)*(G$4*EXP(-(($B197-G$6)^2/(G$5/1.67)^2)))+G$3*(G$4/(1+($B197-G$6)^2/G$5^2)) -> 0 | H197: =(1-H$3)*(H$4*EXP(-(($B197-H$6)^2/(H$5/1.67)^2)))+H$3*(H$4/(1+($B197-H$6)^2/H$5^2)) -> 0 | I197: =(1-I$3)*(I$4*EXP(-(($B197-I$6)^2/(I$5/1.67)^2)))+I$3*(I$4/(1+($B197-I$6)^2/I$5^2)) -> 0 | J197: =SUM(D197:I197) -> 0.0008057278034 | L197: =(C197-J197)^2 -> 6.491972933e-07
B198: 187 | C198: 0 | D198: =(1-D$3)*(D$4*EXP(-(($B198-D$6)^2/(D$5/1.67)^2)))+D$3*(D$4/(1+($B198-D$6)^2/D$5^2)) -> 0.0003423315964 | E198: =(1-E$3)*(E$4*EXP(-(($B198-E$6)^2/(E$5/1.67)^2)))+E$3*(E$4/(1+($B198-E$6)^2/E$5^2)) -> 0.0004516258855 | F198: =(1-F$3)*(F$4*EXP(-(($B198-F$6)^2/(F$5/1.67)^2)))+F$3*(F$4/(1+($B198-F$6)^2/F$5^2)) -> 0 | G198: =(1-G$3)*(G$4*EXP(-(($B198-G$6)^2/(G$5/1.67)^2)))+G$3*(G$4/(1+($B198-G$6)^2/G$5^2)) -> 0 | H198: =(1-H$3)*(H$4*EXP(-(($B198-H$6)^2/(H$5/1.67)^2)))+H$3*(H$4/(1+($B198-H$6)^2/H$5^2)) -> 0 | I198: =(1-I$3)*(I$4*EXP(-(($B198-I$6)^2/(I$5/1.67)^2)))+I$3*(I$4/(1+($B198-I$6)^2/I$5^2)) -> 0 | J198: =SUM(D198:I198) -> 0.0007939574819 | L198: =(C198-J198)^2 -> 6.303684831e-07
B199: 188 | C199: 0 | D199: =(1-D$3)*(D$4*EXP(-(($B199-D$6)^2/(D$5/1.67)^2)))+D$3*(D$4/(1+($B199-D$6)^2/D$5^2)) -> 0.000336973313 | E199: =(1-E$3)*(E$4*EXP(-(($B199-E$6)^2/(E$5/1.67)^2)))+E$3*(E$4/(1+($B199-E$6)^2/E$5^2)) -> 0.0004454705219 | F199: =(1-F$3)*(F$4*EXP(-(($B199-F$6)^2/(F$5/1.67)^2)))+F$3*(F$4/(1+($B199-F$6)^2/F$5^2)) -> 0 | G199: =(1-G$3)*(G$4*EXP(-(($B199-G$6)^2/(G$5/1.67)^2)))+G$3*(G$4/(1+($B199-G$6)^2/G$5^2)) -> 0 | H199: =(1-H$3)*(H$4*EXP(-(($B199-H$6)^2/(H$5/1.67)^2)))+H$3*(H$4/(1+($B199-H$6)^2/H$5^2)) -> 0 | I199: =(1-I$3)*(I$4*EXP(-(($B199-I$6)^2/(I$5/1.67)^2)))+I$3*(I$4/(1+($B199-I$6)^2/I$5^2)) -> 0 | J199: =SUM(D199:I199) -> 0.0007824438349 | L199: =(C199-J199)^2 -> 6.122183548e-07
B200: 189 | C200: 0 | D200: =(1-D$3)*(D$4*EXP(-(($B200-D$6)^2/(D$5/1.67)^2)))+D$3*(D$4/(1+($B200-D$6)^2/D$5^2)) -> 0.0003317393569 | E200: =(1-E$3)*(E$4*EXP(-(($B200-E$6)^2/(E$5/1.67)^2)))+E$3*(E$4/(1+($B200-E$6)^2/E$5^2)) -> 0.0004394400812 | F200: =(1-F$3)*(F$4*EXP(-(($B200-F$6)^2/(F$5/1.67)^2)))+F$3*(F$4/(1+($B200-F$6)^2/F$5^2)) -> 0 | G200: =(1-G$3)*(G$4*EXP(-(($B200-G$6)^2/(G$5/1.67)^2)))+G$3*(G$4/(1+($B200-G$6)^2/G$5^2)) -> 0 | H200: =(1-H$3)*(H$4*EXP(-(($B200-H$6)^2/(H$5/1.67)^2)))+H$3*(H$4/(1+($B200-H$6)^2/H$5^2)) -> 0 | I200: =(1-I$3)*(I$4*EXP(-(($B200-I$6)^2/(I$5/1.67)^2)))+I$3*(I$4/(1+($B200-I$6)^2/I$5^2)) -> 0 | J200: =SUM(D200:I200) -> 0.0007711794381 | L200: =(C200-J200)^2 -> 5.947177257e-07
B201: 190 | C201: 0 | D201: =(1-D$3)*(D$4*EXP(-(($B201-D$6)^2/(D$5/1.67)^2)))+D$3*(D$4/(1+($B201-D$6)^2/D$5^2)) -> 0.0003266259264 | E201: =(1-E$3)*(E$4*EXP(-(($B201-E$6)^2/(E$5/1.67)^2)))+E$3*(E$4/(1+($B201-E$6)^2/E$5^2)) -> 0.0004335312074 | F201: =(1-F$3)*(F$4*EXP(-(($B201-F$6)^2/(F$5/1.67)^2)))+F$3*(F$4/(1+($B201-F$6)^2/F$5^2)) -> 0 | G201: =(1-G$3)*(G$4*EXP(-(($B201-G$6)^2/(G$5/1.67)^2)))+G$3*(G$4/(1+($B201-G$6)^2/G$5^2)) -> 0 | H201: =(1-H$3)*(H$4*EXP(-(($B201-H$6)^2/(H$5/1.67)^2)))+H$3*(H$4/(1+($B201-H$6)^2/H$5^2)) -> 0 | I201: =(1-I$3)*(I$4*EXP(-(($B201-I$6)^2/(I$5/1.67)^2)))+I$3*(I$4/(1+($B201-I$6)^2/I$5^2)) -> 0 | J201: =SUM(D201:I201) -> 0.0007601571338 | L201: =(C201-J201)^2 -> 5.778388681e-07
... 410 more rows

Sheet 使用法
A1: 使用条件 | C1: Excel2010以降、マクロが使えること（2007以前ではテストしていない）
A3: 処理の対象 | C3: X－Yグラフで表現できるもので、同一Xに2個以上のYの値がない、テキストデータで記録されたデータ
C4: クロマトグラム、IRスペクトル、NMRスペクトルなど
A6: 処理の制限 | C6: X軸データ数：最大行未満のもの、実用的には50,000程度が上限
C7: ベースラインの修正ポイント：8点、うち2～7の6点はマニュアル設定が可能
C8: 積分：最大4区間
C9: フィッティング 推定ピーク数：最大6個
A11: ベースライン補正
B12: シートの構成 | C12: A,B列 | D12: 入力X,Yデータ
C13: C列 | D13: ベースライン補正後のデータ
C14: D列 | D14: 補正に用いたベースライン
C15: E列 | D15: ベースライン補正に用いた条件：Baseline区分の表で用いたデータ行（3は3-4行目のデータによる補正を示す）
C16: N-Q列 | D16: グラフで描画するX,Yの範囲の指定。ブランクでは最大値、最小値が入る
C17: J30：M46 | D17: データの積分。L列に積分区間のX値を記入、M列にそのカウントと4個の積分区間の合計に対する%を表示
B18: 解析方法 | C18: データ処理は本ファイルの「グラフ_積分シート」で実行
B19: 1 | C19: 対象データファイルを開く
C20: テキストファイルの場合は、適当な区切り位置の指定で、XとYのデータが隣接した２列になるように指定
B21: 2 | C21: X列をA列、Y列をB列に値コピー（ペースト時に値を指定）
B22: 3 | C22: 初期化 | D22: ボタンを押す。
B23: 4 | C23: Xのポイントの設定：Baseline区分のJ3:J9にXの値を書き込み、ベースラインのポイントを設定
C24: ベースラインの状況はグラフで確認できる。不都合があればXを変更
C25: デフォルトではY値（K3:K9)には対象データの値（L3:L9に表示）が入る
B26: 5 | C26: Yの設定：状況により結果をグラフで確認しながら、K2:K9のデフォルトのデータを修正。
B27: グラフ表示の変更
B28: 1 | C28: O4-O5にX軸表示させる範囲の最小値、最大値を指定（ブランクでデータの最小、最大値）
B29: 2 | C29: P4-P5にY軸表示させる範囲の最小値、最大値を指定（ブランクでデータの最小、最大値）
B30: 3 | C30: X軸の表示の方向を選択
B31: 4 | C31: 最後に | D31: グラフ目盛変更 | E31: ボタンを押す
B32: 積分 | C32: L列の開始X値、終了X値に積分区間の開始、終了のX値を記入
C33: Y値上段に絶対カウント、下段に4区間の合計に対する%を表示
A35: ピーク分離
B36: 1 | C36: グラフ_積分シートA列(X)の計算対象範囲を"ピーク分離シート!B11"から値コピーする
B37: 2 | C37: グラフ_積分シートC列(Y)の計算対象範囲を"ピーク分離シート!C11"から値コピーする
B38: 3 | C38: グラフを必要範囲の表示に変更：X、Yの開始値、終了値を入力、[グラフ目盛]変更ボタンを押す。
B39: 4 | C39: D3:I6のパラメータを調整し、合成ピークが実測値に近くなるようにする。使わないピークは「ピーク高さ=0」とする。
B40: 5 | C40: データ→ソルバーを開く
B41: 6 | C41: 目的セル：L3 目標値：最小値 変数セルD3～I6 のうちピーク数の列の数を指定
D42: 例 3ピーク： D3:F6 5ピーク： D3:H6 6ピーク： D3:I6
B43: 7 | C43: ソルバーの実行
